Organisation Code,Organisation Label,Effective Date,Organisational Unit,Service Division Label,Category Internal Name,Purpose,Detailed Expenditure Code,Payment Date,Transaction Number,Irrecoverable VAT Amount,Amount,Capital Or Revenue,Beneficiary Name,Procurement Card
Http://opendatacommunities.org/id/metropolitan-district-council/leeds,Leeds City Council,30/06/2020,Adults and Health,Services For Older People Under 65 P/Dis,Third Party Payments,Sheltered Accommodation,569,24/06/2020,2006-00001,0.00,5400.00,R,A & V TRANSITIONAL HOMES,No
Http://opendatacommunities.org/id/metropolitan-district-council/leeds,Leeds City Council,30/06/2020,Resources and Housing,Leeds Building Services,Supplies and Services,Operational Materials,205,10/06/2020,2006-00002,0.00,14.10,R,A ANDREWS & SONS (MARBLES & TILES),No
Http://opendatacommunities.org/id/metropolitan-district-council/leeds,Leeds City Council,30/06/2020,Children and Families,Social Care,Third Party Payments,Services Rendered By Other Organisations,511,05/06/2020,2006-00003,0.00,315.36,R,REDACTED PERSONAL DATA,No
Http://opendatacommunities.org/id/metropolitan-district-council/leeds,Leeds City Council,30/06/2020,Children and Families,Social Care,Third Party Payments,Services Rendered By Other Organisations,511,05/06/2020,2006-00004,0.00,861.98,R,REDACTED PERSONAL DATA,No
Http://opendatacommunities.org/id/metropolitan-district-council/leeds,Leeds City Council,30/06/2020,Children and Families,Social Care,Third Party Payments,Services Rendered By Other Organisations,511,05/06/2020,2006-00005,0.00,315.36,R,REDACTED PERSONAL DATA,No
Http://opendatacommunities.org/id/metropolitan-district-council/leeds,Leeds City Council,30/06/2020,Resources and Housing,Leeds Building Services,Supplies and Services,Other Hired And Contracted Services,265,26/06/2020,2006-00006,0.00,160.00,R,A Coole Electrical Ltd,No
Http://opendatacommunities.org/id/metropolitan-district-council/leeds,Leeds City Council,30/06/2020,City Development,Libraries  Arts & Heritage,Supplies and Services,Non-Recurring Grants,227,02/06/2020,2006-00007,0.00,990.00,R,A CRAVEN-GRIFFITHS,No
Http://opendatacommunities.org/id/metropolitan-district-council/leeds,Leeds City Council,30/06/2020,Communities and Environment,Customer Access,Supplies and Services,Bought In Professional Services,277,24/06/2020,2006-00008,0.00,45.00,R,A D Dumitru,No
Http://opendatacommunities.org/id/metropolitan-district-council/leeds,Leeds City Council,30/06/2020,Children and Families,Social Care,Third Party Payments,Services Rendered By Voluntary Sector,505,03/06/2020,2006-00009,0.00,950.40,R,REDACTED PERSONAL DATA,No
Http://opendatacommunities.org/id/metropolitan-district-council/leeds,Leeds City Council,30/06/2020,Children and Families,Social Care,Third Party Payments,Services Rendered By Voluntary Sector,505,05/06/2020,2006-00010,0.00,4910.85,R,REDACTED PERSONAL DATA,No
Http://opendatacommunities.org/id/metropolitan-district-council/leeds,Leeds City Council,30/06/2020,Children and Families,Social Care,Third Party Payments,Services Rendered By Other Organisations,511,03/06/2020,2006-00011,0.00,570.24,R,REDACTED PERSONAL DATA,No
Http://opendatacommunities.org/id/metropolitan-district-council/leeds,Leeds City Council,30/06/2020,Children and Families,Social Care,Third Party Payments,Services Rendered By Other Organisations,511,05/06/2020,2006-00012,0.00,630.72,R,REDACTED PERSONAL DATA,No
Http://opendatacommunities.org/id/metropolitan-district-council/leeds,Leeds City Council,30/06/2020,Children and Families,Social Care,Third Party Payments,Services Rendered By Other Organisations,511,05/06/2020,2006-00013,0.00,478.29,R,REDACTED PERSONAL DATA,No
Http://opendatacommunities.org/id/metropolitan-district-council/leeds,Leeds City Council,30/06/2020,Children and Families,Social Care,Third Party Payments,Services Rendered By Other Organisations,511,03/06/2020,2006-00014,0.00,190.08,R,REDACTED PERSONAL DATA,No
Http://opendatacommunities.org/id/metropolitan-district-council/leeds,Leeds City Council,30/06/2020,Children and Families,Social Care,Third Party Payments,Services Rendered By Other Organisations,511,05/06/2020,2006-00015,0.00,315.36,R,REDACTED PERSONAL DATA,No
Http://opendatacommunities.org/id/metropolitan-district-council/leeds,Leeds City Council,30/06/2020,Children and Families,Social Care,Third Party Payments,Services Rendered By Other Organisations,511,05/06/2020,2006-00016,0.00,157.68,R,REDACTED PERSONAL DATA,No
Http://opendatacommunities.org/id/metropolitan-district-council/leeds,Leeds City Council,30/06/2020,Adults and Health,Social Services Support Services,Employees,Training & Development,70,05/06/2020,2006-00017,0.00,13.00,R,REDACTED PERSONAL DATA,No
Http://opendatacommunities.org/id/metropolitan-district-council/leeds,Leeds City Council,30/06/2020,Adults and Health,Other Generic Services,Third Party Payments,Fees To Carers,563,16/06/2020,2006-00018,0.00,210.00,R,REDACTED PERSONAL DATA,No
Http://opendatacommunities.org/id/metropolitan-district-council/leeds,Leeds City Council,30/06/2020,Adults and Health,Other Generic Services,Third Party Payments,Fees To Carers,563,16/06/2020,2006-00019,0.00,440.64,R,REDACTED PERSONAL DATA,No
Http://opendatacommunities.org/id/metropolitan-district-council/leeds,Leeds City Council,30/06/2020,Adults and Health,Other Generic Services,Third Party Payments,Fees To Carers,563,16/06/2020,2006-00020,0.00,25.20,R,REDACTED PERSONAL DATA,No
Http://opendatacommunities.org/id/metropolitan-district-council/leeds,Leeds City Council,30/06/2020,Adults and Health,Other Generic Services,Third Party Payments,Fees To Carers,563,16/06/2020,2006-00021,0.00,50.40,R,REDACTED PERSONAL DATA,No
Http://opendatacommunities.org/id/metropolitan-district-council/leeds,Leeds City Council,30/06/2020,Adults and Health,Other Generic Services,Third Party Payments,Fees To Carers,563,19/06/2020,2006-00022,0.00,49.17,R,REDACTED PERSONAL DATA,No
Http://opendatacommunities.org/id/metropolitan-district-council/leeds,Leeds City Council,30/06/2020,Adults and Health,Other Generic Services,Third Party Payments,Fees To Carers,563,26/06/2020,2006-00023,0.00,49.17,R,REDACTED PERSONAL DATA,No
Http://opendatacommunities.org/id/metropolitan-district-council/leeds,Leeds City Council,30/06/2020,Children and Families,Social Care  ,Transfer Payments,Young Peoples Activities,652,27/05/2020,2006-00024,0.00,78.27,R,A J Fishing Tackle,Yes
Http://opendatacommunities.org/id/metropolitan-district-council/leeds,Leeds City Council,30/06/2020,Resources and Housing,Leeds Building Services,Supplies and Services,Operational Materials,205,02/06/2020,2006-00025,0.00,61.34,R,A J H  Pump Supply & Repair Ltd,No
Http://opendatacommunities.org/id/metropolitan-district-council/leeds,Leeds City Council,30/06/2020,Resources and Housing,Leeds Building Services,Supplies and Services,Operational Materials,205,02/06/2020,2006-00026,0.00,875.00,R,A J H  Pump Supply & Repair Ltd,No
Http://opendatacommunities.org/id/metropolitan-district-council/leeds,Leeds City Council,30/06/2020,Resources and Housing,Leeds Building Services,Supplies and Services,Operational Materials,205,02/06/2020,2006-00027,0.00,243.45,R,A J H  Pump Supply & Repair Ltd,No
Http://opendatacommunities.org/id/metropolitan-district-council/leeds,Leeds City Council,30/06/2020,Resources and Housing,Leeds Building Services,Supplies and Services,Operational Materials,205,02/06/2020,2006-00028,0.00,26.25,R,A J H  Pump Supply & Repair Ltd,No
Http://opendatacommunities.org/id/metropolitan-district-council/leeds,Leeds City Council,30/06/2020,Resources and Housing,Leeds Building Services,Supplies and Services,Operational Materials,205,02/06/2020,2006-00029,0.00,12.95,R,A J H  Pump Supply & Repair Ltd,No
Http://opendatacommunities.org/id/metropolitan-district-council/leeds,Leeds City Council,30/06/2020,Resources and Housing,Leeds Building Services,Supplies and Services,Operational Materials,205,02/06/2020,2006-00030,0.00,24.79,R,A J H  Pump Supply & Repair Ltd,No
Http://opendatacommunities.org/id/metropolitan-district-council/leeds,Leeds City Council,30/06/2020,Resources and Housing,Leeds Building Services,Supplies and Services,Operational Materials,205,02/06/2020,2006-00031,0.00,51.31,R,A J H  Pump Supply & Repair Ltd,No
Http://opendatacommunities.org/id/metropolitan-district-council/leeds,Leeds City Council,30/06/2020,Resources and Housing,Leeds Building Services,Supplies and Services,Operational Materials,205,02/06/2020,2006-00032,0.00,381.57,R,A J H  Pump Supply & Repair Ltd,No
Http://opendatacommunities.org/id/metropolitan-district-council/leeds,Leeds City Council,30/06/2020,Resources and Housing,Leeds Building Services,Supplies and Services,Operational Materials,205,02/06/2020,2006-00033,0.00,147.50,R,A J H  Pump Supply & Repair Ltd,No
Http://opendatacommunities.org/id/metropolitan-district-council/leeds,Leeds City Council,30/06/2020,Resources and Housing,Leeds Building Services,Supplies and Services,Operational Materials,205,02/06/2020,2006-00034,0.00,930.00,R,A J H  Pump Supply & Repair Ltd,No
Http://opendatacommunities.org/id/metropolitan-district-council/leeds,Leeds City Council,30/06/2020,Resources and Housing,Leeds Building Services,Supplies and Services,Operational Materials,205,02/06/2020,2006-00035,0.00,19.90,R,A J H  Pump Supply & Repair Ltd,No
Http://opendatacommunities.org/id/metropolitan-district-council/leeds,Leeds City Council,30/06/2020,Resources and Housing,Leeds Building Services,Supplies and Services,Operational Materials,205,02/06/2020,2006-00036,0.00,572.79,R,A J H  Pump Supply & Repair Ltd,No
Http://opendatacommunities.org/id/metropolitan-district-council/leeds,Leeds City Council,30/06/2020,Resources and Housing,Leeds Building Services,Supplies and Services,Operational Materials,205,02/06/2020,2006-00037,0.00,600.00,R,A J H  Pump Supply & Repair Ltd,No
Http://opendatacommunities.org/id/metropolitan-district-council/leeds,Leeds City Council,30/06/2020,Resources and Housing,Leeds Building Services,Supplies and Services,Operational Materials,205,02/06/2020,2006-00038,0.00,153.45,R,A J H  Pump Supply & Repair Ltd,No
Http://opendatacommunities.org/id/metropolitan-district-council/leeds,Leeds City Council,30/06/2020,Resources and Housing,Leeds Building Services,Supplies and Services,Operational Materials,205,02/06/2020,2006-00039,0.00,31.34,R,A J H  Pump Supply & Repair Ltd,No
Http://opendatacommunities.org/id/metropolitan-district-council/leeds,Leeds City Council,30/06/2020,Resources and Housing,Leeds Building Services,Supplies and Services,Operational Materials,205,02/06/2020,2006-00040,0.00,34.59,R,A J H  Pump Supply & Repair Ltd,No
Http://opendatacommunities.org/id/metropolitan-district-council/leeds,Leeds City Council,30/06/2020,Resources and Housing,Leeds Building Services,Supplies and Services,Operational Materials,205,02/06/2020,2006-00041,0.00,156.70,R,A J H  Pump Supply & Repair Ltd,No
Http://opendatacommunities.org/id/metropolitan-district-council/leeds,Leeds City Council,30/06/2020,Resources and Housing,Leeds Building Services,Supplies and Services,Operational Materials,205,02/06/2020,2006-00042,0.00,951.45,R,A J H  Pump Supply & Repair Ltd,No
Http://opendatacommunities.org/id/metropolitan-district-council/leeds,Leeds City Council,30/06/2020,Resources and Housing,Leeds Building Services,Supplies and Services,Operational Materials,205,02/06/2020,2006-00043,0.00,395.96,R,A J H  Pump Supply & Repair Ltd,No
Http://opendatacommunities.org/id/metropolitan-district-council/leeds,Leeds City Council,30/06/2020,Resources and Housing,Leeds Building Services,Supplies and Services,Operational Materials,205,15/06/2020,2006-00044,0.00,147.90,R,A J H  Pump Supply & Repair Ltd,No
Http://opendatacommunities.org/id/metropolitan-district-council/leeds,Leeds City Council,30/06/2020,Resources and Housing,Leeds Building Services,Supplies and Services,Operational Materials,205,15/06/2020,2006-00045,0.00,950.00,R,A J H  Pump Supply & Repair Ltd,No
Http://opendatacommunities.org/id/metropolitan-district-council/leeds,Leeds City Council,30/06/2020,Resources and Housing,Leeds Building Services,Supplies and Services,Operational Materials,205,15/06/2020,2006-00046,0.00,47.38,R,A J H  Pump Supply & Repair Ltd,No
Http://opendatacommunities.org/id/metropolitan-district-council/leeds,Leeds City Council,30/06/2020,Resources and Housing,Leeds Building Services,Supplies and Services,Operational Materials,205,15/06/2020,2006-00047,0.00,456.60,R,A J H  Pump Supply & Repair Ltd,No
Http://opendatacommunities.org/id/metropolitan-district-council/leeds,Leeds City Council,30/06/2020,Resources and Housing,Leeds Building Services,Supplies and Services,Operational Materials,205,15/06/2020,2006-00048,0.00,135.00,R,A J H  Pump Supply & Repair Ltd,No
Http://opendatacommunities.org/id/metropolitan-district-council/leeds,Leeds City Council,30/06/2020,Resources and Housing,Leeds Building Services,Supplies and Services,Operational Materials,205,15/06/2020,2006-00049,0.00,147.00,R,A J H  Pump Supply & Repair Ltd,No
Http://opendatacommunities.org/id/metropolitan-district-council/leeds,Leeds City Council,30/06/2020,Resources and Housing,Leeds Building Services,Supplies and Services,Operational Materials,205,15/06/2020,2006-00050,0.00,32.52,R,A J H  Pump Supply & Repair Ltd,No
Http://opendatacommunities.org/id/metropolitan-district-council/leeds,Leeds City Council,30/06/2020,Resources and Housing,Leeds Building Services,Supplies and Services,Operational Materials,205,15/06/2020,2006-00051,0.00,35.90,R,A J H  Pump Supply & Repair Ltd,No
Http://opendatacommunities.org/id/metropolitan-district-council/leeds,Leeds City Council,30/06/2020,Resources and Housing,Leeds Building Services,Supplies and Services,Operational Materials,205,15/06/2020,2006-00052,0.00,13.75,R,A J H  Pump Supply & Repair Ltd,No
Http://opendatacommunities.org/id/metropolitan-district-council/leeds,Leeds City Council,30/06/2020,Resources and Housing,Leeds Building Services,Supplies and Services,Operational Materials,205,15/06/2020,2006-00053,0.00,265.00,R,A J H  Pump Supply & Repair Ltd,No
Http://opendatacommunities.org/id/metropolitan-district-council/leeds,Leeds City Council,30/06/2020,Resources and Housing,Leeds Building Services,Supplies and Services,Operational Materials,205,15/06/2020,2006-00054,0.00,36.31,R,A J H  Pump Supply & Repair Ltd,No
Http://opendatacommunities.org/id/metropolitan-district-council/leeds,Leeds City Council,30/06/2020,Resources and Housing,Leeds Building Services,Supplies and Services,Operational Materials,205,15/06/2020,2006-00055,0.00,55.94,R,A J H  Pump Supply & Repair Ltd,No
Http://opendatacommunities.org/id/metropolitan-district-council/leeds,Leeds City Council,30/06/2020,Resources and Housing,Leeds Building Services,Supplies and Services,Operational Materials,205,15/06/2020,2006-00056,0.00,292.95,R,A J H  Pump Supply & Repair Ltd,No
Http://opendatacommunities.org/id/metropolitan-district-council/leeds,Leeds City Council,30/06/2020,Resources and Housing,Leeds Building Services,Supplies and Services,Operational Materials,205,15/06/2020,2006-00057,0.00,535.00,R,A J H  Pump Supply & Repair Ltd,No
Http://opendatacommunities.org/id/metropolitan-district-council/leeds,Leeds City Council,30/06/2020,Resources and Housing,Leeds Building Services,Supplies and Services,Operational Materials,205,15/06/2020,2006-00058,0.00,120.00,R,A J H  Pump Supply & Repair Ltd,No
Http://opendatacommunities.org/id/metropolitan-district-council/leeds,Leeds City Council,30/06/2020,Resources and Housing,Leeds Building Services,Supplies and Services,Operational Materials,205,15/06/2020,2006-00059,0.00,213.12,R,A J H  Pump Supply & Repair Ltd,No
Http://opendatacommunities.org/id/metropolitan-district-council/leeds,Leeds City Council,30/06/2020,Resources and Housing,Leeds Building Services,Supplies and Services,Operational Materials,205,15/06/2020,2006-00060,0.00,56.68,R,A J H  Pump Supply & Repair Ltd,No
Http://opendatacommunities.org/id/metropolitan-district-council/leeds,Leeds City Council,30/06/2020,Resources and Housing,Leeds Building Services,Supplies and Services,Operational Materials,205,15/06/2020,2006-00061,0.00,817.00,R,A J H  Pump Supply & Repair Ltd,No
Http://opendatacommunities.org/id/metropolitan-district-council/leeds,Leeds City Council,30/06/2020,Resources and Housing,Leeds Building Services,Supplies and Services,Operational Materials,205,15/06/2020,2006-00062,0.00,271.37,R,A J H  Pump Supply & Repair Ltd,No
Http://opendatacommunities.org/id/metropolitan-district-council/leeds,Leeds City Council,30/06/2020,Resources and Housing,Leeds Building Services,Supplies and Services,Operational Materials,205,15/06/2020,2006-00063,0.00,2533.75,R,A J H  Pump Supply & Repair Ltd,No
Http://opendatacommunities.org/id/metropolitan-district-council/leeds,Leeds City Council,30/06/2020,Resources and Housing,Leeds Building Services,Supplies and Services,Operational Materials,205,15/06/2020,2006-00064,0.00,870.95,R,A J H  Pump Supply & Repair Ltd,No
Http://opendatacommunities.org/id/metropolitan-district-council/leeds,Leeds City Council,30/06/2020,Resources and Housing,Leeds Building Services,Supplies and Services,Operational Materials,205,16/06/2020,2006-00065,0.00,1311.90,R,A J H  Pump Supply & Repair Ltd,No
Http://opendatacommunities.org/id/metropolitan-district-council/leeds,Leeds City Council,30/06/2020,Resources and Housing,Leeds Building Services,Supplies and Services,Operational Materials,205,19/06/2020,2006-00066,0.00,746.00,R,A J H  Pump Supply & Repair Ltd,No
Http://opendatacommunities.org/id/metropolitan-district-council/leeds,Leeds City Council,30/06/2020,Resources and Housing,Leeds Building Services,Supplies and Services,Operational Materials,205,25/06/2020,2006-00067,0.00,145.50,R,A J H  Pump Supply & Repair Ltd,No
Http://opendatacommunities.org/id/metropolitan-district-council/leeds,Leeds City Council,30/06/2020,Resources and Housing,Leeds Building Services,Supplies and Services,Operational Materials,205,25/06/2020,2006-00068,0.00,58.97,R,A J H  Pump Supply & Repair Ltd,No
Http://opendatacommunities.org/id/metropolitan-district-council/leeds,Leeds City Council,30/06/2020,Resources and Housing,Leeds Building Services,Supplies and Services,Operational Materials,205,25/06/2020,2006-00069,0.00,104.37,R,A J H  Pump Supply & Repair Ltd,No
Http://opendatacommunities.org/id/metropolitan-district-council/leeds,Leeds City Council,30/06/2020,Resources and Housing,Leeds Building Services,Supplies and Services,Operational Materials,205,25/06/2020,2006-00070,0.00,86.24,R,A J H  Pump Supply & Repair Ltd,No
Http://opendatacommunities.org/id/metropolitan-district-council/leeds,Leeds City Council,30/06/2020,Resources and Housing,Leeds Building Services,Supplies and Services,Operational Materials,205,25/06/2020,2006-00071,0.00,99.76,R,A J H  Pump Supply & Repair Ltd,No
Http://opendatacommunities.org/id/metropolitan-district-council/leeds,Leeds City Council,30/06/2020,Resources and Housing,Leeds Building Services,Supplies and Services,Operational Materials,205,25/06/2020,2006-00072,0.00,96.25,R,A J H  Pump Supply & Repair Ltd,No
Http://opendatacommunities.org/id/metropolitan-district-council/leeds,Leeds City Council,30/06/2020,Resources and Housing,Leeds Building Services,Supplies and Services,Operational Materials,205,25/06/2020,2006-00073,0.00,246.20,R,A J H  Pump Supply & Repair Ltd,No
Http://opendatacommunities.org/id/metropolitan-district-council/leeds,Leeds City Council,30/06/2020,Resources and Housing,Leeds Building Services,Supplies and Services,Operational Materials,205,25/06/2020,2006-00074,0.00,223.89,R,A J H  Pump Supply & Repair Ltd,No
Http://opendatacommunities.org/id/metropolitan-district-council/leeds,Leeds City Council,30/06/2020,Resources and Housing,Leeds Building Services,Supplies and Services,Operational Materials,205,25/06/2020,2006-00075,0.00,375.00,R,A J H  Pump Supply & Repair Ltd,No
Http://opendatacommunities.org/id/metropolitan-district-council/leeds,Leeds City Council,30/06/2020,Resources and Housing,Leeds Building Services,Supplies and Services,Operational Materials,205,25/06/2020,2006-00076,0.00,13.94,R,A J H  Pump Supply & Repair Ltd,No
Http://opendatacommunities.org/id/metropolitan-district-council/leeds,Leeds City Council,30/06/2020,Resources and Housing,Leeds Building Services,Supplies and Services,Operational Materials,205,25/06/2020,2006-00077,0.00,60.85,R,A J H  Pump Supply & Repair Ltd,No
Http://opendatacommunities.org/id/metropolitan-district-council/leeds,Leeds City Council,30/06/2020,Resources and Housing,Leeds Building Services,Supplies and Services,Operational Materials,205,25/06/2020,2006-00078,0.00,251.00,R,A J H  Pump Supply & Repair Ltd,No
Http://opendatacommunities.org/id/metropolitan-district-council/leeds,Leeds City Council,30/06/2020,Resources and Housing,Leeds Building Services,Supplies and Services,Operational Materials,205,25/06/2020,2006-00079,0.00,2350.00,R,A J H  Pump Supply & Repair Ltd,No
Http://opendatacommunities.org/id/metropolitan-district-council/leeds,Leeds City Council,30/06/2020,Resources and Housing,Leeds Building Services,Supplies and Services,Operational Materials,205,25/06/2020,2006-00080,0.00,100.80,R,A J H  Pump Supply & Repair Ltd,No
Http://opendatacommunities.org/id/metropolitan-district-council/leeds,Leeds City Council,30/06/2020,Resources and Housing,Leeds Building Services,Supplies and Services,Operational Materials,205,25/06/2020,2006-00081,0.00,23.75,R,A J H  Pump Supply & Repair Ltd,No
Http://opendatacommunities.org/id/metropolitan-district-council/leeds,Leeds City Council,30/06/2020,Resources and Housing,Leeds Building Services,Supplies and Services,Operational Materials,205,25/06/2020,2006-00082,0.00,402.47,R,A J H  Pump Supply & Repair Ltd,No
Http://opendatacommunities.org/id/metropolitan-district-council/leeds,Leeds City Council,30/06/2020,Resources and Housing,Leeds Building Services,Supplies and Services,Operational Materials,205,25/06/2020,2006-00083,0.00,161.95,R,A J H  Pump Supply & Repair Ltd,No
Http://opendatacommunities.org/id/metropolitan-district-council/leeds,Leeds City Council,30/06/2020,Resources and Housing,Leeds Building Services,Supplies and Services,Operational Materials,205,25/06/2020,2006-00084,0.00,182.40,R,A J H  Pump Supply & Repair Ltd,No
Http://opendatacommunities.org/id/metropolitan-district-council/leeds,Leeds City Council,30/06/2020,Resources and Housing,Leeds Building Services,Supplies and Services,Operational Materials,205,25/06/2020,2006-00085,0.00,119.50,R,A J H  Pump Supply & Repair Ltd,No
Http://opendatacommunities.org/id/metropolitan-district-council/leeds,Leeds City Council,30/06/2020,Resources and Housing,Leeds Building Services,Supplies and Services,Operational Materials,205,25/06/2020,2006-00086,0.00,38.20,R,A J H  Pump Supply & Repair Ltd,No
Http://opendatacommunities.org/id/metropolitan-district-council/leeds,Leeds City Council,30/06/2020,Resources and Housing,Leeds Building Services,Supplies and Services,Operational Materials,205,25/06/2020,2006-00087,0.00,27.75,R,A J H  Pump Supply & Repair Ltd,No
Http://opendatacommunities.org/id/metropolitan-district-council/leeds,Leeds City Council,30/06/2020,Resources and Housing,Leeds Building Services,Supplies and Services,Operational Materials,205,25/06/2020,2006-00088,0.00,166.20,R,A J H  Pump Supply & Repair Ltd,No
Http://opendatacommunities.org/id/metropolitan-district-council/leeds,Leeds City Council,30/06/2020,Resources and Housing,Leeds Building Services,Supplies and Services,Operational Materials,205,25/06/2020,2006-00089,0.00,82.64,R,A J H  Pump Supply & Repair Ltd,No
Http://opendatacommunities.org/id/metropolitan-district-council/leeds,Leeds City Council,30/06/2020,Resources and Housing,Leeds Building Services,Supplies and Services,Operational Materials,205,25/06/2020,2006-00090,0.00,61.95,R,A J H  Pump Supply & Repair Ltd,No
Http://opendatacommunities.org/id/metropolitan-district-council/leeds,Leeds City Council,30/06/2020,Resources and Housing,Leeds Building Services,Supplies and Services,Operational Materials,205,26/06/2020,2006-00091,0.00,50.40,R,A J H  Pump Supply & Repair Ltd,No
Http://opendatacommunities.org/id/metropolitan-district-council/leeds,Leeds City Council,30/06/2020,Resources and Housing,Leeds Building Services,Supplies and Services,Operational Materials,205,26/06/2020,2006-00092,0.00,135.58,R,A J H  Pump Supply & Repair Ltd,No
Http://opendatacommunities.org/id/metropolitan-district-council/leeds,Leeds City Council,30/06/2020,Resources and Housing,Leeds Building Services,Supplies and Services,Operational Materials,205,26/06/2020,2006-00093,0.00,83.50,R,A J H  Pump Supply & Repair Ltd,No
Http://opendatacommunities.org/id/metropolitan-district-council/leeds,Leeds City Council,30/06/2020,Resources and Housing,Leeds Building Services,Supplies and Services,Operational Materials,205,26/06/2020,2006-00094,0.00,9.25,R,A J H  Pump Supply & Repair Ltd,No
Http://opendatacommunities.org/id/metropolitan-district-council/leeds,Leeds City Council,30/06/2020,Resources and Housing,Leeds Building Services,Supplies and Services,Operational Materials,205,26/06/2020,2006-00095,0.00,103.90,R,A J H  Pump Supply & Repair Ltd,No
Http://opendatacommunities.org/id/metropolitan-district-council/leeds,Leeds City Council,30/06/2020,Resources and Housing,Leeds Building Services,Supplies and Services,Operational Furniture And Equipment,203,26/06/2020,2006-00096,0.00,135.00,R,A J H  Pump Supply & Repair Ltd,No
Http://opendatacommunities.org/id/metropolitan-district-council/leeds,Leeds City Council,30/06/2020,Resources and Housing,Leeds Building Services,Supplies and Services,Operational Materials,205,26/06/2020,2006-00097,0.00,92.65,R,A J H  Pump Supply & Repair Ltd,No
Http://opendatacommunities.org/id/metropolitan-district-council/leeds,Leeds City Council,30/06/2020,Resources and Housing,Leeds Building Services,Supplies and Services,Operational Materials,205,26/06/2020,2006-00098,0.00,118.00,R,A J H  Pump Supply & Repair Ltd,No
Http://opendatacommunities.org/id/metropolitan-district-council/leeds,Leeds City Council,30/06/2020,Resources and Housing,Leeds Building Services,Supplies and Services,Operational Materials,205,26/06/2020,2006-00099,0.00,89.45,R,A J H  Pump Supply & Repair Ltd,No
Http://opendatacommunities.org/id/metropolitan-district-council/leeds,Leeds City Council,30/06/2020,Resources and Housing,Leeds Building Services,Supplies and Services,Operational Furniture And Equipment,203,26/06/2020,2006-00100,0.00,50.00,R,A J H  Pump Supply & Repair Ltd,No
Http://opendatacommunities.org/id/metropolitan-district-council/leeds,Leeds City Council,30/06/2020,Resources and Housing,Leeds Building Services,Supplies and Services,Operational Materials,205,26/06/2020,2006-00101,0.00,323.95,R,A J H  Pump Supply & Repair Ltd,No
Http://opendatacommunities.org/id/metropolitan-district-council/leeds,Leeds City Council,30/06/2020,Resources and Housing,Leeds Building Services,Supplies and Services,Operational Materials,205,26/06/2020,2006-00102,0.00,41.10,R,A J H  Pump Supply & Repair Ltd,No
Http://opendatacommunities.org/id/metropolitan-district-council/leeds,Leeds City Council,30/06/2020,Resources and Housing,Leeds Building Services,Supplies and Services,Operational Materials,205,26/06/2020,2006-00103,0.00,285.90,R,A J H  Pump Supply & Repair Ltd,No
Http://opendatacommunities.org/id/metropolitan-district-council/leeds,Leeds City Council,30/06/2020,Resources and Housing,Leeds Building Services,Supplies and Services,Operational Materials,205,26/06/2020,2006-00104,0.00,90.24,R,A J H  Pump Supply & Repair Ltd,No
Http://opendatacommunities.org/id/metropolitan-district-council/leeds,Leeds City Council,30/06/2020,Resources and Housing,Leeds Building Services,Supplies and Services,Operational Materials,205,26/06/2020,2006-00105,0.00,53.60,R,A J H  Pump Supply & Repair Ltd,No
Http://opendatacommunities.org/id/metropolitan-district-council/leeds,Leeds City Council,30/06/2020,Resources and Housing,Leeds Building Services,Supplies and Services,Operational Materials,205,26/06/2020,2006-00106,0.00,24.95,R,A J H  Pump Supply & Repair Ltd,No
Http://opendatacommunities.org/id/metropolitan-district-council/leeds,Leeds City Council,30/06/2020,Resources and Housing,Leeds Building Services,Supplies and Services,Operational Materials,205,26/06/2020,2006-00107,0.00,361.35,R,A J H  Pump Supply & Repair Ltd,No
Http://opendatacommunities.org/id/metropolitan-district-council/leeds,Leeds City Council,30/06/2020,Resources and Housing,Leeds Building Services,Supplies and Services,Operational Materials,205,26/06/2020,2006-00108,0.00,62.02,R,A J H  Pump Supply & Repair Ltd,No
Http://opendatacommunities.org/id/metropolitan-district-council/leeds,Leeds City Council,30/06/2020,Resources and Housing,Leeds Building Services,Supplies and Services,Operational Materials,205,26/06/2020,2006-00109,0.00,67.30,R,A J H  Pump Supply & Repair Ltd,No
Http://opendatacommunities.org/id/metropolitan-district-council/leeds,Leeds City Council,30/06/2020,Resources and Housing,Leeds Building Services,Supplies and Services,Operational Materials,205,26/06/2020,2006-00110,0.00,145.00,R,A J H  Pump Supply & Repair Ltd,No
Http://opendatacommunities.org/id/metropolitan-district-council/leeds,Leeds City Council,30/06/2020,Resources and Housing,Leeds Building Services,Supplies and Services,Operational Materials,205,30/06/2020,2006-00111,0.00,310.00,R,A J H  Pump Supply & Repair Ltd,No
Http://opendatacommunities.org/id/metropolitan-district-council/leeds,Leeds City Council,30/06/2020,Resources and Housing,Leeds Building Services,Supplies and Services,Operational Materials,205,30/06/2020,2006-00112,0.00,145.50,R,A J H  Pump Supply & Repair Ltd,No
Http://opendatacommunities.org/id/metropolitan-district-council/leeds,Leeds City Council,30/06/2020,Resources and Housing,Leeds Building Services,Supplies and Services,Operational Materials,205,30/06/2020,2006-00113,0.00,225.00,R,A J H  Pump Supply & Repair Ltd,No
Http://opendatacommunities.org/id/metropolitan-district-council/leeds,Leeds City Council,30/06/2020,Resources and Housing,Leeds Building Services,Supplies and Services,Operational Materials,205,30/06/2020,2006-00114,0.00,27.00,R,A J H  Pump Supply & Repair Ltd,No
Http://opendatacommunities.org/id/metropolitan-district-council/leeds,Leeds City Council,30/06/2020,Resources and Housing,Leeds Building Services,Supplies and Services,Operational Materials,205,30/06/2020,2006-00115,0.00,155.00,R,A J H  Pump Supply & Repair Ltd,No
Http://opendatacommunities.org/id/metropolitan-district-council/leeds,Leeds City Council,30/06/2020,Resources and Housing,Leeds Building Services,Supplies and Services,Operational Materials,205,30/06/2020,2006-00116,0.00,120.88,R,A J H  Pump Supply & Repair Ltd,No
Http://opendatacommunities.org/id/metropolitan-district-council/leeds,Leeds City Council,30/06/2020,Resources and Housing,Leeds Building Services,Supplies and Services,Operational Materials,205,30/06/2020,2006-00117,0.00,485.00,R,A J H  Pump Supply & Repair Ltd,No
Http://opendatacommunities.org/id/metropolitan-district-council/leeds,Leeds City Council,30/06/2020,Resources and Housing,Leeds Building Services,Supplies and Services,Operational Materials,205,30/06/2020,2006-00118,0.00,279.09,R,A J H  Pump Supply & Repair Ltd,No
Http://opendatacommunities.org/id/metropolitan-district-council/leeds,Leeds City Council,30/06/2020,Resources and Housing,Leeds Building Services,Supplies and Services,Operational Materials,205,30/06/2020,2006-00119,0.00,6.95,R,A J H  Pump Supply & Repair Ltd,No
Http://opendatacommunities.org/id/metropolitan-district-council/leeds,Leeds City Council,30/06/2020,Resources and Housing,Leeds Building Services,Supplies and Services,Operational Materials,205,30/06/2020,2006-00120,0.00,65.00,R,A J H  Pump Supply & Repair Ltd,No
Http://opendatacommunities.org/id/metropolitan-district-council/leeds,Leeds City Council,30/06/2020,Resources and Housing,Leeds Building Services,Supplies and Services,Operational Materials,205,30/06/2020,2006-00121,0.00,154.39,R,A J H  Pump Supply & Repair Ltd,No
Http://opendatacommunities.org/id/metropolitan-district-council/leeds,Leeds City Council,30/06/2020,Resources and Housing,Leeds Building Services,Supplies and Services,Operational Materials,205,30/06/2020,2006-00122,0.00,32.00,R,A J H  Pump Supply & Repair Ltd,No
Http://opendatacommunities.org/id/metropolitan-district-council/leeds,Leeds City Council,30/06/2020,Resources and Housing,Leeds Building Services,Supplies and Services,Operational Materials,205,30/06/2020,2006-00123,0.00,65.83,R,A J H  Pump Supply & Repair Ltd,No
Http://opendatacommunities.org/id/metropolitan-district-council/leeds,Leeds City Council,30/06/2020,Resources and Housing,Leeds Building Services,Supplies and Services,Operational Materials,205,30/06/2020,2006-00124,0.00,201.00,R,A J H  Pump Supply & Repair Ltd,No
Http://opendatacommunities.org/id/metropolitan-district-council/leeds,Leeds City Council,30/06/2020,Children and Families,Social Care,Third Party Payments,Services Rendered By Other Organisations,511,05/06/2020,2006-00125,0.00,2049.84,R,REDACTED PERSONAL DATA,No
Http://opendatacommunities.org/id/metropolitan-district-council/leeds,Leeds City Council,30/06/2020,City Development,Economic Development,Supplies and Services,Grants To Businesses,243,29/06/2020,2006-00126,0.00,2098.00,R,A K Wightman,No
Http://opendatacommunities.org/id/metropolitan-district-council/leeds,Leeds City Council,30/06/2020,Resources and Housing,HRA Housing Leeds,Capital,OTHER COSTS,7,17/06/2020,2006-00127,0.00,80.00,C,REDACTED PERSONAL DATA,No
Http://opendatacommunities.org/id/metropolitan-district-council/leeds,Leeds City Council,30/06/2020,Communities and Environment,Customer Access,Supplies and Services,Bought In Professional Services,277,03/06/2020,2006-00128,0.00,31.50,R,A MOHAMMED,No
Http://opendatacommunities.org/id/metropolitan-district-council/leeds,Leeds City Council,30/06/2020,Communities and Environment,Customer Access,Supplies and Services,Bought In Professional Services,277,10/06/2020,2006-00129,0.00,31.50,R,A MOHAMMED,No
Http://opendatacommunities.org/id/metropolitan-district-council/leeds,Leeds City Council,30/06/2020,Communities and Environment,Customer Access,Supplies and Services,Bought In Professional Services,277,17/06/2020,2006-00130,0.00,13.50,R,A MOHAMMED,No
Http://opendatacommunities.org/id/metropolitan-district-council/leeds,Leeds City Council,30/06/2020,Communities and Environment,Customer Access,Supplies and Services,Bought In Professional Services,277,24/06/2020,2006-00131,0.00,18.00,R,A MOHAMMED,No
Http://opendatacommunities.org/id/metropolitan-district-council/leeds,Leeds City Council,30/06/2020,Communities and Environment,Customer Access,Supplies and Services,Bought In Professional Services,277,04/06/2020,2006-00132,0.00,27.00,R,A MUSALAM,No
Http://opendatacommunities.org/id/metropolitan-district-council/leeds,Leeds City Council,30/06/2020,Communities and Environment,Customer Access,Supplies and Services,Bought In Professional Services,277,18/06/2020,2006-00133,0.00,12.30,R,A MUSALAM,No
Http://opendatacommunities.org/id/metropolitan-district-council/leeds,Leeds City Council,30/06/2020,Children and Families,Social Care,Third Party Payments,Services Rendered By Other Organisations,511,03/06/2020,2006-00134,0.00,570.24,R,REDACTED PERSONAL DATA,No
Http://opendatacommunities.org/id/metropolitan-district-council/leeds,Leeds City Council,30/06/2020,Children and Families,Social Care,Third Party Payments,Services Rendered By Other Organisations,511,05/06/2020,2006-00135,0.00,2522.88,R,REDACTED PERSONAL DATA,No
Http://opendatacommunities.org/id/metropolitan-district-council/leeds,Leeds City Council,30/06/2020,Children and Families,Social Care,Third Party Payments,Services Rendered By Other Organisations,511,05/06/2020,2006-00136,0.00,331.13,R,REDACTED PERSONAL DATA,No
Http://opendatacommunities.org/id/metropolitan-district-council/leeds,Leeds City Council,30/06/2020,City Development,Libraries  Arts & Heritage,Supplies and Services,Bought In Professional Services,277,18/06/2020,2006-00137,0.00,1000.00,R,A P Wood,No
Http://opendatacommunities.org/id/metropolitan-district-council/leeds,Leeds City Council,30/06/2020,Children and Families,Social Care,Third Party Payments,Services Rendered By Other Organisations,511,03/06/2020,2006-00138,0.00,190.08,R,REDACTED PERSONAL DATA,No
Http://opendatacommunities.org/id/metropolitan-district-council/leeds,Leeds City Council,30/06/2020,Children and Families,Social Care,Third Party Payments,Services Rendered By Other Organisations,511,05/06/2020,2006-00139,0.00,157.68,R,REDACTED PERSONAL DATA,No
Http://opendatacommunities.org/id/metropolitan-district-council/leeds,Leeds City Council,30/06/2020,Children and Families,Social Care,Third Party Payments,Independent Fostering Agencies,509,25/06/2020,2006-00140,0.00,1152.00,R,A Taxis,No
Http://opendatacommunities.org/id/metropolitan-district-council/leeds,Leeds City Council,30/06/2020,Children and Families,Social Care,Third Party Payments,Services Rendered By Other Organisations,511,05/06/2020,2006-00141,0.00,1247.04,R,REDACTED PERSONAL DATA,No
Http://opendatacommunities.org/id/metropolitan-district-council/leeds,Leeds City Council,30/06/2020,Children and Families,Social Care,Third Party Payments,Services Rendered By Other Organisations,511,05/06/2020,2006-00142,0.00,473.04,R,REDACTED PERSONAL DATA,No
Http://opendatacommunities.org/id/metropolitan-district-council/leeds,Leeds City Council,30/06/2020,Children and Families,Social Care,Third Party Payments,Services Rendered By Other Organisations,511,05/06/2020,2006-00143,0.00,315.36,R,REDACTED PERSONAL DATA,No
Http://opendatacommunities.org/id/metropolitan-district-council/leeds,Leeds City Council,30/06/2020,Children and Families,Social Care,Third Party Payments,General External Residential Placements,507,11/06/2020,2006-00144,0.00,97.20,R,A Wilderness Way Ltd,No
Http://opendatacommunities.org/id/metropolitan-district-council/leeds,Leeds City Council,30/06/2020,Children and Families,Social Care,Third Party Payments,General External Residential Placements,507,15/06/2020,2006-00145,0.00,27092.75,R,A Wilderness Way Ltd,No
Http://opendatacommunities.org/id/metropolitan-district-council/leeds,Leeds City Council,30/06/2020,Children and Families,Social Care,Third Party Payments,General External Residential Placements,507,23/06/2020,2006-00146,0.00,23121.30,R,A Wilderness Way Ltd,No
Http://opendatacommunities.org/id/metropolitan-district-council/leeds,Leeds City Council,30/06/2020,Children and Families,Social Care,Third Party Payments,General External Residential Placements,507,23/06/2020,2006-00147,0.00,1760.00,R,A Wilderness Way Ltd,No
Http://opendatacommunities.org/id/metropolitan-district-council/leeds,Leeds City Council,30/06/2020,City Development,Economic Development,Supplies and Services,Grants To Businesses,243,18/06/2020,2006-00148,0.00,9804.00,R,A&C Design Shop Fitting And Maintenance,No
Http://opendatacommunities.org/id/metropolitan-district-council/leeds,Leeds City Council,30/06/2020,Resources and Housing,Leeds Building Services,Supplies and Services,Operational Materials,205,26/06/2020,2006-00149,0.00,638.95,R,A1 STAIR LIFT SERVICES,No
Http://opendatacommunities.org/id/metropolitan-district-council/leeds,Leeds City Council,30/06/2020,Children and Families,Social Care  ,Supplies and Services,Operational Furniture And Equipment,203,27/05/2020,2006-00150,0.00,8.55,R,Aardvark Archery,Yes
Http://opendatacommunities.org/id/metropolitan-district-council/leeds,Leeds City Council,30/06/2020,Communities and Environment,Elections  Licensing and Registration,Income,Admissions  Booking Fees & Ticket Sales,933,11/06/2020,2006-00151,0.00,220.00,R,REDACTED PERSONAL DATA,No
Http://opendatacommunities.org/id/metropolitan-district-council/leeds,Leeds City Council,30/06/2020,Adults and Health,Social Services Support Services,Transport,Public Transport Expenses,310,18/06/2020,2006-00152,0.00,114.00,R,AB CARS,No
Http://opendatacommunities.org/id/metropolitan-district-council/leeds,Leeds City Council,30/06/2020,Children and Families,Social Care,Third Party Payments,Services Rendered By Voluntary Sector,505,30/06/2020,2006-00153,0.00,568.44,R,Abbey Multi Academy Trust,No
Http://opendatacommunities.org/id/metropolitan-district-council/leeds,Leeds City Council,30/06/2020,Children and Families,Social Care,Third Party Payments,Allowances,546,09/06/2020,2006-00154,0.00,2063.75,R,REDACTED PERSONAL DATA,No
Http://opendatacommunities.org/id/metropolitan-district-council/leeds,Leeds City Council,30/06/2020,Children and Families,Social Care,Support Services,Legal Disbursements,411,18/06/2020,2006-00155,0.00,92.00,R,Abbott Toxicology Ltd.,No
Http://opendatacommunities.org/id/metropolitan-district-council/leeds,Leeds City Council,30/06/2020,Children and Families,Social Care,Third Party Payments,Services Rendered By Other Organisations,511,03/06/2020,2006-00156,0.00,950.40,R,Abc Daycare And Ozone Out Of School,No
Http://opendatacommunities.org/id/metropolitan-district-council/leeds,Leeds City Council,30/06/2020,Children and Families,Social Care,Third Party Payments,Services Rendered By Other Organisations,511,05/06/2020,2006-00157,0.00,7252.28,R,Abc Daycare And Ozone Out Of School,No
Http://opendatacommunities.org/id/metropolitan-district-council/leeds,Leeds City Council,30/06/2020,Children and Families,Social Care,Third Party Payments,Services Rendered By Other Organisations,511,03/06/2020,2006-00158,0.00,817.92,R,ABC NURSERY AT LUFC,No
Http://opendatacommunities.org/id/metropolitan-district-council/leeds,Leeds City Council,30/06/2020,Children and Families,Social Care,Third Party Payments,Services Rendered By Other Organisations,511,05/06/2020,2006-00159,0.00,7726.32,R,ABC NURSERY AT LUFC,No
Http://opendatacommunities.org/id/metropolitan-district-council/leeds,Leeds City Council,30/06/2020,Children and Families,Social Care,Third Party Payments,Services Rendered By Other Organisations,511,03/06/2020,2006-00160,0.00,1520.64,R,Abc@D'S Childcare,No
Http://opendatacommunities.org/id/metropolitan-district-council/leeds,Leeds City Council,30/06/2020,Children and Families,Social Care,Third Party Payments,Services Rendered By Other Organisations,511,05/06/2020,2006-00161,0.00,5361.11,R,Abc@D'S Childcare,No
Http://opendatacommunities.org/id/metropolitan-district-council/leeds,Leeds City Council,30/06/2020,Communities and Environment,Customer Access,Supplies and Services,Bought In Professional Services,277,03/06/2020,2006-00162,0.00,18.00,R,Abdul Kalam,No
Http://opendatacommunities.org/id/metropolitan-district-council/leeds,Leeds City Council,30/06/2020,Communities and Environment,Customer Access,Supplies and Services,Bought In Professional Services,277,03/06/2020,2006-00163,0.00,18.00,R,Abdul Kalam,No
Http://opendatacommunities.org/id/metropolitan-district-council/leeds,Leeds City Council,30/06/2020,Communities and Environment,Customer Access,Supplies and Services,Bought In Professional Services,277,10/06/2020,2006-00164,0.00,18.00,R,Abdul Kalam,No
Http://opendatacommunities.org/id/metropolitan-district-council/leeds,Leeds City Council,30/06/2020,Communities and Environment,Customer Access,Supplies and Services,Bought In Professional Services,277,10/06/2020,2006-00165,0.00,18.00,R,Abdul Kalam,No
Http://opendatacommunities.org/id/metropolitan-district-council/leeds,Leeds City Council,30/06/2020,Communities and Environment,Customer Access,Supplies and Services,Bought In Professional Services,277,10/06/2020,2006-00166,0.00,18.00,R,Abdul Kalam,No
Http://opendatacommunities.org/id/metropolitan-district-council/leeds,Leeds City Council,30/06/2020,Communities and Environment,Customer Access,Supplies and Services,Bought In Professional Services,277,17/06/2020,2006-00167,0.00,22.50,R,Abdul Kalam,No
Http://opendatacommunities.org/id/metropolitan-district-council/leeds,Leeds City Council,30/06/2020,Communities and Environment,Customer Access,Supplies and Services,Bought In Professional Services,277,17/06/2020,2006-00168,0.00,18.00,R,Abdul Kalam,No
Http://opendatacommunities.org/id/metropolitan-district-council/leeds,Leeds City Council,30/06/2020,Communities and Environment,Customer Access,Supplies and Services,Bought In Professional Services,277,24/06/2020,2006-00169,0.00,18.00,R,Abdul Kalam,No
Http://opendatacommunities.org/id/metropolitan-district-council/leeds,Leeds City Council,30/06/2020,Communities and Environment,Customer Access,Supplies and Services,Bought In Professional Services,277,24/06/2020,2006-00170,0.00,18.00,R,Abdul Kalam,No
Http://opendatacommunities.org/id/metropolitan-district-council/leeds,Leeds City Council,30/06/2020,Communities and Environment,Customer Access,Supplies and Services,Bought In Professional Services,277,17/06/2020,2006-00171,0.00,18.00,R,Abdulahad Denha,No
Http://opendatacommunities.org/id/metropolitan-district-council/leeds,Leeds City Council,30/06/2020,Adults and Health,Services For Older People - 65 And Over,Third Party Payments,Nursing Home,570,24/06/2020,2006-00172,0.00,27772.53,R,Aberford Hall,No
Http://opendatacommunities.org/id/metropolitan-district-council/leeds,Leeds City Council,30/06/2020,Resources and Housing,Leeds Building Services,Supplies and Services,Operational Materials,205,09/06/2020,2006-00173,0.00,281.04,R,ABI GARAGE DOORS LTD,No
Http://opendatacommunities.org/id/metropolitan-district-council/leeds,Leeds City Council,30/06/2020,Resources and Housing,Sustainable Energy & Climate Change,Capital,OTHER COSTS,7,05/06/2020,2006-00174,0.00,1500.00,C,REDACTED COMMERCIAL CONFIDENTIALITY,No
Http://opendatacommunities.org/id/metropolitan-district-council/leeds,Leeds City Council,30/06/2020,Resources and Housing,Technology,Supplies and Services,Computer Software & Equipment,214,18/06/2020,2006-00175,0.00,2592.70,R,ABM Critical Solutions Ltd,No
Http://opendatacommunities.org/id/metropolitan-district-council/leeds,Leeds City Council,30/06/2020,Communities and Environment,Parks and Countryside,Supplies and Services,Operational Materials,205,15/06/2020,2006-00176,0.00,831.88,R,Abram Pulman & Sons Limited,No
Http://opendatacommunities.org/id/metropolitan-district-council/leeds,Leeds City Council,30/06/2020,Communities and Environment,Parks and Countryside,Supplies and Services,Operational Materials,205,22/06/2020,2006-00177,0.00,110.00,R,Abram Pulman & Sons Limited,No
Http://opendatacommunities.org/id/metropolitan-district-council/leeds,Leeds City Council,30/06/2020,Adults and Health,Services For Adults Under 65 Mental/Dis,Third Party Payments,Fees - Level 4,520,05/06/2020,2006-00178,0.00,175.00,R,Abubaker Denja Mohammed,No
Http://opendatacommunities.org/id/metropolitan-district-council/leeds,Leeds City Council,30/06/2020,Adults and Health,Services For Adults Under 65 Mental/Dis,Third Party Payments,Fees - Level 4,520,05/06/2020,2006-00179,0.00,175.00,R,Abubaker Denja Mohammed,No
Http://opendatacommunities.org/id/metropolitan-district-council/leeds,Leeds City Council,30/06/2020,Adults and Health,Services For Adults Under 65 Mental/Dis,Third Party Payments,Fees - Level 4,520,05/06/2020,2006-00180,0.00,175.00,R,Abubaker Denja Mohammed,No
Http://opendatacommunities.org/id/metropolitan-district-council/leeds,Leeds City Council,30/06/2020,Adults and Health,Services For Adults Under 65 Mental/Dis,Third Party Payments,Fees - Level 4,520,05/06/2020,2006-00181,0.00,175.00,R,Abubaker Denja Mohammed,No
Http://opendatacommunities.org/id/metropolitan-district-council/leeds,Leeds City Council,30/06/2020,Adults and Health,Services For Adults Under 65 Mental/Dis,Third Party Payments,Fees - Level 4,520,05/06/2020,2006-00182,0.00,175.00,R,Abubaker Denja Mohammed,No
Http://opendatacommunities.org/id/metropolitan-district-council/leeds,Leeds City Council,30/06/2020,Adults and Health,Services For Adults Under 65 Mental/Dis,Third Party Payments,Fees - Level 4,520,05/06/2020,2006-00183,0.00,175.00,R,Abubaker Denja Mohammed,No
Http://opendatacommunities.org/id/metropolitan-district-council/leeds,Leeds City Council,30/06/2020,Adults and Health,Services For Adults Under 65 Mental/Dis,Third Party Payments,Fees - Level 4,520,05/06/2020,2006-00184,0.00,175.00,R,Abubaker Denja Mohammed,No
Http://opendatacommunities.org/id/metropolitan-district-council/leeds,Leeds City Council,30/06/2020,Adults and Health,Services For Adults Under 65 Mental/Dis,Third Party Payments,Fees - Level 4,520,05/06/2020,2006-00185,0.00,175.00,R,Abubaker Denja Mohammed,No
Http://opendatacommunities.org/id/metropolitan-district-council/leeds,Leeds City Council,30/06/2020,Adults and Health,Services For Adults Under 65 Mental/Dis,Third Party Payments,Fees - Level 4,520,05/06/2020,2006-00186,0.00,175.00,R,Abubaker Denja Mohammed,No
Http://opendatacommunities.org/id/metropolitan-district-council/leeds,Leeds City Council,30/06/2020,Adults and Health,Services For Adults Under 65 Mental/Dis,Third Party Payments,Fees - Level 4,520,05/06/2020,2006-00187,0.00,175.00,R,Abubaker Denja Mohammed,No
Http://opendatacommunities.org/id/metropolitan-district-council/leeds,Leeds City Council,30/06/2020,Adults and Health,Services For Adults Under 65 Mental/Dis,Third Party Payments,Fees - Level 4,520,05/06/2020,2006-00188,0.00,175.00,R,Abubaker Denja Mohammed,No
Http://opendatacommunities.org/id/metropolitan-district-council/leeds,Leeds City Council,30/06/2020,Adults and Health,Services For Adults Under 65 Mental/Dis,Third Party Payments,Fees - Level 4,520,05/06/2020,2006-00189,0.00,175.00,R,Abubaker Denja Mohammed,No
Http://opendatacommunities.org/id/metropolitan-district-council/leeds,Leeds City Council,30/06/2020,Adults and Health,Services For Adults Under 65 Mental/Dis,Third Party Payments,Fees - Level 4,520,16/06/2020,2006-00190,0.00,175.00,R,Abubaker Denja Mohammed,No
Http://opendatacommunities.org/id/metropolitan-district-council/leeds,Leeds City Council,30/06/2020,Adults and Health,Services For Adults Under 65 Mental/Dis,Third Party Payments,Fees - Level 4,520,16/06/2020,2006-00191,0.00,175.00,R,Abubaker Denja Mohammed,No
Http://opendatacommunities.org/id/metropolitan-district-council/leeds,Leeds City Council,30/06/2020,Adults and Health,Services For Adults Under 65 Mental/Dis,Third Party Payments,Fees - Level 4,520,16/06/2020,2006-00192,0.00,175.00,R,Abubaker Denja Mohammed,No
Http://opendatacommunities.org/id/metropolitan-district-council/leeds,Leeds City Council,30/06/2020,Adults and Health,Services For Adults Under 65 Mental/Dis,Third Party Payments,Fees - Level 4,520,16/06/2020,2006-00193,0.00,175.00,R,Abubaker Denja Mohammed,No
Http://opendatacommunities.org/id/metropolitan-district-council/leeds,Leeds City Council,30/06/2020,Adults and Health,Services For Adults Under 65 Mental/Dis,Third Party Payments,Fees - Level 4,520,16/06/2020,2006-00194,0.00,175.00,R,Abubaker Denja Mohammed,No
Http://opendatacommunities.org/id/metropolitan-district-council/leeds,Leeds City Council,30/06/2020,Adults and Health,Services For Adults Under 65 Mental/Dis,Third Party Payments,Fees - Level 4,520,16/06/2020,2006-00195,0.00,175.00,R,Abubaker Denja Mohammed,No
Http://opendatacommunities.org/id/metropolitan-district-council/leeds,Leeds City Council,30/06/2020,Adults and Health,Services For Adults Under 65 Mental/Dis,Third Party Payments,Fees - Level 4,520,16/06/2020,2006-00196,0.00,175.00,R,Abubaker Denja Mohammed,No
Http://opendatacommunities.org/id/metropolitan-district-council/leeds,Leeds City Council,30/06/2020,Adults and Health,Public Health,Supplies and Services,Publication And Promotion,267,26/06/2020,2006-00197,0.00,70.00,R,Ac Winter,No
Http://opendatacommunities.org/id/metropolitan-district-council/leeds,Leeds City Council,30/06/2020,Adults and Health,Services For Older People - 65 And Over,Third Party Payments,Home Care,568,17/06/2020,2006-00198,0.00,1171.17,R,Academy Care Ltd,No
Http://opendatacommunities.org/id/metropolitan-district-council/leeds,Leeds City Council,30/06/2020,Communities and Environment,Community Safety,Transport,Hire Of Movable Plant & Machinery,315,10/06/2020,2006-00199,0.00,1434.86,R,Access Hire Nationwide Ltd,No
Http://opendatacommunities.org/id/metropolitan-district-council/leeds,Leeds City Council,30/06/2020,Resources and Housing,Leeds Building Services,Supplies and Services,Operational Materials,205,10/06/2020,2006-00200,0.00,63.77,R,ACCESS LOCKSMITHS (LEEDS) LIMITED,No
Http://opendatacommunities.org/id/metropolitan-district-council/leeds,Leeds City Council,30/06/2020,Resources and Housing,Leeds Building Services,Supplies and Services,Operational Materials,205,10/06/2020,2006-00201,0.00,21.22,R,ACCESS LOCKSMITHS (LEEDS) LIMITED,No
Http://opendatacommunities.org/id/metropolitan-district-council/leeds,Leeds City Council,30/06/2020,Resources and Housing,Leeds Building Services,Supplies and Services,Operational Materials,205,10/06/2020,2006-00202,0.00,130.36,R,ACCESS LOCKSMITHS (LEEDS) LIMITED,No
Http://opendatacommunities.org/id/metropolitan-district-council/leeds,Leeds City Council,30/06/2020,Strategic Landlord,Housing Management,Premises,Premises Security Services,162,11/06/2020,2006-00203,0.00,22.80,R,ACCESS LOCKSMITHS (LEEDS) LIMITED,No
Http://opendatacommunities.org/id/metropolitan-district-council/leeds,Leeds City Council,30/06/2020,Resources and Housing,Leeds Building Services,Supplies and Services,Operational Materials,205,12/06/2020,2006-00204,0.00,54.40,R,ACCESS LOCKSMITHS (LEEDS) LIMITED,No
Http://opendatacommunities.org/id/metropolitan-district-council/leeds,Leeds City Council,30/06/2020,Strategic Landlord,Housing Management,Supplies and Services,Resaleable Materials,204,12/06/2020,2006-00205,0.00,114.00,R,ACCESS LOCKSMITHS (LEEDS) LIMITED,No
Http://opendatacommunities.org/id/metropolitan-district-council/leeds,Leeds City Council,30/06/2020,Resources and Housing,HRA Housing Leeds,Capital,FURNITURE AND EQUIPMENT,5,12/06/2020,2006-00206,0.00,68.33,C,ACCESS LOCKSMITHS (LEEDS) LIMITED,No
Http://opendatacommunities.org/id/metropolitan-district-council/leeds,Leeds City Council,30/06/2020,Strategic Landlord,Property and Contracts,Premises,General Maintenance,104,17/06/2020,2006-00207,0.00,162.65,R,ACCESS LOCKSMITHS (LEEDS) LIMITED,No
Http://opendatacommunities.org/id/metropolitan-district-council/leeds,Leeds City Council,30/06/2020,Strategic Landlord,Housing Management,Supplies and Services,Resaleable Materials,204,30/06/2020,2006-00208,0.00,22.80,R,ACCESS LOCKSMITHS (LEEDS) LIMITED,No
Http://opendatacommunities.org/id/metropolitan-district-council/leeds,Leeds City Council,30/06/2020,Strategic Landlord,Housing Management,Supplies and Services,Resaleable Materials,204,30/06/2020,2006-00209,0.00,228.00,R,ACCESS LOCKSMITHS (LEEDS) LIMITED,No
Http://opendatacommunities.org/id/metropolitan-district-council/leeds,Leeds City Council as Accountable Body,30/06/2020,Social Services Pooled Budgets,Leeds Community Equip Store Pooled Budgt,Supplies and Services,Other Equipment,203,26/06/2020,2006-00210,0.00,328.00,R,Accora,No
Http://opendatacommunities.org/id/metropolitan-district-council/leeds,Leeds City Council,30/06/2020,City Development,Recreation,Supplies and Services,Operational Furniture And Equipment,203,10/06/2020,2006-00211,0.00,90.00,R,ACE CONTAINER SERVICES LIMITED,No
Http://opendatacommunities.org/id/metropolitan-district-council/leeds,Leeds City Council,30/06/2020,City Development,Recreation,Transport,External Hire -Occasional,304,12/06/2020,2006-00212,0.00,124.50,R,ACE CONTAINER SERVICES LIMITED,No
Http://opendatacommunities.org/id/metropolitan-district-council/leeds,Leeds City Council,30/06/2020,City Development,Libraries  Arts & Heritage,Supplies and Services,Other Hired And Contracted Services,265,15/06/2020,2006-00213,0.00,45.00,R,ACE CONTAINER SERVICES LIMITED,No
Http://opendatacommunities.org/id/metropolitan-district-council/leeds,Leeds City Council,30/06/2020,Adults and Health,Services For Older People - 65 And Over,Third Party Payments,Residential Care Dementia,571,24/06/2020,2006-00214,0.00,1589.72,R,Acorn Nursing Home,No
Http://opendatacommunities.org/id/metropolitan-district-council/leeds,Leeds City Council,30/06/2020,Adults and Health,Services For Older People - 65 And Over,Third Party Payments,Nursing Care Dementia,574,24/06/2020,2006-00215,0.00,1720.08,R,Acorn Nursing Home,No
Http://opendatacommunities.org/id/metropolitan-district-council/leeds,Leeds City Council,30/06/2020,Children and Families,Social Care,Third Party Payments,Services Rendered By Other Organisations,511,03/06/2020,2006-00216,0.00,190.08,R,ACORNS NURSERY,No
Http://opendatacommunities.org/id/metropolitan-district-council/leeds,Leeds City Council,30/06/2020,Children and Families,Social Care,Third Party Payments,Services Rendered By Other Organisations,511,05/06/2020,2006-00217,0.00,6622.56,R,ACORNS NURSERY,No
Http://opendatacommunities.org/id/metropolitan-district-council/leeds,Leeds City Council,30/06/2020,Adults and Health,Services For Older People - 65 And Over,Third Party Payments,Nursing Home,570,24/06/2020,2006-00218,0.00,14891.61,R,Acre Green,No
Http://opendatacommunities.org/id/metropolitan-district-council/leeds,Leeds City Council,30/06/2020,Adults and Health,Services For Older People - 65 And Over,Third Party Payments,Residential,580,24/06/2020,2006-00219,0.00,3876.60,R,Acre Green,No
Http://opendatacommunities.org/id/metropolitan-district-council/leeds,Leeds City Council,30/06/2020,Adults and Health,Services For Older People Under 65 P/Dis,Third Party Payments,Nursing Home,570,24/06/2020,2006-00220,0.00,2360.00,R,Acre Green,No
Http://opendatacommunities.org/id/metropolitan-district-council/leeds,Leeds City Council,30/06/2020,Adults and Health,Services For Older People Under 65 P/Dis,Third Party Payments,Residential,580,24/06/2020,2006-00221,0.00,1642.60,R,Acre Green,No
Http://opendatacommunities.org/id/metropolitan-district-council/leeds,Leeds City Council,30/06/2020,Children and Families,Social Care,Third Party Payments,Services Rendered By Other Organisations,511,03/06/2020,2006-00222,0.00,2090.88,R,Acre Wood Day Nursery,No
Http://opendatacommunities.org/id/metropolitan-district-council/leeds,Leeds City Council,30/06/2020,Children and Families,Social Care,Third Party Payments,Services Rendered By Other Organisations,511,05/06/2020,2006-00223,0.00,10722.24,R,Acre Wood Day Nursery,No
Http://opendatacommunities.org/id/metropolitan-district-council/leeds,Leeds City Council,30/06/2020,Insurance,Insurance,Supplies and Services,Insurance Claims,248,10/06/2020,2006-00224,0.00,157.63,R,Acromas Insurance Company Ltd,No
Http://opendatacommunities.org/id/metropolitan-district-council/leeds,Leeds City Council,30/06/2020,Resources and Housing,Technology  ,Supplies and Services,Office Consumables,210,01/05/2020,2006-00225,0.00,253.45,R,Acs Business Supplies Lt,Yes
Http://opendatacommunities.org/id/metropolitan-district-council/leeds,Leeds City Council,30/06/2020,Resources and Housing,Technology  ,Supplies and Services,Office Consumables,210,12/05/2020,2006-00226,0.00,-48.50,R,Acs Business Supplies Lt,Yes
Http://opendatacommunities.org/id/metropolitan-district-council/leeds,Leeds City Council,30/06/2020,Resources and Housing,Technology  ,Supplies and Services,Office Consumables,210,12/05/2020,2006-00227,0.00,373.45,R,Acs Business Supplies Lt,Yes
Http://opendatacommunities.org/id/metropolitan-district-council/leeds,Leeds City Council,30/06/2020,Resources and Housing,Technology  ,Supplies and Services,Computer Software & Equipment,214,21/05/2020,2006-00228,0.00,2575.95,R,Acs Business Supplies Lt,Yes
Http://opendatacommunities.org/id/metropolitan-district-council/leeds,Leeds City Council,30/06/2020,City Development,Highways,Supplies and Services,Operational Materials,205,08/06/2020,2006-00229,0.00,756.10,R,Actavo Hire And Sales Uk Limited,No
Http://opendatacommunities.org/id/metropolitan-district-council/leeds,Leeds City Council,30/06/2020,Children and Families,Social Care,Third Party Payments,Independent Fostering Agencies,509,22/06/2020,2006-00230,0.00,5163.67,R,Action For Children Services Ltd,No
Http://opendatacommunities.org/id/metropolitan-district-council/leeds,Leeds City Council,30/06/2020,Children and Families,Social Care,Third Party Payments,Independent Fostering Agencies,509,22/06/2020,2006-00231,0.00,-4776.48,R,Action For Children Services Ltd,No
Http://opendatacommunities.org/id/metropolitan-district-council/leeds,Leeds City Council,30/06/2020,Children and Families,Social Care,Third Party Payments,Independent Fostering Agencies,509,22/06/2020,2006-00232,0.00,4664.00,R,Action For Children Services Ltd,No
Http://opendatacommunities.org/id/metropolitan-district-council/leeds,Leeds City Council,30/06/2020,Children and Families,Social Care,Third Party Payments,Services Rendered By Other Organisations,511,03/06/2020,2006-00233,0.00,411.84,R,ACTIVE KIDS YEADON LLP,No
Http://opendatacommunities.org/id/metropolitan-district-council/leeds,Leeds City Council,30/06/2020,Children and Families,Social Care,Third Party Payments,Services Rendered By Other Organisations,511,05/06/2020,2006-00234,0.00,6616.43,R,ACTIVE KIDS YEADON LLP,No
Http://opendatacommunities.org/id/metropolitan-district-council/leeds,Leeds City Council as Accountable Body,30/06/2020,Social Services Pooled Budgets,Leeds Community Equip Store Pooled Budgt,Supplies and Services,Other Equipment,203,05/06/2020,2006-00235,0.00,76.00,R,Active Mobility Centre Ltd,No
Http://opendatacommunities.org/id/metropolitan-district-council/leeds,Leeds City Council as Accountable Body,30/06/2020,Social Services Pooled Budgets,Leeds Community Equip Store Pooled Budgt,Supplies and Services,Other Equipment,203,30/06/2020,2006-00236,0.00,76.00,R,Active Mobility Centre Ltd,No
Http://opendatacommunities.org/id/metropolitan-district-council/leeds,Leeds City Council,30/06/2020,Adults and Health,Services For Adults Under 65 Mental/Dis,Third Party Payments,Sheltered Accommodation,569,24/06/2020,2006-00237,0.00,12037.32,R,Active Pathways,No
Http://opendatacommunities.org/id/metropolitan-district-council/leeds,Leeds City Council,30/06/2020,Adults and Health,Services For Older People Under 65 P/Dis,Third Party Payments,Sheltered Accommodation,569,24/06/2020,2006-00238,0.00,3320.68,R,Active Pathways,No
Http://opendatacommunities.org/id/metropolitan-district-council/leeds,Leeds City Council as Accountable Body,30/06/2020,Social Services Pooled Budgets,Jcs For People With Learning Disabilitie,Third Party Payments,Sheltered Accommodation,569,24/06/2020,2006-00239,0.00,8301.68,R,Active Pathways,No
Http://opendatacommunities.org/id/metropolitan-district-council/leeds,Leeds City Council,30/06/2020,Communities and Environment,Parks and Countryside  ,Supplies and Services,Operational Materials,205,19/05/2020,2006-00240,0.00,630.56,R,Active Workwear,Yes
Http://opendatacommunities.org/id/metropolitan-district-council/leeds,Leeds City Council,30/06/2020,Communities and Environment,Waste Management,Supplies and Services,Recycling & Reuse Charges,234,05/06/2020,2006-00241,0.00,978.66,R,Acumen Waste Services Ltd,No
Http://opendatacommunities.org/id/metropolitan-district-council/leeds,Leeds City Council,30/06/2020,Communities and Environment,Waste Management,Supplies and Services,Recycling & Reuse Charges,234,16/06/2020,2006-00242,0.00,1017.01,R,Acumen Waste Services Ltd,No
Http://opendatacommunities.org/id/metropolitan-district-council/leeds,Leeds City Council,30/06/2020,Communities and Environment,Waste Management,Supplies and Services,Recycling & Reuse Charges,234,19/06/2020,2006-00243,0.00,1944.53,R,Acumen Waste Services Ltd,No
Http://opendatacommunities.org/id/metropolitan-district-council/leeds,Leeds City Council,30/06/2020,Communities and Environment,Cleaner Neighbourhood Teams,Premises,Removal Of Workplace Waste,126,24/06/2020,2006-00244,0.00,116.60,R,Acumen Waste Services Ltd,No
Http://opendatacommunities.org/id/metropolitan-district-council/leeds,Leeds City Council,30/06/2020,Communities and Environment,Waste Management,Supplies and Services,Recycling & Reuse Charges,234,25/06/2020,2006-00245,0.00,1999.21,R,Acumen Waste Services Ltd,No
Http://opendatacommunities.org/id/metropolitan-district-council/leeds,Leeds City Council,30/06/2020,Communities and Environment,Cleaner Neighbourhood Teams,Premises,Removal Of Workplace Waste,126,25/06/2020,2006-00246,0.00,116.60,R,Acumen Waste Services Ltd,No
Http://opendatacommunities.org/id/metropolitan-district-council/leeds,Leeds City Council,30/06/2020,City Development,Economic Development,Supplies and Services,Grants To Businesses,243,16/06/2020,2006-00247,0.00,10000.00,R,Acute Care Chiropractic Clinic Ltd,No
Http://opendatacommunities.org/id/metropolitan-district-council/leeds,Leeds City Council,30/06/2020,Resources and Housing,Shared Services,Supplies and Services,Other Hired And Contracted Services,265,02/06/2020,2006-00248,0.00,394.00,R,AD3 Envelope Printers Limited,No
Http://opendatacommunities.org/id/metropolitan-district-council/leeds,Leeds City Council,30/06/2020,Resources and Housing,Shared Services,Supplies and Services,Operational Materials,205,25/06/2020,2006-00249,0.00,1131.75,R,AD3 Envelope Printers Limited,No
Http://opendatacommunities.org/id/metropolitan-district-council/leeds,Leeds City Council,30/06/2020,Communities and Environment,Elections  Licensing and Registration,Income,Admissions  Booking Fees & Ticket Sales,933,11/06/2020,2006-00250,0.00,277.00,R,REDACTED PERSONAL DATA,No
Http://opendatacommunities.org/id/metropolitan-district-council/leeds,Leeds City Council,30/06/2020,Children and Families,Social Care,Transfer Payments,Leaving Care Allowances,634,12/06/2020,2006-00251,0.00,34.00,R,REDACTED PERSONAL DATA,No
Http://opendatacommunities.org/id/metropolitan-district-council/leeds,Leeds City Council,30/06/2020,Adults and Health,Services For Older People - 65 And Over,Third Party Payments,Nursing Home,570,24/06/2020,2006-00252,0.00,2584.00,R,Adbolton Hall,No
Http://opendatacommunities.org/id/metropolitan-district-council/leeds,Leeds City Council,30/06/2020,City Development,Economic Development,Supplies and Services,Grants To Businesses,243,25/06/2020,2006-00253,0.00,10000.00,R,Addlestone Keane Ltd Solicitors,No
Http://opendatacommunities.org/id/metropolitan-district-council/leeds,Leeds City Council,30/06/2020,Resources and Housing,Technology  ,Employees,Agency Staff,8,04/05/2020,2006-00254,0.00,27302.15,R,Adecco Alfred Marks,Yes
Http://opendatacommunities.org/id/metropolitan-district-council/leeds,Leeds City Council,30/06/2020,Resources and Housing,Technology  ,Employees,Agency Staff,8,12/05/2020,2006-00255,0.00,33452.87,R,Adecco Alfred Marks,Yes
Http://opendatacommunities.org/id/metropolitan-district-council/leeds,Leeds City Council,30/06/2020,Resources and Housing,Technology  ,Employees,Agency Staff,8,15/05/2020,2006-00256,0.00,8792.40,R,Adecco Alfred Marks,Yes
Http://opendatacommunities.org/id/metropolitan-district-council/leeds,Leeds City Council,30/06/2020,Resources and Housing,Technology  ,Employees,Agency Staff,8,26/05/2020,2006-00257,0.00,52071.51,R,Adecco Alfred Marks,Yes
Http://opendatacommunities.org/id/metropolitan-district-council/leeds,Leeds City Council,30/06/2020,Children and Families,Social Care,Third Party Payments,Services Rendered By Voluntary Sector,505,03/06/2020,2006-00258,0.00,1520.64,R,ADEL PRE SCHOOL,No
Http://opendatacommunities.org/id/metropolitan-district-council/leeds,Leeds City Council,30/06/2020,Children and Families,Social Care,Third Party Payments,Services Rendered By Voluntary Sector,505,05/06/2020,2006-00259,0.00,6710.16,R,ADEL PRE SCHOOL,No
Http://opendatacommunities.org/id/metropolitan-district-council/leeds,Leeds City Council,30/06/2020,City Development,Economic Development,Supplies and Services,Grants To Businesses,243,17/06/2020,2006-00260,0.00,4676.00,R,Adel Sports And Social Club,No
Http://opendatacommunities.org/id/metropolitan-district-council/leeds,Leeds City Council,30/06/2020,Children and Families,Social Care,Third Party Payments,Services Rendered By Other Organisations,511,03/06/2020,2006-00261,0.00,380.16,R,REDACTED PERSONAL DATA,No
Http://opendatacommunities.org/id/metropolitan-district-council/leeds,Leeds City Council,30/06/2020,Children and Families,Social Care,Third Party Payments,Services Rendered By Other Organisations,511,05/06/2020,2006-00262,0.00,758.61,R,REDACTED PERSONAL DATA,No
Http://opendatacommunities.org/id/metropolitan-district-council/leeds,Leeds City Council,30/06/2020,City Development,Support Services,Supplies and Services,Memberships,226,10/06/2020,2006-00263,0.00,2120.00,R,ADEPT,No
Http://opendatacommunities.org/id/metropolitan-district-council/leeds,Leeds City Council,30/06/2020,Resources and Housing,Leeds Building Services,Supplies and Services,Operational Materials,205,02/06/2020,2006-00264,0.00,373.84,R,ADI Global,No
Http://opendatacommunities.org/id/metropolitan-district-council/leeds,Leeds City Council,30/06/2020,Resources and Housing,Leeds Building Services,Supplies and Services,Operational Materials,205,09/06/2020,2006-00265,0.00,1031.53,R,ADI Global,No
Http://opendatacommunities.org/id/metropolitan-district-council/leeds,Leeds City Council,30/06/2020,Resources and Housing,Leeds Building Services,Supplies and Services,Operational Materials,205,10/06/2020,2006-00266,0.00,641.56,R,ADI Global,No
Http://opendatacommunities.org/id/metropolitan-district-council/leeds,Leeds City Council,30/06/2020,Resources and Housing,Leeds Building Services,Supplies and Services,STORES - CENTRAL AND OTHER DEPOTS,5,16/06/2020,2006-00267,0.00,1050.00,R,ADI Global,No
Http://opendatacommunities.org/id/metropolitan-district-council/leeds,Leeds City Council,30/06/2020,Resources and Housing,Leeds Building Services,Supplies and Services,Operational Materials,205,22/06/2020,2006-00268,0.00,1190.67,R,ADI Global,No
Http://opendatacommunities.org/id/metropolitan-district-council/leeds,Leeds City Council,30/06/2020,Children and Families,Social Care  ,Premises,Cleaning Maintenance & Toiletries,127,05/05/2020,2006-00269,0.00,104.07,R,Admiral Cleaning Suppl,Yes
Http://opendatacommunities.org/id/metropolitan-district-council/leeds,Leeds City Council,30/06/2020,Insurance,Insurance,Supplies and Services,Insurance Claims,248,12/06/2020,2006-00270,0.00,240.00,R,Admiral Law,No
Http://opendatacommunities.org/id/metropolitan-district-council/leeds,Leeds City Council,30/06/2020,City Development,Libraries  Arts & Heritage  ,Supplies and Services,Computer Software & Equipment,214,02/05/2020,2006-00271,0.00,9.98,R,Adobe Photogphy Plan,Yes
Http://opendatacommunities.org/id/metropolitan-district-council/leeds,Leeds City Council,30/06/2020,Children and Families,Social Care,Third Party Payments,Independent Fostering Agencies,509,01/06/2020,2006-00272,0.00,3390.00,R,Adolescent And Childrens Trust,No
Http://opendatacommunities.org/id/metropolitan-district-council/leeds,Leeds City Council,30/06/2020,Children and Families,Social Care,Third Party Payments,Independent Fostering Agencies,509,09/06/2020,2006-00273,0.00,1000.00,R,Adolescent And Childrens Trust,No
Http://opendatacommunities.org/id/metropolitan-district-council/leeds,Leeds City Council,30/06/2020,Children and Families,Social Care,Third Party Payments,Independent Fostering Agencies,509,09/06/2020,2006-00274,0.00,980.46,R,Adolescent And Childrens Trust,No
Http://opendatacommunities.org/id/metropolitan-district-council/leeds,Leeds City Council,30/06/2020,Children and Families,Social Care,Third Party Payments,Independent Fostering Agencies,509,09/06/2020,2006-00275,0.00,3096.07,R,Adolescent And Childrens Trust,No
Http://opendatacommunities.org/id/metropolitan-district-council/leeds,Leeds City Council,30/06/2020,Children and Families,Social Care,Third Party Payments,Independent Fostering Agencies,509,23/06/2020,2006-00276,0.00,-125.00,R,Adolescent And Childrens Trust,No
Http://opendatacommunities.org/id/metropolitan-district-council/leeds,Leeds City Council,30/06/2020,Children and Families,Social Care,Third Party Payments,Independent Fostering Agencies,509,23/06/2020,2006-00277,0.00,3503.00,R,Adolescent And Childrens Trust,No
Http://opendatacommunities.org/id/metropolitan-district-council/leeds,Leeds City Council,30/06/2020,Children and Families,Social Care,Third Party Payments,Independent Fostering Agencies,509,24/06/2020,2006-00278,0.00,3689.00,R,Adolescent And Childrens Trust,No
Http://opendatacommunities.org/id/metropolitan-district-council/leeds,Leeds City Council,30/06/2020,Children and Families,Social Care,Third Party Payments,Independent Fostering Agencies,509,24/06/2020,2006-00279,0.00,3503.00,R,Adolescent And Childrens Trust,No
Http://opendatacommunities.org/id/metropolitan-district-council/leeds,Leeds City Council,30/06/2020,Children and Families,Social Care,Third Party Payments,Independent Fostering Agencies,509,24/06/2020,2006-00280,0.00,3503.00,R,Adolescent And Childrens Trust,No
Http://opendatacommunities.org/id/metropolitan-district-council/leeds,Leeds City Council,30/06/2020,Children and Families,Social Care,Third Party Payments,Independent Fostering Agencies,509,24/06/2020,2006-00281,0.00,3503.00,R,Adolescent And Childrens Trust,No
Http://opendatacommunities.org/id/metropolitan-district-council/leeds,Leeds City Council,30/06/2020,Children and Families,Social Care,Third Party Payments,Independent Fostering Agencies,509,24/06/2020,2006-00282,0.00,3689.00,R,Adolescent And Childrens Trust,No
Http://opendatacommunities.org/id/metropolitan-district-council/leeds,Leeds City Council,30/06/2020,Children and Families,Social Care,Third Party Payments,Independent Fostering Agencies,509,24/06/2020,2006-00283,0.00,3689.00,R,Adolescent And Childrens Trust,No
Http://opendatacommunities.org/id/metropolitan-district-council/leeds,Leeds City Council,30/06/2020,Children and Families,Social Care,Third Party Payments,Independent Fostering Agencies,509,24/06/2020,2006-00284,0.00,3503.00,R,Adolescent And Childrens Trust,No
Http://opendatacommunities.org/id/metropolitan-district-council/leeds,Leeds City Council,30/06/2020,Children and Families,Social Care,Third Party Payments,Independent Fostering Agencies,509,24/06/2020,2006-00285,0.00,3503.00,R,Adolescent And Childrens Trust,No
Http://opendatacommunities.org/id/metropolitan-district-council/leeds,Leeds City Council,30/06/2020,Children and Families,Social Care,Third Party Payments,Independent Fostering Agencies,509,24/06/2020,2006-00286,0.00,3503.00,R,Adolescent And Childrens Trust,No
Http://opendatacommunities.org/id/metropolitan-district-council/leeds,Leeds City Council,30/06/2020,Children and Families,Social Care,Third Party Payments,Independent Fostering Agencies,509,24/06/2020,2006-00287,0.00,3503.00,R,Adolescent And Childrens Trust,No
Http://opendatacommunities.org/id/metropolitan-district-council/leeds,Leeds City Council,30/06/2020,Children and Families,Social Care,Third Party Payments,Independent Fostering Agencies,509,24/06/2020,2006-00288,0.00,4534.99,R,Adolescent And Childrens Trust,No
Http://opendatacommunities.org/id/metropolitan-district-council/leeds,Leeds City Council,30/06/2020,Children and Families,Social Care,Third Party Payments,Independent Fostering Agencies,509,24/06/2020,2006-00289,0.00,3689.00,R,Adolescent And Childrens Trust,No
Http://opendatacommunities.org/id/metropolitan-district-council/leeds,Leeds City Council,30/06/2020,Children and Families,Social Care,Third Party Payments,Independent Fostering Agencies,509,24/06/2020,2006-00290,0.00,3689.00,R,Adolescent And Childrens Trust,No
Http://opendatacommunities.org/id/metropolitan-district-council/leeds,Leeds City Council,30/06/2020,Adults and Health,Social Services Support Services,Employees,Training & Development,70,12/06/2020,2006-00291,0.00,13.00,R,REDACTED PERSONAL DATA,No
Http://opendatacommunities.org/id/metropolitan-district-council/leeds,Leeds City Council as Accountable Body,30/06/2020,Social Services Pooled Budgets,Jcs For People With Learning Disabilitie,Third Party Payments,Residential,580,15/06/2020,2006-00292,0.00,2609.36,R,ADRIAN HOUSE,No
Http://opendatacommunities.org/id/metropolitan-district-council/leeds,Leeds City Council as Accountable Body,30/06/2020,Social Services Pooled Budgets,Jcs For People With Learning Disabilitie,Third Party Payments,Residential,580,23/06/2020,2006-00293,0.00,2609.36,R,ADRIAN HOUSE,No
Http://opendatacommunities.org/id/metropolitan-district-council/leeds,Leeds City Council,30/06/2020,Resources and Housing,Corporate Property Management,Premises,Maintenance Of Buildings,101,03/06/2020,2006-00294,0.00,1485.37,R,ADT Fire And Security Plc,No
Http://opendatacommunities.org/id/metropolitan-district-council/leeds,Leeds City Council,30/06/2020,Strategic Landlord,Property and Contracts,Premises,General Maintenance,104,25/06/2020,2006-00295,0.00,490.35,R,ADT Fire And Security Plc,No
Http://opendatacommunities.org/id/metropolitan-district-council/leeds,Leeds City Council,30/06/2020,Strategic Landlord,Property and Contracts,Premises,General Maintenance,104,26/06/2020,2006-00296,0.00,471.72,R,ADT Fire And Security Plc,No
Http://opendatacommunities.org/id/metropolitan-district-council/leeds,Leeds City Council,30/06/2020,Children and Families,Social Care,Support Services,Legal Disbursements,411,16/06/2020,2006-00297,0.00,627.00,R,ADVANCED CHILD CARE ASSESSMENTS LTD,No
Http://opendatacommunities.org/id/metropolitan-district-council/leeds,Leeds City Council,30/06/2020,Children and Families,Social Care,Support Services,Legal Disbursements,411,24/06/2020,2006-00298,0.00,322.50,R,ADVANCED CHILD CARE ASSESSMENTS LTD,No
Http://opendatacommunities.org/id/metropolitan-district-council/leeds,Leeds City Council,30/06/2020,Resources and Housing,Strategic Housing Partnerships,Capital,CONSTRUCTION,3,18/06/2020,2006-00299,0.00,1800.00,C,Advent CSS Limited,No
Http://opendatacommunities.org/id/metropolitan-district-council/leeds,Leeds City Council as Accountable Body,30/06/2020,Social Services Pooled Budgets,Jcs For People With Learning Disabilitie,Third Party Payments,Residential,580,24/06/2020,2006-00300,0.00,17134.76,R,ADVITAM LTD,No
Http://opendatacommunities.org/id/metropolitan-district-council/leeds,Leeds City Council,30/06/2020,Adults and Health,Services For Older People - 65 And Over,Third Party Payments,Payments To Voluntary Organisations,561,09/06/2020,2006-00301,0.00,103916.67,R,Advonet,No
Http://opendatacommunities.org/id/metropolitan-district-council/leeds,Leeds City Council,30/06/2020,Adults and Health,Services For Adults Under 65 Learn/Dis,Third Party Payments,Payments To Voluntary Organisations,561,17/06/2020,2006-00302,0.00,17944.96,R,Advonet,No
Http://opendatacommunities.org/id/metropolitan-district-council/leeds,Leeds City Council,30/06/2020,Adults and Health,Services For Older People - 65 And Over,Third Party Payments,Payments To Voluntary Organisations,561,22/06/2020,2006-00303,0.00,103916.67,R,Advonet,No
Http://opendatacommunities.org/id/metropolitan-district-council/leeds,Leeds City Council,30/06/2020,Children and Families,Social Care,Third Party Payments,Section 17,551,29/06/2020,2006-00304,0.00,360.00,R,Advonet,No
Http://opendatacommunities.org/id/metropolitan-district-council/leeds,Leeds City Council,30/06/2020,Children and Families,Social Care,Third Party Payments,Section 17,551,30/06/2020,2006-00305,0.00,20.10,R,Advonet,No
Http://opendatacommunities.org/id/metropolitan-district-council/leeds,Leeds City Council,30/06/2020,Children and Families,Social Care,Third Party Payments,Section 17,551,30/06/2020,2006-00306,0.00,150.00,R,Advonet,No
Http://opendatacommunities.org/id/metropolitan-district-council/leeds,Leeds City Council,30/06/2020,Adults and Health,Services For Adults Under 65 Mental/Dis,Third Party Payments,Fees - Level 4,520,03/06/2020,2006-00307,0.00,200.00,R,AE BIA Assessments Limited,No
Http://opendatacommunities.org/id/metropolitan-district-council/leeds,Leeds City Council,30/06/2020,Adults and Health,Services For Adults Under 65 Mental/Dis,Third Party Payments,Fees - Level 4,520,03/06/2020,2006-00308,0.00,200.00,R,AE BIA Assessments Limited,No
Http://opendatacommunities.org/id/metropolitan-district-council/leeds,Leeds City Council,30/06/2020,Adults and Health,Services For Adults Under 65 Mental/Dis,Third Party Payments,Fees - Level 4,520,09/06/2020,2006-00309,0.00,200.00,R,AE BIA Assessments Limited,No
Http://opendatacommunities.org/id/metropolitan-district-council/leeds,Leeds City Council,30/06/2020,Adults and Health,Services For Adults Under 65 Mental/Dis,Third Party Payments,Fees - Level 4,520,09/06/2020,2006-00310,0.00,200.00,R,AE BIA Assessments Limited,No
Http://opendatacommunities.org/id/metropolitan-district-council/leeds,Leeds City Council,30/06/2020,Adults and Health,Services For Adults Under 65 Mental/Dis,Third Party Payments,Fees - Level 4,520,09/06/2020,2006-00311,0.00,200.00,R,AE BIA Assessments Limited,No
Http://opendatacommunities.org/id/metropolitan-district-council/leeds,Leeds City Council,30/06/2020,Adults and Health,Services For Adults Under 65 Mental/Dis,Third Party Payments,Fees - Level 4,520,09/06/2020,2006-00312,0.00,200.00,R,AE BIA Assessments Limited,No
Http://opendatacommunities.org/id/metropolitan-district-council/leeds,Leeds City Council,30/06/2020,Adults and Health,Services For Adults Under 65 Mental/Dis,Third Party Payments,Fees - Level 4,520,09/06/2020,2006-00313,0.00,200.00,R,AE BIA Assessments Limited,No
Http://opendatacommunities.org/id/metropolitan-district-council/leeds,Leeds City Council,30/06/2020,Adults and Health,Services For Adults Under 65 Mental/Dis,Third Party Payments,Fees - Level 4,520,09/06/2020,2006-00314,0.00,200.00,R,AE BIA Assessments Limited,No
Http://opendatacommunities.org/id/metropolitan-district-council/leeds,Leeds City Council,30/06/2020,Adults and Health,Services For Adults Under 65 Mental/Dis,Third Party Payments,Fees - Level 4,520,09/06/2020,2006-00315,0.00,200.00,R,AE BIA Assessments Limited,No
Http://opendatacommunities.org/id/metropolitan-district-council/leeds,Leeds City Council,30/06/2020,Adults and Health,Services For Adults Under 65 Mental/Dis,Third Party Payments,Fees - Level 4,520,11/06/2020,2006-00316,0.00,200.00,R,AE BIA Assessments Limited,No
Http://opendatacommunities.org/id/metropolitan-district-council/leeds,Leeds City Council,30/06/2020,Adults and Health,Services For Adults Under 65 Mental/Dis,Third Party Payments,Fees - Level 4,520,11/06/2020,2006-00317,0.00,200.00,R,AE BIA Assessments Limited,No
Http://opendatacommunities.org/id/metropolitan-district-council/leeds,Leeds City Council,30/06/2020,Adults and Health,Services For Adults Under 65 Mental/Dis,Third Party Payments,Fees - Level 4,520,17/06/2020,2006-00318,0.00,200.00,R,AE BIA Assessments Limited,No
Http://opendatacommunities.org/id/metropolitan-district-council/leeds,Leeds City Council,30/06/2020,Adults and Health,Services For Adults Under 65 Mental/Dis,Third Party Payments,Fees - Level 4,520,17/06/2020,2006-00319,0.00,200.00,R,AE BIA Assessments Limited,No
Http://opendatacommunities.org/id/metropolitan-district-council/leeds,Leeds City Council,30/06/2020,Adults and Health,Services For Adults Under 65 Mental/Dis,Third Party Payments,Fees - Level 4,520,17/06/2020,2006-00320,0.00,200.00,R,AE BIA Assessments Limited,No
Http://opendatacommunities.org/id/metropolitan-district-council/leeds,Leeds City Council,30/06/2020,Adults and Health,Services For Adults Under 65 Mental/Dis,Third Party Payments,Fees - Level 4,520,18/06/2020,2006-00321,0.00,200.00,R,AE BIA Assessments Limited,No
Http://opendatacommunities.org/id/metropolitan-district-council/leeds,Leeds City Council,30/06/2020,Adults and Health,Services For Adults Under 65 Mental/Dis,Third Party Payments,Fees - Level 4,520,18/06/2020,2006-00322,0.00,200.00,R,AE BIA Assessments Limited,No
Http://opendatacommunities.org/id/metropolitan-district-council/leeds,Leeds City Council,30/06/2020,Adults and Health,Services For Adults Under 65 Mental/Dis,Third Party Payments,Fees - Level 4,520,18/06/2020,2006-00323,0.00,200.00,R,AE BIA Assessments Limited,No
Http://opendatacommunities.org/id/metropolitan-district-council/leeds,Leeds City Council,30/06/2020,Adults and Health,Services For Adults Under 65 Mental/Dis,Third Party Payments,Fees - Level 4,520,22/06/2020,2006-00324,0.00,200.00,R,AE BIA Assessments Limited,No
Http://opendatacommunities.org/id/metropolitan-district-council/leeds,Leeds City Council,30/06/2020,Adults and Health,Services For Adults Under 65 Mental/Dis,Third Party Payments,Fees - Level 4,520,22/06/2020,2006-00325,0.00,200.00,R,AE BIA Assessments Limited,No
Http://opendatacommunities.org/id/metropolitan-district-council/leeds,Leeds City Council,30/06/2020,Adults and Health,Services For Adults Under 65 Mental/Dis,Third Party Payments,Fees - Level 4,520,23/06/2020,2006-00326,0.00,200.00,R,AE BIA Assessments Limited,No
Http://opendatacommunities.org/id/metropolitan-district-council/leeds,Leeds City Council,30/06/2020,Adults and Health,Services For Adults Under 65 Mental/Dis,Third Party Payments,Fees - Level 4,520,24/06/2020,2006-00327,0.00,200.00,R,AE BIA Assessments Limited,No
Http://opendatacommunities.org/id/metropolitan-district-council/leeds,Leeds City Council,30/06/2020,Adults and Health,Services For Adults Under 65 Mental/Dis,Third Party Payments,Fees - Level 4,520,24/06/2020,2006-00328,0.00,200.00,R,AE BIA Assessments Limited,No
Http://opendatacommunities.org/id/metropolitan-district-council/leeds,Leeds City Council,30/06/2020,Adults and Health,Services For Adults Under 65 Mental/Dis,Third Party Payments,Fees - Level 4,520,24/06/2020,2006-00329,0.00,200.00,R,AE BIA Assessments Limited,No
Http://opendatacommunities.org/id/metropolitan-district-council/leeds,Leeds City Council,30/06/2020,Adults and Health,Services For Adults Under 65 Mental/Dis,Third Party Payments,Fees - Level 4,520,24/06/2020,2006-00330,0.00,200.00,R,AE BIA Assessments Limited,No
Http://opendatacommunities.org/id/metropolitan-district-council/leeds,Leeds City Council,30/06/2020,Adults and Health,Services For Adults Under 65 Mental/Dis,Third Party Payments,Fees - Level 4,520,24/06/2020,2006-00331,0.00,200.00,R,AE BIA Assessments Limited,No
Http://opendatacommunities.org/id/metropolitan-district-council/leeds,Leeds City Council,30/06/2020,Adults and Health,Services For Adults Under 65 Mental/Dis,Third Party Payments,Fees - Level 4,520,25/06/2020,2006-00332,0.00,200.00,R,AE BIA Assessments Limited,No
Http://opendatacommunities.org/id/metropolitan-district-council/leeds,Leeds City Council,30/06/2020,Adults and Health,Services For Adults Under 65 Mental/Dis,Third Party Payments,Fees - Level 4,520,29/06/2020,2006-00333,0.00,200.00,R,AE BIA Assessments Limited,No
Http://opendatacommunities.org/id/metropolitan-district-council/leeds,Leeds City Council,30/06/2020,Adults and Health,Services For Adults Under 65 Mental/Dis,Third Party Payments,Fees - Level 4,520,30/06/2020,2006-00334,0.00,200.00,R,AE BIA Assessments Limited,No
Http://opendatacommunities.org/id/metropolitan-district-council/leeds,Leeds City Council,30/06/2020,Adults and Health,Services For Adults Under 65 Mental/Dis,Third Party Payments,Fees - Level 4,520,30/06/2020,2006-00335,0.00,200.00,R,AE BIA Assessments Limited,No
Http://opendatacommunities.org/id/metropolitan-district-council/leeds,Leeds City Council,30/06/2020,Adults and Health,Services For Adults Under 65 Mental/Dis,Third Party Payments,Fees - Level 4,520,30/06/2020,2006-00336,0.00,200.00,R,AE BIA Assessments Limited,No
Http://opendatacommunities.org/id/metropolitan-district-council/leeds,Leeds City Council,30/06/2020,Adults and Health,Services For Adults Under 65 Mental/Dis,Third Party Payments,Fees - Level 4,520,30/06/2020,2006-00337,0.00,200.00,R,AE BIA Assessments Limited,No
Http://opendatacommunities.org/id/metropolitan-district-council/leeds,Leeds City Council,30/06/2020,City Development,Highways,Capital,OTHER COSTS,7,03/06/2020,2006-00338,0.00,37681.14,C,Aecom Limited,No
Http://opendatacommunities.org/id/metropolitan-district-council/leeds,Leeds City Council,30/06/2020,City Development,Highways,Capital,OTHER COSTS,7,17/06/2020,2006-00339,0.00,36264.76,C,Aecom Limited,No
Http://opendatacommunities.org/id/metropolitan-district-council/leeds,Leeds City Council,30/06/2020,City Development,Highways,Capital,OTHER COSTS,7,19/06/2020,2006-00340,0.00,51320.59,C,Aecom Limited,No
Http://opendatacommunities.org/id/metropolitan-district-council/leeds,Leeds City Council,30/06/2020,Adults and Health,Services For Older People - 65 And Over,Third Party Payments,Home Care,568,03/06/2020,2006-00341,0.00,3475.71,R,Aegis Care Solutions Ltd,No
Http://opendatacommunities.org/id/metropolitan-district-council/leeds,Leeds City Council,30/06/2020,Adults and Health,Services For Older People Under 65 P/Dis,Third Party Payments,Home Care,568,03/06/2020,2006-00342,0.00,4093.60,R,Aegis Care Solutions Ltd,No
Http://opendatacommunities.org/id/metropolitan-district-council/leeds,Leeds City Council as Accountable Body,30/06/2020,Social Services Pooled Budgets,Jcs For People With Learning Disabilitie,Third Party Payments,Home Care,568,03/06/2020,2006-00343,0.00,1948.80,R,Aegis Care Solutions Ltd,No
Http://opendatacommunities.org/id/metropolitan-district-council/leeds,Leeds City Council,30/06/2020,Adults and Health,Services For Older People Under 65 P/Dis,Third Party Payments,Day Centre,564,05/06/2020,2006-00344,0.00,537.32,R,Affinity Trust,No
Http://opendatacommunities.org/id/metropolitan-district-council/leeds,Leeds City Council,30/06/2020,Adults and Health,Services For Older People - 65 And Over,Third Party Payments,Home Care,568,05/06/2020,2006-00345,0.00,511.36,R,Affinity Trust,No
Http://opendatacommunities.org/id/metropolitan-district-council/leeds,Leeds City Council as Accountable Body,30/06/2020,Social Services Pooled Budgets,Jcs For People With Learning Disabilitie,Third Party Payments,Home Care,568,05/06/2020,2006-00346,0.00,639.20,R,Affinity Trust,No
Http://opendatacommunities.org/id/metropolitan-district-council/leeds,Leeds City Council,30/06/2020,Adults and Health,Services For Adults Under 65 Mental/Dis,Third Party Payments,Home Care,568,05/06/2020,2006-00347,0.00,511.36,R,Affinity Trust,No
Http://opendatacommunities.org/id/metropolitan-district-council/leeds,Leeds City Council,30/06/2020,Adults and Health,Services For Older People Under 65 P/Dis,Third Party Payments,Home Care,568,05/06/2020,2006-00348,0.00,950.33,R,Affinity Trust,No
Http://opendatacommunities.org/id/metropolitan-district-council/leeds,Leeds City Council,30/06/2020,Adults and Health,Services For Older People Under 65 P/Dis,Third Party Payments,Home Care,568,08/06/2020,2006-00349,0.00,941.92,R,Affinity Trust,No
Http://opendatacommunities.org/id/metropolitan-district-council/leeds,Leeds City Council as Accountable Body,30/06/2020,Social Services Pooled Budgets,Jcs For People With Learning Disabilitie,Third Party Payments,Home Care,568,08/06/2020,2006-00350,0.00,1494.12,R,Affinity Trust,No
Http://opendatacommunities.org/id/metropolitan-district-council/leeds,Leeds City Council as Accountable Body,30/06/2020,Social Services Pooled Budgets,Jcs For People With Learning Disabilitie,Third Party Payments,Home Care,568,10/06/2020,2006-00351,0.00,319.60,R,Affinity Trust,No
Http://opendatacommunities.org/id/metropolitan-district-council/leeds,Leeds City Council,30/06/2020,Adults and Health,Services For Older People - 65 And Over,Third Party Payments,HCAIT Community Support,575,10/06/2020,2006-00352,0.00,575.28,R,Affinity Trust,No
Http://opendatacommunities.org/id/metropolitan-district-council/leeds,Leeds City Council,30/06/2020,Adults and Health,Services For Adults Under 65 Mental/Dis,Third Party Payments,HCAIT Community Support,575,10/06/2020,2006-00353,0.00,336.40,R,Affinity Trust,No
Http://opendatacommunities.org/id/metropolitan-district-council/leeds,Leeds City Council,30/06/2020,Adults and Health,Services For Older People Under 65 P/Dis,Third Party Payments,Sheltered Accommodation,569,24/06/2020,2006-00354,0.00,14367.96,R,Affinity Trust North Divisional Office,No
Http://opendatacommunities.org/id/metropolitan-district-council/leeds,Leeds City Council as Accountable Body,30/06/2020,Social Services Pooled Budgets,Jcs For People With Learning Disabilitie,Third Party Payments,Sheltered Accommodation,569,24/06/2020,2006-00355,0.00,137557.03,R,Affinity Trust North Divisional Office,No
Http://opendatacommunities.org/id/metropolitan-district-council/leeds,Leeds City Council,30/06/2020,Communities and Environment,Parks and Countryside  ,Transport,Hire Of Movable Plant & Machinery,315,04/05/2020,2006-00356,0.00,100.00,R,Afi Uplift,Yes
Http://opendatacommunities.org/id/metropolitan-district-council/leeds,Leeds City Council,30/06/2020,Communities and Environment,Parks and Countryside  ,Transport,External Hire -Occasional,304,04/05/2020,2006-00357,0.00,950.00,R,Afi Uplift,Yes
Http://opendatacommunities.org/id/metropolitan-district-council/leeds,Leeds City Council,30/06/2020,Communities and Environment,Parks and Countryside  ,Transport,External Hire -Occasional,304,04/05/2020,2006-00358,0.00,950.00,R,Afi Uplift,Yes
Http://opendatacommunities.org/id/metropolitan-district-council/leeds,Leeds City Council,30/06/2020,Communities and Environment,Parks and Countryside  ,Transport,Hire Of Movable Plant & Machinery,315,04/05/2020,2006-00359,0.00,100.00,R,Afi Uplift,Yes
Http://opendatacommunities.org/id/metropolitan-district-council/leeds,Leeds City Council,30/06/2020,Communities and Environment,Parks and Countryside  ,Transport,External Hire -Occasional,304,04/05/2020,2006-00360,0.00,950.00,R,Afi Uplift,Yes
Http://opendatacommunities.org/id/metropolitan-district-council/leeds,Leeds City Council,30/06/2020,Communities and Environment,Parks and Countryside  ,Transport,Hire Of Movable Plant & Machinery,315,04/05/2020,2006-00361,0.00,100.00,R,Afi Uplift,Yes
Http://opendatacommunities.org/id/metropolitan-district-council/leeds,Leeds City Council,30/06/2020,Communities and Environment,Parks and Countryside  ,Transport,Hire Of Movable Plant & Machinery,315,04/05/2020,2006-00362,0.00,100.00,R,Afi Uplift,Yes
Http://opendatacommunities.org/id/metropolitan-district-council/leeds,Leeds City Council,30/06/2020,Communities and Environment,Parks and Countryside  ,Transport,External Hire -Occasional,304,04/05/2020,2006-00363,0.00,950.00,R,Afi Uplift,Yes
Http://opendatacommunities.org/id/metropolitan-district-council/leeds,Leeds City Council,30/06/2020,Communities and Environment,Customer Access,Supplies and Services,Other Hired And Contracted Services,265,29/06/2020,2006-00364,0.00,50.00,R,Agency For Good Ltd,No
Http://opendatacommunities.org/id/metropolitan-district-council/leeds,Leeds City Council,30/06/2020,Communities and Environment,Customer Access,Supplies and Services,Other Hired And Contracted Services,265,30/06/2020,2006-00365,0.00,50.00,R,Agency For Good Ltd,No
Http://opendatacommunities.org/id/metropolitan-district-council/leeds,Leeds City Council,30/06/2020,Resources and Housing,Sustainable Energy & Climate Change,Capital,OTHER COSTS,7,05/06/2020,2006-00366,0.00,1500.00,C,REDACTED COMMERCIAL CONFIDENTIALITY,No
Http://opendatacommunities.org/id/metropolitan-district-council/leeds,Leeds City Council,30/06/2020,Communities and Environment,Customer Access,Supplies and Services,Bought In Professional Services,277,24/06/2020,2006-00367,0.00,27.00,R,Ahmed Moustafa Moustafa Mousa,No
Http://opendatacommunities.org/id/metropolitan-district-council/leeds,Leeds City Council,30/06/2020,Children and Families,Social Care,Transfer Payments,Leaving Care Allowances,634,30/06/2020,2006-00368,0.00,70.00,R,REDACTED PERSONAL DATA,No
Http://opendatacommunities.org/id/metropolitan-district-council/leeds,Leeds City Council as Accountable Body,30/06/2020,Social Services Pooled Budgets,Leeds Community Equip Store Pooled Budgt,Supplies and Services,Other Equipment,203,01/06/2020,2006-00369,0.00,1017.05,R,AIDAPT BATHROOMS LTD,No
Http://opendatacommunities.org/id/metropolitan-district-council/leeds,Leeds City Council as Accountable Body,30/06/2020,Social Services Pooled Budgets,Leeds Community Equip Store Pooled Budgt,Supplies and Services,Other Equipment,203,24/06/2020,2006-00370,0.00,2048.20,R,AIDAPT BATHROOMS LTD,No
Http://opendatacommunities.org/id/metropolitan-district-council/leeds,Leeds City Council as Accountable Body,30/06/2020,Social Services Pooled Budgets,Leeds Community Equip Store Pooled Budgt,Supplies and Services,Other Equipment,203,25/06/2020,2006-00371,0.00,390.00,R,AIDAPT BATHROOMS LTD,No
Http://opendatacommunities.org/id/metropolitan-district-council/leeds,Leeds City Council,30/06/2020,Adults and Health,Other Generic Services,Supplies and Services,Operational Furniture And Equipment,203,30/06/2020,2006-00372,0.00,715.00,R,AIDAPT BATHROOMS LTD,No
Http://opendatacommunities.org/id/metropolitan-district-council/leeds,Leeds City Council as Accountable Body,30/06/2020,Social Services Pooled Budgets,Leeds Community Equip Store Pooled Budgt,Supplies and Services,Other Equipment,203,30/06/2020,2006-00373,0.00,129.25,R,AIDAPT BATHROOMS LTD,No
Http://opendatacommunities.org/id/metropolitan-district-council/leeds,Leeds City Council,30/06/2020,Adults and Health,Other Generic Services,Supplies and Services,Operational Furniture And Equipment,203,30/06/2020,2006-00374,0.00,1100.00,R,AIDAPT BATHROOMS LTD,No
Http://opendatacommunities.org/id/metropolitan-district-council/leeds,Leeds City Council,30/06/2020,City Development,Economic Development,Supplies and Services,Grants To Businesses,243,25/06/2020,2006-00375,0.00,10000.00,R,Aim2learn Ltd,No
Http://opendatacommunities.org/id/metropolitan-district-council/leeds,Leeds City Council,30/06/2020,Resources and Housing,Leeds Building Services,Supplies and Services,Operational Materials,205,09/06/2020,2006-00376,0.00,196.32,R,AIR LIQUIDE UK,No
Http://opendatacommunities.org/id/metropolitan-district-council/leeds,Leeds City Council,30/06/2020,Communities and Environment,Environmental Health,Supplies and Services,Other Hired And Contracted Services,265,12/06/2020,2006-00377,0.00,10.45,R,AIR LIQUIDE UK,No
Http://opendatacommunities.org/id/metropolitan-district-council/leeds,Leeds City Council,30/06/2020,Communities and Environment,Environmental Health,Supplies and Services,Other Hired And Contracted Services,265,12/06/2020,2006-00378,0.00,10.45,R,AIR LIQUIDE UK,No
Http://opendatacommunities.org/id/metropolitan-district-council/leeds,Leeds City Council,30/06/2020,Communities and Environment,Environmental Health,Supplies and Services,Other Hired And Contracted Services,265,12/06/2020,2006-00379,0.00,15.93,R,AIR LIQUIDE UK,No
Http://opendatacommunities.org/id/metropolitan-district-council/leeds,Leeds City Council,30/06/2020,Communities and Environment,Environmental Health,Supplies and Services,Other Hired And Contracted Services,265,12/06/2020,2006-00380,0.00,73.15,R,AIR LIQUIDE UK,No
Http://opendatacommunities.org/id/metropolitan-district-council/leeds,Leeds City Council,30/06/2020,Resources and Housing,Leeds Building Services,Supplies and Services,Operational Materials,205,30/06/2020,2006-00381,0.00,196.32,R,AIR LIQUIDE UK,No
Http://opendatacommunities.org/id/metropolitan-district-council/leeds,Leeds City Council,30/06/2020,City Development,Economic Development,Supplies and Services,Memberships,226,23/06/2020,2006-00382,0.00,2709.00,R,AIRDNA,No
Http://opendatacommunities.org/id/metropolitan-district-council/leeds,Leeds City Council,30/06/2020,Resources and Housing,Strategic Housing Partnerships,Capital,CONSTRUCTION,3,11/06/2020,2006-00383,0.00,15000.00,C,Aire Building Services Ltd,No
Http://opendatacommunities.org/id/metropolitan-district-council/leeds,Leeds City Council,30/06/2020,Resources and Housing,Digital and Information Services,Capital,OTHER COSTS,7,24/06/2020,2006-00384,0.00,20050.00,C,Aire Logic Ltd,No
Http://opendatacommunities.org/id/metropolitan-district-council/leeds,Leeds City Council,30/06/2020,Resources and Housing,Digital and Information Services,Capital,OTHER COSTS,7,24/06/2020,2006-00385,0.00,54175.00,C,Aire Logic Ltd,No
Http://opendatacommunities.org/id/metropolitan-district-council/leeds,Leeds City Council,30/06/2020,Communities and Environment,Parks and Countryside,Supplies and Services,Other Hired And Contracted Services,265,11/06/2020,2006-00386,0.00,585.00,R,Aire Valley Tree Services Ltd,No
Http://opendatacommunities.org/id/metropolitan-district-council/leeds,Leeds City Council,30/06/2020,Communities and Environment,Parks and Countryside,Supplies and Services,Other Hired And Contracted Services,265,15/06/2020,2006-00387,0.00,2420.00,R,Aire Valley Tree Services Ltd,No
Http://opendatacommunities.org/id/metropolitan-district-council/leeds,Leeds City Council,30/06/2020,Communities and Environment,Parks and Countryside,Supplies and Services,Other Hired And Contracted Services,265,17/06/2020,2006-00388,0.00,725.00,R,Aire Valley Tree Services Ltd,No
Http://opendatacommunities.org/id/metropolitan-district-council/leeds,Leeds City Council,30/06/2020,Communities and Environment,Parks and Countryside,Supplies and Services,Other Hired And Contracted Services,265,19/06/2020,2006-00389,0.00,200.00,R,Aire Valley Tree Services Ltd,No
Http://opendatacommunities.org/id/metropolitan-district-council/leeds,Leeds City Council,30/06/2020,Communities and Environment,Parks and Countryside,Supplies and Services,Other Hired And Contracted Services,265,26/06/2020,2006-00390,0.00,4180.00,R,Aire Valley Tree Services Ltd,No
Http://opendatacommunities.org/id/metropolitan-district-council/leeds,Leeds City Council,30/06/2020,Communities and Environment,Parks and Countryside,Supplies and Services,Other Hired And Contracted Services,265,29/06/2020,2006-00391,0.00,200.00,R,Aire Valley Tree Services Ltd,No
Http://opendatacommunities.org/id/metropolitan-district-council/leeds,Leeds City Council,30/06/2020,Adults and Health,Services For Older People - 65 And Over,Third Party Payments,Residential Care Dementia,571,24/06/2020,2006-00392,0.00,65054.88,R,Aire View Residential Home,No
Http://opendatacommunities.org/id/metropolitan-district-council/leeds,Leeds City Council,30/06/2020,Adults and Health,Services For Older People - 65 And Over,Third Party Payments,Residential,580,24/06/2020,2006-00393,0.00,6925.84,R,Aire View Residential Home,No
Http://opendatacommunities.org/id/metropolitan-district-council/leeds,Leeds City Council,30/06/2020,City Development,Economic Development,Supplies and Services,Grants To Businesses,243,22/06/2020,2006-00394,0.00,2000.00,R,Aireborough Thai Boxing Limited,No
Http://opendatacommunities.org/id/metropolitan-district-council/leeds,Leeds City Council,30/06/2020,Adults and Health,Services For Older People - 65 And Over,Third Party Payments,Residential Care Dementia,571,24/06/2020,2006-00395,0.00,4952.55,R,Airedale Care Home,No
Http://opendatacommunities.org/id/metropolitan-district-council/leeds,Leeds City Council,30/06/2020,Adults and Health,Services For Older People - 65 And Over,Third Party Payments,Residential,580,24/06/2020,2006-00396,0.00,35695.04,R,Airedale Care Home,No
Http://opendatacommunities.org/id/metropolitan-district-council/leeds,Leeds City Council,30/06/2020,Resources and Housing,Commercial Services,Premises,Fixtures & Fittings,131,19/06/2020,2006-00397,0.00,9598.00,R,AIREDALE CATERING EQUIPMENT LTD,No
Http://opendatacommunities.org/id/metropolitan-district-council/leeds,Leeds City Council,30/06/2020,Resources and Housing,Commercial Services,Premises,Fixtures & Fittings,131,23/06/2020,2006-00398,0.00,11774.00,R,AIREDALE CATERING EQUIPMENT LTD,No
Http://opendatacommunities.org/id/metropolitan-district-council/leeds,Leeds City Council,30/06/2020,Resources and Housing,Commercial Services,Premises,Fixtures & Fittings,131,23/06/2020,2006-00399,0.00,23278.00,R,AIREDALE CATERING EQUIPMENT LTD,No
Http://opendatacommunities.org/id/metropolitan-district-council/leeds,Leeds City Council,30/06/2020,Resources and Housing,Commercial Services,Premises,Fixtures & Fittings,131,23/06/2020,2006-00400,0.00,12355.00,R,AIREDALE CATERING EQUIPMENT LTD,No
Http://opendatacommunities.org/id/metropolitan-district-council/leeds,Leeds City Council,30/06/2020,Resources and Housing,Commercial Services,Supplies and Services,Operational Furniture And Equipment,203,24/06/2020,2006-00401,0.00,1535.00,R,AIREDALE CATERING EQUIPMENT LTD,No
Http://opendatacommunities.org/id/metropolitan-district-council/leeds,Leeds City Council,30/06/2020,Resources and Housing,Leeds Building Services,Supplies and Services,Other Hired And Contracted Services,265,26/06/2020,2006-00402,0.00,4354.00,R,AIREDALE CATERING EQUIPMENT LTD,No
Http://opendatacommunities.org/id/metropolitan-district-council/leeds,Leeds City Council,30/06/2020,Adults and Health,Services For Adults Under 65 Mental/Dis,Third Party Payments,Services Provided By Other NHS Bodies,522,03/06/2020,2006-00403,0.00,175.00,R,AIT Mitra Limited,No
Http://opendatacommunities.org/id/metropolitan-district-council/leeds,Leeds City Council,30/06/2020,Adults and Health,Services For Adults Under 65 Mental/Dis,Third Party Payments,Services Provided By Other NHS Bodies,522,03/06/2020,2006-00404,0.00,175.00,R,AIT Mitra Limited,No
Http://opendatacommunities.org/id/metropolitan-district-council/leeds,Leeds City Council,30/06/2020,Adults and Health,Services For Adults Under 65 Mental/Dis,Third Party Payments,Services Provided By Other NHS Bodies,522,04/06/2020,2006-00405,0.00,175.00,R,AIT Mitra Limited,No
Http://opendatacommunities.org/id/metropolitan-district-council/leeds,Leeds City Council,30/06/2020,Adults and Health,Services For Adults Under 65 Mental/Dis,Third Party Payments,Services Provided By Other NHS Bodies,522,04/06/2020,2006-00406,0.00,175.00,R,AIT Mitra Limited,No
Http://opendatacommunities.org/id/metropolitan-district-council/leeds,Leeds City Council,30/06/2020,Adults and Health,Services For Adults Under 65 Mental/Dis,Third Party Payments,Services Provided By Other NHS Bodies,522,04/06/2020,2006-00407,0.00,175.00,R,AIT Mitra Limited,No
Http://opendatacommunities.org/id/metropolitan-district-council/leeds,Leeds City Council,30/06/2020,Adults and Health,Services For Adults Under 65 Mental/Dis,Third Party Payments,Services Provided By Other NHS Bodies,522,04/06/2020,2006-00408,0.00,175.00,R,AIT Mitra Limited,No
Http://opendatacommunities.org/id/metropolitan-district-council/leeds,Leeds City Council,30/06/2020,Adults and Health,Services For Adults Under 65 Mental/Dis,Third Party Payments,Services Provided By Other NHS Bodies,522,09/06/2020,2006-00409,0.00,175.00,R,AIT Mitra Limited,No
Http://opendatacommunities.org/id/metropolitan-district-council/leeds,Leeds City Council,30/06/2020,Adults and Health,Services For Adults Under 65 Mental/Dis,Third Party Payments,Services Provided By Other NHS Bodies,522,09/06/2020,2006-00410,0.00,175.00,R,AIT Mitra Limited,No
Http://opendatacommunities.org/id/metropolitan-district-council/leeds,Leeds City Council,30/06/2020,Adults and Health,Services For Adults Under 65 Mental/Dis,Third Party Payments,Services Provided By Other NHS Bodies,522,09/06/2020,2006-00411,0.00,175.00,R,AIT Mitra Limited,No
Http://opendatacommunities.org/id/metropolitan-district-council/leeds,Leeds City Council,30/06/2020,Adults and Health,Services For Adults Under 65 Mental/Dis,Third Party Payments,Services Provided By Other NHS Bodies,522,10/06/2020,2006-00412,0.00,175.00,R,AIT Mitra Limited,No
Http://opendatacommunities.org/id/metropolitan-district-council/leeds,Leeds City Council,30/06/2020,Adults and Health,Services For Adults Under 65 Mental/Dis,Third Party Payments,Services Provided By Other NHS Bodies,522,15/06/2020,2006-00413,0.00,175.00,R,AIT Mitra Limited,No
Http://opendatacommunities.org/id/metropolitan-district-council/leeds,Leeds City Council,30/06/2020,Adults and Health,Services For Adults Under 65 Mental/Dis,Third Party Payments,Services Provided By Other NHS Bodies,522,15/06/2020,2006-00414,0.00,175.00,R,AIT Mitra Limited,No
Http://opendatacommunities.org/id/metropolitan-district-council/leeds,Leeds City Council,30/06/2020,Adults and Health,Services For Adults Under 65 Mental/Dis,Third Party Payments,Services Provided By Other NHS Bodies,522,15/06/2020,2006-00415,0.00,175.00,R,AIT Mitra Limited,No
Http://opendatacommunities.org/id/metropolitan-district-council/leeds,Leeds City Council,30/06/2020,Adults and Health,Services For Adults Under 65 Mental/Dis,Third Party Payments,Services Provided By Other NHS Bodies,522,15/06/2020,2006-00416,0.00,175.00,R,AIT Mitra Limited,No
Http://opendatacommunities.org/id/metropolitan-district-council/leeds,Leeds City Council,30/06/2020,Adults and Health,Services For Adults Under 65 Mental/Dis,Third Party Payments,Services Provided By Other NHS Bodies,522,15/06/2020,2006-00417,0.00,175.00,R,AIT Mitra Limited,No
Http://opendatacommunities.org/id/metropolitan-district-council/leeds,Leeds City Council,30/06/2020,Adults and Health,Services For Adults Under 65 Mental/Dis,Third Party Payments,Services Provided By Other NHS Bodies,522,15/06/2020,2006-00418,0.00,175.00,R,AIT Mitra Limited,No
Http://opendatacommunities.org/id/metropolitan-district-council/leeds,Leeds City Council,30/06/2020,Adults and Health,Services For Adults Under 65 Mental/Dis,Third Party Payments,Services Provided By Other NHS Bodies,522,15/06/2020,2006-00419,0.00,175.00,R,AIT Mitra Limited,No
Http://opendatacommunities.org/id/metropolitan-district-council/leeds,Leeds City Council,30/06/2020,Adults and Health,Services For Adults Under 65 Mental/Dis,Third Party Payments,Services Provided By Other NHS Bodies,522,25/06/2020,2006-00420,0.00,175.00,R,AIT Mitra Limited,No
Http://opendatacommunities.org/id/metropolitan-district-council/leeds,Leeds City Council,30/06/2020,Adults and Health,Services For Adults Under 65 Mental/Dis,Third Party Payments,Services Provided By Other NHS Bodies,522,25/06/2020,2006-00421,0.00,175.00,R,AIT Mitra Limited,No
Http://opendatacommunities.org/id/metropolitan-district-council/leeds,Leeds City Council,30/06/2020,Adults and Health,Services For Adults Under 65 Mental/Dis,Third Party Payments,Services Provided By Other NHS Bodies,522,25/06/2020,2006-00422,0.00,175.00,R,AIT Mitra Limited,No
Http://opendatacommunities.org/id/metropolitan-district-council/leeds,Leeds City Council,30/06/2020,Adults and Health,Services For Adults Under 65 Mental/Dis,Third Party Payments,Services Provided By Other NHS Bodies,522,25/06/2020,2006-00423,0.00,175.00,R,AIT Mitra Limited,No
Http://opendatacommunities.org/id/metropolitan-district-council/leeds,Leeds City Council,30/06/2020,Adults and Health,Services For Adults Under 65 Mental/Dis,Third Party Payments,Services Provided By Other NHS Bodies,522,25/06/2020,2006-00424,0.00,175.00,R,AIT Mitra Limited,No
Http://opendatacommunities.org/id/metropolitan-district-council/leeds,Leeds City Council,30/06/2020,Adults and Health,Services For Adults Under 65 Mental/Dis,Third Party Payments,Services Provided By Other NHS Bodies,522,25/06/2020,2006-00425,0.00,175.00,R,AIT Mitra Limited,No
Http://opendatacommunities.org/id/metropolitan-district-council/leeds,Leeds City Council,30/06/2020,Adults and Health,Services For Adults Under 65 Mental/Dis,Third Party Payments,Services Provided By Other NHS Bodies,522,25/06/2020,2006-00426,0.00,175.00,R,AIT Mitra Limited,No
Http://opendatacommunities.org/id/metropolitan-district-council/leeds,Leeds City Council,30/06/2020,Adults and Health,Services For Adults Under 65 Mental/Dis,Third Party Payments,Services Provided By Other NHS Bodies,522,25/06/2020,2006-00427,0.00,175.00,R,AIT Mitra Limited,No
Http://opendatacommunities.org/id/metropolitan-district-council/leeds,Leeds City Council,30/06/2020,Adults and Health,Services For Adults Under 65 Mental/Dis,Third Party Payments,Services Provided By Other NHS Bodies,522,26/06/2020,2006-00428,0.00,175.00,R,AIT Mitra Limited,No
Http://opendatacommunities.org/id/metropolitan-district-council/leeds,Leeds City Council,30/06/2020,Adults and Health,Services For Adults Under 65 Mental/Dis,Third Party Payments,Services Provided By Other NHS Bodies,522,26/06/2020,2006-00429,0.00,175.00,R,AIT Mitra Limited,No
Http://opendatacommunities.org/id/metropolitan-district-council/leeds,Leeds City Council,30/06/2020,Adults and Health,Services For Adults Under 65 Mental/Dis,Third Party Payments,Services Provided By Other NHS Bodies,522,29/06/2020,2006-00430,0.00,175.00,R,AIT Mitra Limited,No
Http://opendatacommunities.org/id/metropolitan-district-council/leeds,Leeds City Council as Accountable Body,30/06/2020,Social Services Pooled Budgets,Jcs For People With Learning Disabilitie,Third Party Payments,Residential,580,24/06/2020,2006-00431,0.00,7454.99,R,AITCH care homes,No
Http://opendatacommunities.org/id/metropolitan-district-council/leeds,Leeds City Council,30/06/2020,Communities and Environment,Parks and Countryside  ,Supplies and Services,Operational Materials,205,22/05/2020,2006-00432,0.00,60.00,R,Aitkens Sportsturf Limite,Yes
Http://opendatacommunities.org/id/metropolitan-district-council/leeds,Leeds City Council,30/06/2020,Resources and Housing,Leeds Building Services,Supplies and Services,STORES - CENTRAL AND OTHER DEPOTS,5,03/06/2020,2006-00433,0.00,964.05,R,AJM FIXINGS & POWER TOOLS LTD,No
Http://opendatacommunities.org/id/metropolitan-district-council/leeds,Leeds City Council,30/06/2020,Resources and Housing,Leeds Building Services,Supplies and Services,Operational Furniture And Equipment,203,03/06/2020,2006-00434,0.00,240.00,R,AJM FIXINGS & POWER TOOLS LTD,No
Http://opendatacommunities.org/id/metropolitan-district-council/leeds,Leeds City Council,30/06/2020,Resources and Housing,Leeds Building Services,Supplies and Services,STORES - CENTRAL AND OTHER DEPOTS,5,03/06/2020,2006-00435,0.00,478.00,R,AJM FIXINGS & POWER TOOLS LTD,No
Http://opendatacommunities.org/id/metropolitan-district-council/leeds,Leeds City Council,30/06/2020,Resources and Housing,Leeds Building Services,Supplies and Services,Operational Materials,205,03/06/2020,2006-00436,0.00,502.50,R,AJM FIXINGS & POWER TOOLS LTD,No
Http://opendatacommunities.org/id/metropolitan-district-council/leeds,Leeds City Council,30/06/2020,Resources and Housing,Leeds Building Services,Supplies and Services,Operational Furniture And Equipment,203,03/06/2020,2006-00437,0.00,1028.40,R,AJM FIXINGS & POWER TOOLS LTD,No
Http://opendatacommunities.org/id/metropolitan-district-council/leeds,Leeds City Council,30/06/2020,Resources and Housing,Leeds Building Services,Supplies and Services,Operational Materials,205,08/06/2020,2006-00438,0.00,35.98,R,AJM FIXINGS & POWER TOOLS LTD,No
Http://opendatacommunities.org/id/metropolitan-district-council/leeds,Leeds City Council,30/06/2020,Resources and Housing,Leeds Building Services,Supplies and Services,Operational Furniture And Equipment,203,09/06/2020,2006-00439,0.00,320.00,R,AJM FIXINGS & POWER TOOLS LTD,No
Http://opendatacommunities.org/id/metropolitan-district-council/leeds,Leeds City Council,30/06/2020,Resources and Housing,Leeds Building Services,Supplies and Services,Operational Materials,205,09/06/2020,2006-00440,0.00,35.00,R,AJM FIXINGS & POWER TOOLS LTD,No
Http://opendatacommunities.org/id/metropolitan-district-council/leeds,Leeds City Council,30/06/2020,Resources and Housing,Leeds Building Services,Supplies and Services,Operational Furniture And Equipment,203,09/06/2020,2006-00441,0.00,65.00,R,AJM FIXINGS & POWER TOOLS LTD,No
Http://opendatacommunities.org/id/metropolitan-district-council/leeds,Leeds City Council,30/06/2020,Resources and Housing,Leeds Building Services,Supplies and Services,Operational Materials,205,09/06/2020,2006-00442,0.00,111.00,R,AJM FIXINGS & POWER TOOLS LTD,No
Http://opendatacommunities.org/id/metropolitan-district-council/leeds,Leeds City Council,30/06/2020,Resources and Housing,Leeds Building Services,Supplies and Services,Operational Materials,205,10/06/2020,2006-00443,0.00,219.47,R,AJM FIXINGS & POWER TOOLS LTD,No
Http://opendatacommunities.org/id/metropolitan-district-council/leeds,Leeds City Council,30/06/2020,Resources and Housing,Leeds Building Services,Supplies and Services,Operational Furniture And Equipment,203,12/06/2020,2006-00444,0.00,236.52,R,AJM FIXINGS & POWER TOOLS LTD,No
Http://opendatacommunities.org/id/metropolitan-district-council/leeds,Leeds City Council,30/06/2020,Resources and Housing,Leeds Building Services,Supplies and Services,STORES - CENTRAL AND OTHER DEPOTS,5,12/06/2020,2006-00445,0.00,1175.46,R,AJM FIXINGS & POWER TOOLS LTD,No
Http://opendatacommunities.org/id/metropolitan-district-council/leeds,Leeds City Council,30/06/2020,Resources and Housing,Leeds Building Services,Supplies and Services,Operational Materials,205,12/06/2020,2006-00446,0.00,215.88,R,AJM FIXINGS & POWER TOOLS LTD,No
Http://opendatacommunities.org/id/metropolitan-district-council/leeds,Leeds City Council,30/06/2020,Resources and Housing,Strategic Housing Partnerships,Capital,CONSTRUCTION,3,04/06/2020,2006-00447,0.00,3000.00,C,AKR Construction Ltd,No
Http://opendatacommunities.org/id/metropolitan-district-council/leeds,Leeds City Council,30/06/2020,Resources and Housing,Strategic Housing Partnerships,Capital,CONSTRUCTION,3,11/06/2020,2006-00448,0.00,1000.00,C,AKR Construction Ltd,No
Http://opendatacommunities.org/id/metropolitan-district-council/leeds,Leeds City Council,30/06/2020,Resources and Housing,Strategic Housing Partnerships,Capital,CONSTRUCTION,3,18/06/2020,2006-00449,0.00,10000.00,C,AKR Construction Ltd,No
Http://opendatacommunities.org/id/metropolitan-district-council/leeds,Leeds City Council,30/06/2020,Resources and Housing,Strategic Housing Partnerships,Capital,CONSTRUCTION,3,25/06/2020,2006-00450,0.00,2000.00,C,AKR Construction Ltd,No
Http://opendatacommunities.org/id/metropolitan-district-council/leeds,Leeds City Council,30/06/2020,Children and Families,Social Care,Third Party Payments,Services Rendered By Other Organisations,511,05/06/2020,2006-00451,0.00,525.60,R,REDACTED PERSONAL DATA,No
Http://opendatacommunities.org/id/metropolitan-district-council/leeds,Leeds City Council,30/06/2020,Children and Families,Social Care,Transfer Payments,Leaving Care Allowances,634,16/06/2020,2006-00452,0.00,100.00,R,REDACTED PERSONAL DATA,No
Http://opendatacommunities.org/id/metropolitan-district-council/leeds,Leeds City Council,30/06/2020,Adults and Health,Services For Older People - 65 And Over,Third Party Payments,Residential,580,24/06/2020,2006-00453,0.00,1552.60,R,Albion Court Care Home,No
Http://opendatacommunities.org/id/metropolitan-district-council/leeds,Leeds City Council,30/06/2020,Communities and Environment,Parks and Countryside  ,Supplies and Services,Operational Materials,205,30/04/2020,2006-00454,0.00,92.50,R,Albion Electric Stores Lt,Yes
Http://opendatacommunities.org/id/metropolitan-district-council/leeds,Leeds City Council,30/06/2020,City Development,Markets & City Centre Management  ,Premises,General Maintenance,104,07/05/2020,2006-00455,0.00,295.00,R,Albion Electric Stores Lt,Yes
Http://opendatacommunities.org/id/metropolitan-district-council/leeds,Leeds City Council,30/06/2020,Communities and Environment,Communities,Supplies and Services,Computer Software & Equipment,214,05/06/2020,2006-00456,0.00,1228.33,R,Alcium Software Ltd,No
Http://opendatacommunities.org/id/metropolitan-district-council/leeds,Leeds City Council,30/06/2020,City Development,Economic Development,Supplies and Services,Other Hired And Contracted Services,265,15/06/2020,2006-00457,0.00,750.00,R,Alcium Software Ltd,No
Http://opendatacommunities.org/id/metropolitan-district-council/leeds,Leeds City Council,30/06/2020,Children and Families,Social Care  ,Transfer Payments,Leaving Care Allowances,634,15/05/2020,2006-00458,0.00,58.69,R,Aldi 103 779,Yes
Http://opendatacommunities.org/id/metropolitan-district-council/leeds,Leeds City Council,30/06/2020,Children and Families,Social Care  ,Supplies and Services,Food & Drink,231,14/05/2020,2006-00459,0.00,4.29,R,Aldi 32 779,Yes
Http://opendatacommunities.org/id/metropolitan-district-council/leeds,Leeds City Council,30/06/2020,Children and Families,Social Care  ,Supplies and Services,Food & Drink,231,01/05/2020,2006-00460,0.00,108.18,R,Aldi 40 779,Yes
Http://opendatacommunities.org/id/metropolitan-district-council/leeds,Leeds City Council,30/06/2020,Children and Families,Social Care  ,Supplies and Services,Food & Drink,231,04/05/2020,2006-00461,0.00,128.42,R,Aldi 40 779,Yes
Http://opendatacommunities.org/id/metropolitan-district-council/leeds,Leeds City Council,30/06/2020,Children and Families,Social Care  ,Supplies and Services,Food & Drink,231,05/05/2020,2006-00462,0.00,107.12,R,Aldi 40 779,Yes
Http://opendatacommunities.org/id/metropolitan-district-council/leeds,Leeds City Council,30/06/2020,Children and Families,Social Care  ,Supplies and Services,Food & Drink,231,06/05/2020,2006-00463,0.00,93.06,R,Aldi 40 779,Yes
Http://opendatacommunities.org/id/metropolitan-district-council/leeds,Leeds City Council,30/06/2020,Children and Families,Social Care  ,Supplies and Services,Food & Drink,231,11/05/2020,2006-00464,0.00,120.38,R,Aldi 40 779,Yes
Http://opendatacommunities.org/id/metropolitan-district-council/leeds,Leeds City Council,30/06/2020,Children and Families,Social Care  ,Supplies and Services,Food & Drink,231,13/05/2020,2006-00465,0.00,97.52,R,Aldi 40 779,Yes
Http://opendatacommunities.org/id/metropolitan-district-council/leeds,Leeds City Council,30/06/2020,Children and Families,Social Care  ,Supplies and Services,Food & Drink,231,15/05/2020,2006-00466,0.00,110.14,R,Aldi 40 779,Yes
Http://opendatacommunities.org/id/metropolitan-district-council/leeds,Leeds City Council,30/06/2020,Children and Families,Social Care  ,Supplies and Services,Food & Drink,231,18/05/2020,2006-00467,0.00,120.42,R,Aldi 40 779,Yes
Http://opendatacommunities.org/id/metropolitan-district-council/leeds,Leeds City Council,30/06/2020,Children and Families,Social Care  ,Supplies and Services,Food & Drink,231,20/05/2020,2006-00468,0.00,89.37,R,Aldi 40 779,Yes
Http://opendatacommunities.org/id/metropolitan-district-council/leeds,Leeds City Council,30/06/2020,Children and Families,Social Care  ,Supplies and Services,Food & Drink,231,22/05/2020,2006-00469,0.00,68.90,R,Aldi 40 779,Yes
Http://opendatacommunities.org/id/metropolitan-district-council/leeds,Leeds City Council,30/06/2020,Children and Families,Social Care  ,Supplies and Services,Food & Drink,231,26/05/2020,2006-00470,0.00,101.31,R,Aldi 40 779,Yes
Http://opendatacommunities.org/id/metropolitan-district-council/leeds,Leeds City Council,30/06/2020,Children and Families,Social Care  ,Supplies and Services,Food & Drink,231,28/05/2020,2006-00471,0.00,42.31,R,Aldi 40 779,Yes
Http://opendatacommunities.org/id/metropolitan-district-council/leeds,Leeds City Council,30/06/2020,Children and Families,Social Care  ,Transfer Payments,Leaving Care Allowances,634,06/05/2020,2006-00472,0.00,5.90,R,Aldi 71 779,Yes
Http://opendatacommunities.org/id/metropolitan-district-council/leeds,Leeds City Council,30/06/2020,Children and Families,Social Care  ,Transfer Payments,Leaving Care Allowances,634,14/05/2020,2006-00473,0.00,9.15,R,Aldi 71 779,Yes
Http://opendatacommunities.org/id/metropolitan-district-council/leeds,Leeds City Council,30/06/2020,Communities and Environment,Communities  ,Supplies and Services,Operational Materials,205,18/05/2020,2006-00474,0.00,23.78,R,Aldi 779-90,Yes
Http://opendatacommunities.org/id/metropolitan-district-council/leeds,Leeds City Council,30/06/2020,Children and Families,Social Care  ,Supplies and Services,Food & Drink,231,04/05/2020,2006-00475,0.00,78.48,R,Aldi 85 779,Yes
Http://opendatacommunities.org/id/metropolitan-district-council/leeds,Leeds City Council,30/06/2020,Children and Families,Social Care  ,Supplies and Services,Food & Drink,231,06/05/2020,2006-00476,0.00,23.38,R,Aldi 85 779,Yes
Http://opendatacommunities.org/id/metropolitan-district-council/leeds,Leeds City Council,30/06/2020,Children and Families,Social Care  ,Supplies and Services,Food & Drink,231,17/05/2020,2006-00477,0.00,71.67,R,Aldi 85 779,Yes
Http://opendatacommunities.org/id/metropolitan-district-council/leeds,Leeds City Council,30/06/2020,Resources and Housing,Strategic Housing Partnership & Support  ,Supplies and Services,Schools related grant expenditure,299,18/05/2020,2006-00478,0.00,18.45,R,Aldi 85 779,Yes
Http://opendatacommunities.org/id/metropolitan-district-council/leeds,Leeds City Council,30/06/2020,Children and Families,Social Care  ,Supplies and Services,Food & Drink,231,23/05/2020,2006-00479,0.00,20.30,R,Aldi 85 779,Yes
Http://opendatacommunities.org/id/metropolitan-district-council/leeds,Leeds City Council,30/06/2020,Children and Families,Social Care  ,Third Party Payments,Placement Support,550,01/05/2020,2006-00480,0.00,43.05,R,Aldi 99 779,Yes
Http://opendatacommunities.org/id/metropolitan-district-council/leeds,Leeds City Council,30/06/2020,Children and Families,Social Care  ,Transfer Payments,Leaving Care Allowances,634,12/05/2020,2006-00481,0.00,17.02,R,Aldi Stores,Yes
Http://opendatacommunities.org/id/metropolitan-district-council/leeds,Leeds City Council,30/06/2020,City Development,Recreation,Income,Sporting & Other Recreational Fees,928,12/06/2020,2006-00482,0.00,149.69,R,REDACTED PERSONAL DATA,No
Http://opendatacommunities.org/id/metropolitan-district-council/leeds,Leeds City Council,30/06/2020,Children and Families,Social Care,Third Party Payments,Section 17,551,08/06/2020,2006-00483,0.00,15.00,R,REDACTED PERSONAL DATA,No
Http://opendatacommunities.org/id/metropolitan-district-council/leeds,Leeds City Council,30/06/2020,Resources and Housing,Commercial Services,Supplies and Services,Other Hired And Contracted Services,265,01/06/2020,2006-00484,0.00,435.00,R,ALEX WAGG,No
Http://opendatacommunities.org/id/metropolitan-district-council/leeds,Leeds City Council,30/06/2020,Resources and Housing,Commercial Services,Supplies and Services,Other Hired And Contracted Services,265,01/06/2020,2006-00485,0.00,200.00,R,ALEX WAGG,No
Http://opendatacommunities.org/id/metropolitan-district-council/leeds,Leeds City Council,30/06/2020,Resources and Housing,Commercial Services,Supplies and Services,Other Hired And Contracted Services,265,05/06/2020,2006-00486,0.00,200.00,R,ALEX WAGG,No
Http://opendatacommunities.org/id/metropolitan-district-council/leeds,Leeds City Council,30/06/2020,Resources and Housing,Commercial Services,Supplies and Services,Other Hired And Contracted Services,265,05/06/2020,2006-00487,0.00,60.00,R,ALEX WAGG,No
Http://opendatacommunities.org/id/metropolitan-district-council/leeds,Leeds City Council,30/06/2020,Resources and Housing,Commercial Services,Supplies and Services,Other Hired And Contracted Services,265,10/06/2020,2006-00488,0.00,100.00,R,ALEX WAGG,No
Http://opendatacommunities.org/id/metropolitan-district-council/leeds,Leeds City Council,30/06/2020,Resources and Housing,Commercial Services,Supplies and Services,Other Hired And Contracted Services,265,10/06/2020,2006-00489,0.00,40.00,R,ALEX WAGG,No
Http://opendatacommunities.org/id/metropolitan-district-council/leeds,Leeds City Council,30/06/2020,Resources and Housing,Commercial Services,Supplies and Services,Other Hired And Contracted Services,265,10/06/2020,2006-00490,0.00,80.00,R,ALEX WAGG,No
Http://opendatacommunities.org/id/metropolitan-district-council/leeds,Leeds City Council,30/06/2020,Resources and Housing,Commercial Services,Supplies and Services,Other Hired And Contracted Services,265,12/06/2020,2006-00491,0.00,120.00,R,ALEX WAGG,No
Http://opendatacommunities.org/id/metropolitan-district-council/leeds,Leeds City Council,30/06/2020,Resources and Housing,Commercial Services,Supplies and Services,Other Hired And Contracted Services,265,12/06/2020,2006-00492,0.00,160.00,R,ALEX WAGG,No
Http://opendatacommunities.org/id/metropolitan-district-council/leeds,Leeds City Council,30/06/2020,Resources and Housing,Commercial Services,Supplies and Services,Other Hired And Contracted Services,265,17/06/2020,2006-00493,0.00,100.00,R,ALEX WAGG,No
Http://opendatacommunities.org/id/metropolitan-district-council/leeds,Leeds City Council,30/06/2020,Resources and Housing,Commercial Services,Supplies and Services,Other Hired And Contracted Services,265,17/06/2020,2006-00494,0.00,257.50,R,ALEX WAGG,No
Http://opendatacommunities.org/id/metropolitan-district-council/leeds,Leeds City Council,30/06/2020,Resources and Housing,Commercial Services,Supplies and Services,Other Hired And Contracted Services,265,17/06/2020,2006-00495,0.00,100.00,R,ALEX WAGG,No
Http://opendatacommunities.org/id/metropolitan-district-council/leeds,Leeds City Council,30/06/2020,Resources and Housing,Commercial Services,Transport,Vehicle Spares,345,24/06/2020,2006-00496,0.00,180.00,R,ALEX WAGG,No
Http://opendatacommunities.org/id/metropolitan-district-council/leeds,Leeds City Council,30/06/2020,Resources and Housing,Commercial Services,Supplies and Services,Other Hired And Contracted Services,265,25/06/2020,2006-00497,0.00,100.00,R,ALEX WAGG,No
Http://opendatacommunities.org/id/metropolitan-district-council/leeds,Leeds City Council,30/06/2020,Resources and Housing,Commercial Services,Supplies and Services,Other Hired And Contracted Services,265,25/06/2020,2006-00498,0.00,120.00,R,ALEX WAGG,No
Http://opendatacommunities.org/id/metropolitan-district-council/leeds,Leeds City Council,30/06/2020,Adults and Health,Services For Older People - 65 And Over,Third Party Payments,Residential Care Dementia,571,24/06/2020,2006-00499,0.00,-784.69,R,ALEXANDER RESIDENTIAL HOME,No
Http://opendatacommunities.org/id/metropolitan-district-council/leeds,Leeds City Council,30/06/2020,Adults and Health,Services For Older People - 65 And Over,Third Party Payments,Residential,580,24/06/2020,2006-00500,0.00,10572.28,R,ALEXANDER RESIDENTIAL HOME,No
Http://opendatacommunities.org/id/metropolitan-district-council/leeds,Leeds City Council,30/06/2020,Adults and Health,Services For Older People - 65 And Over,Third Party Payments,Residential Care Dementia,571,24/06/2020,2006-00501,0.00,3766.92,R,ALEXANDRA COURT,No
Http://opendatacommunities.org/id/metropolitan-district-council/leeds,Leeds City Council,30/06/2020,Adults and Health,Services For Older People - 65 And Over,Third Party Payments,Residential,580,24/06/2020,2006-00502,0.00,6455.41,R,ALEXANDRA COURT,No
Http://opendatacommunities.org/id/metropolitan-district-council/leeds,Leeds City Council,30/06/2020,Children and Families,Social Care,Third Party Payments,Services Rendered By Other Organisations,511,05/06/2020,2006-00503,0.00,630.72,R,REDACTED PERSONAL DATA,No
Http://opendatacommunities.org/id/metropolitan-district-council/leeds,Leeds City Council,30/06/2020,Communities and Environment,Elections  Licensing and Registration,Income,Admissions  Booking Fees & Ticket Sales,933,18/06/2020,2006-00504,0.00,652.00,R,REDACTED PERSONAL DATA,No
Http://opendatacommunities.org/id/metropolitan-district-council/leeds,Leeds City Council,30/06/2020,Children and Families,Social Care  ,Supplies and Services,Clothing & Uniforms,241,30/04/2020,2006-00505,0.00,406.63,R,Alexandra Website,Yes
Http://opendatacommunities.org/id/metropolitan-district-council/leeds,Leeds City Council,30/06/2020,Children and Families,Social Care  ,Supplies and Services,Clothing & Uniforms,241,05/05/2020,2006-00506,0.00,58.93,R,Alexandra Website,Yes
Http://opendatacommunities.org/id/metropolitan-district-council/leeds,Leeds City Council,30/06/2020,Adults and Health,Services For Older People - 65 And Over  ,Supplies and Services,Operational Materials,205,06/05/2020,2006-00507,0.00,286.94,R,Alexandra Website,Yes
Http://opendatacommunities.org/id/metropolitan-district-council/leeds,Leeds City Council,30/06/2020,Adults and Health,Services For Older People - 65 And Over  ,Supplies and Services,Operational Materials,205,06/05/2020,2006-00508,0.00,400.00,R,Alexandra Website,Yes
Http://opendatacommunities.org/id/metropolitan-district-council/leeds,Leeds City Council,30/06/2020,Adults and Health,Services For Older People - 65 And Over  ,Supplies and Services,Operational Materials,205,06/05/2020,2006-00509,0.00,14.26,R,Alexandra Website,Yes
Http://opendatacommunities.org/id/metropolitan-district-council/leeds,Leeds City Council,30/06/2020,Adults and Health,Services For Older People - 65 And Over  ,Supplies and Services,Operational Materials,205,07/05/2020,2006-00510,0.00,107.02,R,Alexandra Website,Yes
Http://opendatacommunities.org/id/metropolitan-district-council/leeds,Leeds City Council,30/06/2020,Adults and Health,Services For Older People - 65 And Over  ,Supplies and Services,Clothing & Uniforms,241,12/05/2020,2006-00511,0.00,134.88,R,Alexandra Website,Yes
Http://opendatacommunities.org/id/metropolitan-district-council/leeds,Leeds City Council,30/06/2020,Adults and Health,Services For Older People - 65 And Over  ,Supplies and Services,Clothing & Uniforms,241,13/05/2020,2006-00512,0.00,228.75,R,Alexandra Website,Yes
Http://opendatacommunities.org/id/metropolitan-district-council/leeds,Leeds City Council,30/06/2020,Adults and Health,Services For Older People - 65 And Over  ,Supplies and Services,Operational Materials,205,15/05/2020,2006-00513,0.00,61.16,R,Alexandra Website,Yes
Http://opendatacommunities.org/id/metropolitan-district-council/leeds,Leeds City Council,30/06/2020,Adults and Health,Services For Older People - 65 And Over  ,Supplies and Services,Clothing & Uniforms,241,18/05/2020,2006-00514,0.00,125.91,R,Alexandra Website,Yes
Http://opendatacommunities.org/id/metropolitan-district-council/leeds,Leeds City Council,30/06/2020,Adults and Health,Services For Older People - 65 And Over  ,Supplies and Services,Clothing & Uniforms,241,22/05/2020,2006-00515,0.00,53.96,R,Alexandra Website,Yes
Http://opendatacommunities.org/id/metropolitan-district-council/leeds,Leeds City Council,30/06/2020,Resources and Housing,Strategic Housing Partnership & Support,Supplies and Services,Other Hired And Contracted Services,265,30/06/2020,2006-00516,0.00,702.00,R,REDACTED PERSONAL DATA,No
Http://opendatacommunities.org/id/metropolitan-district-council/leeds,Leeds City Council,30/06/2020,Resources and Housing,Leeds Building Services,Supplies and Services,Other Hired And Contracted Services,265,10/06/2020,2006-00517,0.00,967.00,R,Alfred Bagnall & Sons (Leeds) Ltd,No
Http://opendatacommunities.org/id/metropolitan-district-council/leeds,Leeds City Council,30/06/2020,Resources and Housing,Leeds Building Services,Supplies and Services,Other Hired And Contracted Services,265,10/06/2020,2006-00518,0.00,1376.00,R,Alfred Bagnall & Sons (Leeds) Ltd,No
Http://opendatacommunities.org/id/metropolitan-district-council/leeds,Leeds City Council,30/06/2020,City Development,Culture and Sport,Capital,FURNITURE AND EQUIPMENT,5,25/06/2020,2006-00519,0.00,8140.00,C,Alfred Bagnall & Sons (Leeds) Ltd,No
Http://opendatacommunities.org/id/metropolitan-district-council/leeds,Leeds City Council,30/06/2020,Resources and Housing,Leeds Building Services,Supplies and Services,Other Hired And Contracted Services,265,30/06/2020,2006-00520,0.00,14505.00,R,Alfred Bagnall & Sons (Leeds) Ltd,No
Http://opendatacommunities.org/id/metropolitan-district-council/leeds,Leeds City Council,30/06/2020,Communities and Environment,Customer Access,Supplies and Services,Bought In Professional Services,277,03/06/2020,2006-00521,0.00,30.00,R,Ali Pourakaberian,No
Http://opendatacommunities.org/id/metropolitan-district-council/leeds,Leeds City Council,30/06/2020,Communities and Environment,Customer Access,Supplies and Services,Bought In Professional Services,277,24/06/2020,2006-00522,0.00,10.00,R,Ali Pourakaberian,No
Http://opendatacommunities.org/id/metropolitan-district-council/leeds,Leeds City Council,30/06/2020,Communities and Environment,Customer Access,Supplies and Services,Bought In Professional Services,277,24/06/2020,2006-00523,0.00,10.00,R,Ali Pourakaberian,No
Http://opendatacommunities.org/id/metropolitan-district-council/leeds,Leeds City Council,30/06/2020,Communities and Environment,Customer Access,Supplies and Services,Bought In Professional Services,277,24/06/2020,2006-00524,0.00,10.00,R,Ali Pourakaberian,No
Http://opendatacommunities.org/id/metropolitan-district-council/leeds,Leeds City Council,30/06/2020,Children and Families,Social Care,Third Party Payments,Placement Support,550,26/06/2020,2006-00525,0.00,300.00,R,REDACTED PERSONAL DATA,No
Http://opendatacommunities.org/id/metropolitan-district-council/leeds,Leeds City Council,30/06/2020,Children and Families,Social Care,Third Party Payments,Services Rendered By Other Organisations,511,05/06/2020,2006-00526,0.00,788.40,R,REDACTED PERSONAL DATA,No
Http://opendatacommunities.org/id/metropolitan-district-council/leeds,Leeds City Council,30/06/2020,Strategic Landlord,Property and Contracts,Supplies and Services,Insurance Claims,248,01/06/2020,2006-00527,0.00,4850.00,R,Alison Law Solicitors,No
Http://opendatacommunities.org/id/metropolitan-district-council/leeds,Leeds City Council,30/06/2020,Strategic Landlord,Property and Contracts,Support Services,Legal Disbursements,411,12/06/2020,2006-00528,0.00,2000.00,R,Alison Law Solicitors,No
Http://opendatacommunities.org/id/metropolitan-district-council/leeds,Leeds City Council,30/06/2020,Strategic Landlord,Property and Contracts,Supplies and Services,Insurance Claims,248,25/06/2020,2006-00529,0.00,4500.00,R,Alison Law Solicitors,No
Http://opendatacommunities.org/id/metropolitan-district-council/leeds,Leeds City Council,30/06/2020,City Development,Recreation,Income,Training & Education Courses Income,937,19/06/2020,2006-00530,0.00,215.00,R,REDACTED PERSONAL DATA,No
Http://opendatacommunities.org/id/metropolitan-district-council/leeds,Leeds City Council,30/06/2020,City Development,Recreation,Income,Training & Education Courses Income,937,19/06/2020,2006-00531,0.00,235.00,R,REDACTED PERSONAL DATA,No
Http://opendatacommunities.org/id/metropolitan-district-council/leeds,Leeds City Council,30/06/2020,Resources and Housing,Strategy and Improvement,Supplies and Services,Memberships,226,09/06/2020,2006-00532,0.00,475.00,R,All Party Parliamentary Group For,No
Http://opendatacommunities.org/id/metropolitan-district-council/leeds,Leeds City Council,30/06/2020,Adults and Health,Services For Older People - 65 And Over,Third Party Payments,Home Care,568,03/06/2020,2006-00533,0.00,139.20,R,All Seasons Home Care,No
Http://opendatacommunities.org/id/metropolitan-district-council/leeds,Leeds City Council,30/06/2020,Adults and Health,Services For Adults Under 65 Mental/Dis,Third Party Payments,Home Care,568,19/06/2020,2006-00534,0.00,316.50,R,All Seasons Home Care,No
Http://opendatacommunities.org/id/metropolitan-district-council/leeds,Leeds City Council,30/06/2020,Children and Families,Social Care,Third Party Payments,Services Rendered By Other Organisations,511,03/06/2020,2006-00535,0.00,570.24,R,All Stars Childcare,No
Http://opendatacommunities.org/id/metropolitan-district-council/leeds,Leeds City Council,30/06/2020,Children and Families,Social Care,Third Party Payments,Services Rendered By Other Organisations,511,05/06/2020,2006-00536,0.00,9460.80,R,All Stars Childcare,No
Http://opendatacommunities.org/id/metropolitan-district-council/leeds,Leeds City Council as Accountable Body,30/06/2020,Social Services Pooled Budgets,Jcs For People With Learning Disabilitie,Third Party Payments,Sheltered Accommodation,569,24/06/2020,2006-00537,0.00,17383.24,R,Allerton Avenue,No
Http://opendatacommunities.org/id/metropolitan-district-council/leeds,Leeds City Council,30/06/2020,Resources and Housing,Leeds Building Services,Supplies and Services,Other Hired And Contracted Services,265,08/06/2020,2006-00538,0.00,2600.00,R,Allerton Damp Proofing Ltd,No
Http://opendatacommunities.org/id/metropolitan-district-council/leeds,Leeds City Council,30/06/2020,Resources and Housing,Leeds Building Services,Supplies and Services,Other Hired And Contracted Services,265,08/06/2020,2006-00539,0.00,4235.90,R,Allerton Damp Proofing Ltd,No
Http://opendatacommunities.org/id/metropolitan-district-council/leeds,Leeds City Council,30/06/2020,Adults and Health,Services For Older People - 65 And Over,Third Party Payments,Nursing Care Dementia,574,24/06/2020,2006-00540,0.00,2320.36,R,ALLERTON PARK N H,No
Http://opendatacommunities.org/id/metropolitan-district-council/leeds,Leeds City Council,30/06/2020,Resources and Housing,Finance,Supplies and Services,Bank Charges,263,01/06/2020,2006-00541,0.00,-53.50,R,ALLIANCE & LEICESTER COMMERCIAL BANK,No
Http://opendatacommunities.org/id/metropolitan-district-council/leeds,Leeds City Council,30/06/2020,Resources and Housing,Finance,Supplies and Services,Bank Charges,263,04/06/2020,2006-00542,0.00,100.14,R,ALLIANCE & LEICESTER COMMERCIAL BANK,No
Http://opendatacommunities.org/id/metropolitan-district-council/leeds,Leeds City Council,30/06/2020,Resources and Housing,Finance,Supplies and Services,Bank Charges,263,04/06/2020,2006-00543,0.00,5.17,R,ALLIANCE & LEICESTER COMMERCIAL BANK,No
Http://opendatacommunities.org/id/metropolitan-district-council/leeds,Leeds City Council,30/06/2020,Communities and Environment,Parks and Countryside  ,Supplies and Services,Schools related grant expenditure,299,07/05/2020,2006-00544,0.00,270.00,R,Alliance Disposables,Yes
Http://opendatacommunities.org/id/metropolitan-district-council/leeds,Leeds City Council,30/06/2020,Communities and Environment,Parks and Countryside  ,Supplies and Services,Schools related grant expenditure,299,07/05/2020,2006-00545,0.00,540.00,R,Alliance Disposables,Yes
Http://opendatacommunities.org/id/metropolitan-district-council/leeds,Leeds City Council,30/06/2020,Insurance,Insurance,Supplies and Services,Insurance Claims,248,15/06/2020,2006-00546,0.00,4285.56,R,Allianz Insurance Plc,No
Http://opendatacommunities.org/id/metropolitan-district-council/leeds,Leeds City Council,30/06/2020,City Development,Highways,Capital,OTHER COSTS,7,04/06/2020,2006-00547,0.00,88236.58,C,ALLIED EXPLORATION & GEOTECHNICS LTD,No
Http://opendatacommunities.org/id/metropolitan-district-council/leeds,Leeds City Council,30/06/2020,City Development,Highways,Capital,OTHER COSTS,7,23/06/2020,2006-00548,0.00,2342.00,C,ALLIED EXPLORATION & GEOTECHNICS LTD,No
Http://opendatacommunities.org/id/metropolitan-district-council/leeds,Leeds City Council,30/06/2020,Adults and Health,Services For Older People - 65 And Over,Third Party Payments,Home Care,568,03/06/2020,2006-00549,0.00,1964.81,R,Allied Healthcare,No
Http://opendatacommunities.org/id/metropolitan-district-council/leeds,Leeds City Council,30/06/2020,Adults and Health,Services For Older People - 65 And Over,Third Party Payments,Home Care,568,03/06/2020,2006-00550,0.00,11320.27,R,Allied Healthcare,No
Http://opendatacommunities.org/id/metropolitan-district-council/leeds,Leeds City Council,30/06/2020,Adults and Health,Services For Older People Under 65 P/Dis,Third Party Payments,Home Care,568,03/06/2020,2006-00551,0.00,2795.47,R,Allied Healthcare,No
Http://opendatacommunities.org/id/metropolitan-district-council/leeds,Leeds City Council,30/06/2020,Adults and Health,Services For Adults Under 65 Mental/Dis,Third Party Payments,Home Care,568,03/06/2020,2006-00552,0.00,626.40,R,Allied Healthcare,No
Http://opendatacommunities.org/id/metropolitan-district-council/leeds,Leeds City Council,30/06/2020,Adults and Health,Services For Older People - 65 And Over,Third Party Payments,Home Care,568,03/06/2020,2006-00553,0.00,7485.13,R,Allied Healthcare,No
Http://opendatacommunities.org/id/metropolitan-district-council/leeds,Leeds City Council,30/06/2020,Adults and Health,Services For Older People Under 65 P/Dis,Third Party Payments,Home Care,568,03/06/2020,2006-00554,0.00,1054.80,R,Allied Healthcare,No
Http://opendatacommunities.org/id/metropolitan-district-council/leeds,Leeds City Council,30/06/2020,Adults and Health,Services For Older People - 65 And Over,Third Party Payments,Home Care,568,03/06/2020,2006-00555,0.00,18326.72,R,Allied Healthcare,No
Http://opendatacommunities.org/id/metropolitan-district-council/leeds,Leeds City Council,30/06/2020,Adults and Health,Services For Older People Under 65 P/Dis,Third Party Payments,Home Care,568,03/06/2020,2006-00556,0.00,4725.14,R,Allied Healthcare,No
Http://opendatacommunities.org/id/metropolitan-district-council/leeds,Leeds City Council as Accountable Body,30/06/2020,Social Services Pooled Budgets,Jcs For People With Learning Disabilitie,Third Party Payments,Home Care,568,15/06/2020,2006-00557,0.00,15477.21,R,Allied Healthcare,No
Http://opendatacommunities.org/id/metropolitan-district-council/leeds,Leeds City Council,30/06/2020,Children and Families,Social Care,Third Party Payments,Services Rendered By Voluntary Sector,505,15/06/2020,2006-00558,0.00,342.00,R,Allied Healthcare,No
Http://opendatacommunities.org/id/metropolitan-district-council/leeds,Leeds City Council,30/06/2020,Children and Families,Social Care,Third Party Payments,Services Rendered By Voluntary Sector,505,17/06/2020,2006-00559,0.00,342.00,R,Allied Healthcare,No
Http://opendatacommunities.org/id/metropolitan-district-council/leeds,Leeds City Council,30/06/2020,Children and Families,Social Care,Third Party Payments,Services Rendered By Voluntary Sector,505,19/06/2020,2006-00560,0.00,427.50,R,Allied Healthcare,No
Http://opendatacommunities.org/id/metropolitan-district-council/leeds,Leeds City Council as Accountable Body,30/06/2020,Social Services Pooled Budgets,Jcs For People With Learning Disabilitie,Third Party Payments,Home Care,568,24/06/2020,2006-00561,0.00,942.80,R,Allied Healthcare,No
Http://opendatacommunities.org/id/metropolitan-district-council/leeds,Leeds City Council,30/06/2020,Adults and Health,Services For Older People - 65 And Over,Third Party Payments,Home Care,568,24/06/2020,2006-00562,0.00,778.40,R,Allied Healthcare,No
Http://opendatacommunities.org/id/metropolitan-district-council/leeds,Leeds City Council,30/06/2020,Adults and Health,Services For Older People - 65 And Over,Third Party Payments,Home Care,568,24/06/2020,2006-00563,0.00,1328.49,R,Allied Healthcare,No
Http://opendatacommunities.org/id/metropolitan-district-council/leeds,Leeds City Council,30/06/2020,Adults and Health,Services For Older People - 65 And Over,Third Party Payments,Home Care,568,24/06/2020,2006-00564,0.00,13543.29,R,Allied Healthcare,No
Http://opendatacommunities.org/id/metropolitan-district-council/leeds,Leeds City Council,30/06/2020,Adults and Health,Services For Older People Under 65 P/Dis,Third Party Payments,Home Care,568,24/06/2020,2006-00565,0.00,2842.29,R,Allied Healthcare,No
Http://opendatacommunities.org/id/metropolitan-district-council/leeds,Leeds City Council,30/06/2020,Adults and Health,Services For Adults Under 65 Mental/Dis,Third Party Payments,Home Care,568,24/06/2020,2006-00566,0.00,579.59,R,Allied Healthcare,No
Http://opendatacommunities.org/id/metropolitan-district-council/leeds,Leeds City Council,30/06/2020,Adults and Health,Services For Older People - 65 And Over,Third Party Payments,Home Care,568,24/06/2020,2006-00567,0.00,9895.54,R,Allied Healthcare,No
Http://opendatacommunities.org/id/metropolitan-district-council/leeds,Leeds City Council,30/06/2020,Adults and Health,Services For Older People Under 65 P/Dis,Third Party Payments,Home Care,568,24/06/2020,2006-00568,0.00,130.15,R,Allied Healthcare,No
Http://opendatacommunities.org/id/metropolitan-district-council/leeds,Leeds City Council,30/06/2020,Adults and Health,Services For Older People - 65 And Over,Third Party Payments,Home Care,568,24/06/2020,2006-00569,0.00,19830.78,R,Allied Healthcare,No
Http://opendatacommunities.org/id/metropolitan-district-council/leeds,Leeds City Council,30/06/2020,Adults and Health,Services For Older People - 65 And Over,Third Party Payments,HCAIT Other,577,24/06/2020,2006-00570,0.00,36.89,R,Allied Healthcare,No
Http://opendatacommunities.org/id/metropolitan-district-council/leeds,Leeds City Council,30/06/2020,Adults and Health,Services For Older People Under 65 P/Dis,Third Party Payments,Home Care,568,24/06/2020,2006-00571,0.00,4729.14,R,Allied Healthcare,No
Http://opendatacommunities.org/id/metropolitan-district-council/leeds,Leeds City Council as Accountable Body,30/06/2020,Social Services Pooled Budgets,Jcs For People With Learning Disabilitie,Third Party Payments,Home Care,568,24/06/2020,2006-00572,0.00,-189.04,R,Allied Healthcare,No
Http://opendatacommunities.org/id/metropolitan-district-council/leeds,Leeds City Council as Accountable Body,30/06/2020,Social Services Pooled Budgets,Jcs For People With Learning Disabilitie,Third Party Payments,Home Care,568,25/06/2020,2006-00573,0.00,222.41,R,Allied Healthcare,No
Http://opendatacommunities.org/id/metropolitan-district-council/leeds,Leeds City Council,30/06/2020,Communities and Environment,Customer Access,Supplies and Services,Printing,215,19/06/2020,2006-00574,0.00,2166.95,R,Allied Publicity Services,No
Http://opendatacommunities.org/id/metropolitan-district-council/leeds,Leeds City Council,30/06/2020,Children and Families,Social Care,Third Party Payments,Services Rendered By Other Organisations,511,05/06/2020,2006-00575,0.00,753.36,R,REDACTED PERSONAL DATA,No
Http://opendatacommunities.org/id/metropolitan-district-council/leeds,Leeds City Council,30/06/2020,Resources and Housing,Strategic Housing Partnership & Support  ,Supplies and Services,Other Hired And Contracted Services,265,04/05/2020,2006-00576,0.00,120.00,R,Allpay *robin Hood Energy,Yes
Http://opendatacommunities.org/id/metropolitan-district-council/leeds,Leeds City Council,30/06/2020,Resources and Housing,Finance,Supplies and Services,Bank Charges,263,11/06/2020,2006-00577,0.00,278.23,R,Allpay Limted,No
Http://opendatacommunities.org/id/metropolitan-district-council/leeds,Leeds City Council,30/06/2020,Resources and Housing,Finance,Supplies and Services,Bank Charges,263,11/06/2020,2006-00578,0.00,10677.72,R,Allpay Limted,No
Http://opendatacommunities.org/id/metropolitan-district-council/leeds,Leeds City Council,30/06/2020,Adults and Health,Services For Older People Under 65 P/Dis,Supplies and Services,Operational Materials,205,12/06/2020,2006-00579,0.00,26.10,R,Allpay Limted,No
Http://opendatacommunities.org/id/metropolitan-district-council/leeds,Leeds City Council,30/06/2020,Adults and Health,Services For Older People Under 65 P/Dis,Supplies and Services,Operational Materials,205,12/06/2020,2006-00580,0.00,97.98,R,Allpay Limted,No
Http://opendatacommunities.org/id/metropolitan-district-council/leeds,Leeds City Council,30/06/2020,Strategic Landlord,Housing Management,Supplies and Services,Other Hired And Contracted Services,265,17/06/2020,2006-00581,0.00,11.09,R,Allpay Limted,No
Http://opendatacommunities.org/id/metropolitan-district-council/leeds,Leeds City Council,30/06/2020,Strategic Landlord,Housing Management,Supplies and Services,Other Hired And Contracted Services,265,17/06/2020,2006-00582,0.00,0.58,R,Allpay Limted,No
Http://opendatacommunities.org/id/metropolitan-district-council/leeds,Leeds City Council,30/06/2020,Strategic Landlord,Housing Management,Supplies and Services,Other Hired And Contracted Services,265,18/06/2020,2006-00583,0.00,179.13,R,Allpay Limted,No
Http://opendatacommunities.org/id/metropolitan-district-council/leeds,Leeds City Council,30/06/2020,Children and Families,Social Care  ,Supplies and Services,Operational Furniture And Equipment,203,04/05/2020,2006-00584,0.00,10.38,R,Allsorts Discount Stor,Yes
Http://opendatacommunities.org/id/metropolitan-district-council/leeds,Leeds City Council,30/06/2020,City Development,Highways,Transport,Fuel (Non LCC Supplies),321,08/06/2020,2006-00585,0.00,238.11,R,Allstar Business Solutions Ltd,No
Http://opendatacommunities.org/id/metropolitan-district-council/leeds,Leeds City Council,30/06/2020,Communities and Environment,Parks and Countryside,Transport,Fuel (Non LCC Supplies),321,08/06/2020,2006-00586,0.00,240.29,R,Allstar Business Solutions Ltd,No
Http://opendatacommunities.org/id/metropolitan-district-council/leeds,Leeds City Council,30/06/2020,Children and Families,Learning,Transport,Fuel (Non LCC Supplies),321,08/06/2020,2006-00587,0.00,64.76,R,Allstar Business Solutions Ltd,No
Http://opendatacommunities.org/id/metropolitan-district-council/leeds,Leeds City Council,30/06/2020,Adults and Health,Services For Older People - 65 And Over,Transfer Payments,Direct Payments,626,09/06/2020,2006-00588,0.00,5598.46,R,REDACTED PERSONAL DATA,No
Http://opendatacommunities.org/id/metropolitan-district-council/leeds,Leeds City Council,30/06/2020,Adults and Health,Services For Older People Under 65 P/Dis,Third Party Payments,Residential,580,24/06/2020,2006-00589,0.00,3534.24,R,Alne Hall,No
Http://opendatacommunities.org/id/metropolitan-district-council/leeds,Leeds City Council,30/06/2020,Children and Families,Social Care,Support Services,Legal Disbursements,411,04/06/2020,2006-00590,0.00,90.00,R,Alphabiolabs,No
Http://opendatacommunities.org/id/metropolitan-district-council/leeds,Leeds City Council,30/06/2020,Children and Families,Social Care,Support Services,Legal Disbursements,411,04/06/2020,2006-00591,0.00,349.00,R,Alphabiolabs,No
Http://opendatacommunities.org/id/metropolitan-district-council/leeds,Leeds City Council,30/06/2020,Children and Families,Social Care,Support Services,Legal Disbursements,411,05/06/2020,2006-00592,0.00,172.25,R,Alphabiolabs,No
Http://opendatacommunities.org/id/metropolitan-district-council/leeds,Leeds City Council,30/06/2020,Children and Families,Social Care,Support Services,Legal Disbursements,411,05/06/2020,2006-00593,0.00,103.80,R,Alphabiolabs,No
Http://opendatacommunities.org/id/metropolitan-district-council/leeds,Leeds City Council,30/06/2020,Children and Families,Social Care,Support Services,Legal Disbursements,411,05/06/2020,2006-00594,0.00,413.34,R,Alphabiolabs,No
Http://opendatacommunities.org/id/metropolitan-district-council/leeds,Leeds City Council,30/06/2020,Children and Families,Social Care,Support Services,Legal Disbursements,411,05/06/2020,2006-00595,0.00,106.25,R,Alphabiolabs,No
Http://opendatacommunities.org/id/metropolitan-district-council/leeds,Leeds City Council,30/06/2020,Children and Families,Social Care,Support Services,Legal Disbursements,411,05/06/2020,2006-00596,0.00,147.25,R,Alphabiolabs,No
Http://opendatacommunities.org/id/metropolitan-district-council/leeds,Leeds City Council,30/06/2020,Children and Families,Social Care,Support Services,Legal Disbursements,411,05/06/2020,2006-00597,0.00,323.00,R,Alphabiolabs,No
Http://opendatacommunities.org/id/metropolitan-district-council/leeds,Leeds City Council,30/06/2020,Children and Families,Social Care,Support Services,Legal Disbursements,411,08/06/2020,2006-00598,0.00,106.25,R,Alphabiolabs,No
Http://opendatacommunities.org/id/metropolitan-district-council/leeds,Leeds City Council,30/06/2020,Children and Families,Social Care,Support Services,Legal Disbursements,411,08/06/2020,2006-00599,0.00,169.75,R,Alphabiolabs,No
Http://opendatacommunities.org/id/metropolitan-district-council/leeds,Leeds City Council,30/06/2020,Children and Families,Social Care,Support Services,Legal Disbursements,411,08/06/2020,2006-00600,0.00,355.00,R,Alphabiolabs,No
Http://opendatacommunities.org/id/metropolitan-district-council/leeds,Leeds City Council,30/06/2020,Children and Families,Social Care,Support Services,Legal Disbursements,411,08/06/2020,2006-00601,0.00,95.00,R,Alphabiolabs,No
Http://opendatacommunities.org/id/metropolitan-district-council/leeds,Leeds City Council,30/06/2020,Children and Families,Social Care,Support Services,Legal Disbursements,411,08/06/2020,2006-00602,0.00,173.00,R,Alphabiolabs,No
Http://opendatacommunities.org/id/metropolitan-district-council/leeds,Leeds City Council,30/06/2020,Children and Families,Social Care,Support Services,Legal Disbursements,411,08/06/2020,2006-00603,0.00,305.00,R,Alphabiolabs,No
Http://opendatacommunities.org/id/metropolitan-district-council/leeds,Leeds City Council,30/06/2020,Children and Families,Social Care,Support Services,Legal Disbursements,411,08/06/2020,2006-00604,0.00,149.67,R,Alphabiolabs,No
Http://opendatacommunities.org/id/metropolitan-district-council/leeds,Leeds City Council,30/06/2020,Children and Families,Social Care,Support Services,Legal Disbursements,411,15/06/2020,2006-00605,0.00,189.67,R,Alphabiolabs,No
Http://opendatacommunities.org/id/metropolitan-district-council/leeds,Leeds City Council,30/06/2020,Children and Families,Social Care,Support Services,Legal Disbursements,411,17/06/2020,2006-00606,0.00,139.67,R,Alphabiolabs,No
Http://opendatacommunities.org/id/metropolitan-district-council/leeds,Leeds City Council,30/06/2020,Children and Families,Social Care,Support Services,Legal Disbursements,411,17/06/2020,2006-00607,0.00,103.80,R,Alphabiolabs,No
Http://opendatacommunities.org/id/metropolitan-district-council/leeds,Leeds City Council,30/06/2020,Children and Families,Social Care,Support Services,Legal Disbursements,411,17/06/2020,2006-00608,0.00,95.00,R,Alphabiolabs,No
Http://opendatacommunities.org/id/metropolitan-district-council/leeds,Leeds City Council,30/06/2020,Children and Families,Social Care,Support Services,Legal Disbursements,411,17/06/2020,2006-00609,0.00,162.25,R,Alphabiolabs,No
Http://opendatacommunities.org/id/metropolitan-district-council/leeds,Leeds City Council,30/06/2020,Children and Families,Social Care,Support Services,Legal Disbursements,411,24/06/2020,2006-00610,0.00,150.66,R,Alphabiolabs,No
Http://opendatacommunities.org/id/metropolitan-district-council/leeds,Leeds City Council,30/06/2020,Children and Families,Social Care,Support Services,Legal Disbursements,411,24/06/2020,2006-00611,0.00,348.00,R,Alphabiolabs,No
Http://opendatacommunities.org/id/metropolitan-district-council/leeds,Leeds City Council,30/06/2020,Children and Families,Social Care,Support Services,Legal Disbursements,411,26/06/2020,2006-00612,0.00,129.75,R,Alphabiolabs,No
Http://opendatacommunities.org/id/metropolitan-district-council/leeds,Leeds City Council,30/06/2020,Children and Families,Social Care,Support Services,Legal Disbursements,411,26/06/2020,2006-00613,0.00,85.00,R,Alphabiolabs,No
Http://opendatacommunities.org/id/metropolitan-district-council/leeds,Leeds City Council,30/06/2020,Children and Families,Social Care,Support Services,Legal Disbursements,411,26/06/2020,2006-00614,0.00,654.00,R,Alphabiolabs,No
Http://opendatacommunities.org/id/metropolitan-district-council/leeds,Leeds City Council,30/06/2020,Children and Families,Social Care,Support Services,Legal Disbursements,411,30/06/2020,2006-00615,0.00,95.00,R,Alphabiolabs,No
Http://opendatacommunities.org/id/metropolitan-district-council/leeds,Leeds City Council,30/06/2020,Children and Families,Social Care  ,Third Party Payments,Section 17,551,26/05/2020,2006-00616,0.00,9.50,R,Al-Shafa Pharmacy,Yes
Http://opendatacommunities.org/id/metropolitan-district-council/leeds,Leeds City Council,30/06/2020,Children and Families,Social Care,Income,Nursery Fees Income,926,26/06/2020,2006-00617,0.00,46.42,R,REDACTED PERSONAL DATA,No
Http://opendatacommunities.org/id/metropolitan-district-council/leeds,Leeds City Council,30/06/2020,Children and Families,Social Care,Third Party Payments,Placement Support,550,26/06/2020,2006-00618,0.00,288.00,R,REDACTED PERSONAL DATA,No
Http://opendatacommunities.org/id/metropolitan-district-council/leeds,Leeds City Council,30/06/2020,Children and Families,Social Care,Third Party Payments,Services Rendered By Other Organisations,511,05/06/2020,2006-00619,0.00,578.16,R,REDACTED PERSONAL DATA,No
Http://opendatacommunities.org/id/metropolitan-district-council/leeds,Leeds City Council,30/06/2020,Children and Families,Social Care,Third Party Payments,Services Rendered By Other Organisations,511,03/06/2020,2006-00620,0.00,190.08,R,REDACTED PERSONAL DATA,No
Http://opendatacommunities.org/id/metropolitan-district-council/leeds,Leeds City Council,30/06/2020,Children and Families,Social Care,Third Party Payments,Services Rendered By Other Organisations,511,05/06/2020,2006-00621,0.00,31.53,R,REDACTED PERSONAL DATA,No
Http://opendatacommunities.org/id/metropolitan-district-council/leeds,Leeds City Council,30/06/2020,Children and Families,Social Care,Third Party Payments,Services Rendered By Other Organisations,511,03/06/2020,2006-00622,0.00,190.08,R,REDACTED PERSONAL DATA,No
Http://opendatacommunities.org/id/metropolitan-district-council/leeds,Leeds City Council,30/06/2020,Children and Families,Social Care,Third Party Payments,Services Rendered By Other Organisations,511,05/06/2020,2006-00623,0.00,1261.44,R,REDACTED PERSONAL DATA,No
Http://opendatacommunities.org/id/metropolitan-district-council/leeds,Leeds City Council,30/06/2020,Communities and Environment,Parks and Countryside  ,Supplies and Services,Schools related grant expenditure,299,12/05/2020,2006-00624,0.00,2274.00,R,Amari Leeds,Yes
Http://opendatacommunities.org/id/metropolitan-district-council/leeds,Leeds City Council,30/06/2020,Children and Families,Social Care,Third Party Payments,Services Rendered By Other Organisations,511,03/06/2020,2006-00625,0.00,2471.04,R,Amazing Grace Early Years Childcare,No
Http://opendatacommunities.org/id/metropolitan-district-council/leeds,Leeds City Council,30/06/2020,Children and Families,Social Care,Third Party Payments,Services Rendered By Other Organisations,511,05/06/2020,2006-00626,0.00,4415.04,R,Amazing Grace Early Years Childcare,No
Http://opendatacommunities.org/id/metropolitan-district-council/leeds,Leeds City Council,30/06/2020,Children and Families,Social Care  ,Supplies and Services,Office Consumables,210,20/05/2020,2006-00627,0.00,-1.18,R,Amazon Music,Yes
Http://opendatacommunities.org/id/metropolitan-district-council/leeds,Leeds City Council,30/06/2020,Communities and Environment,Parks and Countryside  ,Supplies and Services,Office Consumables,210,27/05/2020,2006-00628,0.00,7.99,R,Amazon Prime*6z80x3tt5,Yes
Http://opendatacommunities.org/id/metropolitan-district-council/leeds,Leeds City Council,30/06/2020,Resources and Housing,Human Resources  ,Supplies and Services,Office Consumables,210,28/05/2020,2006-00629,0.00,7.99,R,Amazon Prime*cy25n8o65,Yes
Http://opendatacommunities.org/id/metropolitan-district-council/leeds,Leeds City Council,30/06/2020,Communities and Environment,Parks and Countryside  ,Supplies and Services,Postages,212,25/05/2020,2006-00630,0.00,7.99,R,Amazon Prime*dl6xu9xf5,Yes
Http://opendatacommunities.org/id/metropolitan-district-council/leeds,Leeds City Council,30/06/2020,Children and Families,Social Care  ,Supplies and Services,Teaching Materials,202,27/05/2020,2006-00631,0.00,0.99,R,Amazon Prime*hk3tk6r45 Am,Yes
Http://opendatacommunities.org/id/metropolitan-district-council/leeds,Leeds City Council,30/06/2020,Communities and Environment,Parks and Countryside  ,Supplies and Services,Operational Materials,205,14/05/2020,2006-00632,0.00,7.99,R,Amazon Prime*jk9wl5ng5,Yes
Http://opendatacommunities.org/id/metropolitan-district-council/leeds,Leeds City Council,30/06/2020,Resources and Housing,Commercial Services  ,Supplies and Services,Operational Furniture And Equipment,203,27/05/2020,2006-00633,0.00,7.99,R,Amazon Prime*ly0y503p5,Yes
Http://opendatacommunities.org/id/metropolitan-district-council/leeds,Leeds City Council,30/06/2020,Communities and Environment,Parks and Countryside  ,Supplies and Services,Operational Materials,205,23/05/2020,2006-00634,0.00,7.99,R,Amazon Prime*oq7675om5,Yes
Http://opendatacommunities.org/id/metropolitan-district-council/leeds,Leeds City Council,30/06/2020,Communities and Environment,Community Safety  ,Supplies and Services,Office Consumables,210,16/05/2020,2006-00635,0.00,7.99,R,Amazon Prime*pd3eg6qm5,Yes
Http://opendatacommunities.org/id/metropolitan-district-council/leeds,Leeds City Council,30/06/2020,City Development,Libraries  Arts & Heritage  ,Supplies and Services,Memberships,226,21/05/2020,2006-00636,0.00,7.99,R,Amazon Prime*qf6cr82v5,Yes
Http://opendatacommunities.org/id/metropolitan-district-council/leeds,Leeds City Council,30/06/2020,Resources and Housing,Commercial Services  ,Supplies and Services,Memberships,226,03/05/2020,2006-00637,0.00,79.00,R,Amazon Prime*qv5dy2zm5,Yes
Http://opendatacommunities.org/id/metropolitan-district-council/leeds,Leeds City Council,30/06/2020,Resources and Housing,Strategic Housing Partnership & Support  ,Supplies and Services,Office Consumables,210,27/05/2020,2006-00638,0.00,7.99,R,Amazon Prime*r81fo47t5 Am,Yes
Http://opendatacommunities.org/id/metropolitan-district-council/leeds,Leeds City Council,30/06/2020,Resources and Housing,Commercial Services  ,Supplies and Services,Memberships,226,05/05/2020,2006-00639,0.00,7.99,R,Amazon Prime*r84uo6n15,Yes
Http://opendatacommunities.org/id/metropolitan-district-council/leeds,Leeds City Council,30/06/2020,City Development,Libraries  Arts & Heritage  ,Supplies and Services,Operational Materials,205,09/05/2020,2006-00640,0.00,7.99,R,Amazon Prime*s81hx15y5,Yes
Http://opendatacommunities.org/id/metropolitan-district-council/leeds,Leeds City Council,30/06/2020,Adults and Health,Services For Adults Under 65 Learn/Dis  ,Supplies and Services,Office Consumables,210,10/05/2020,2006-00641,0.00,7.99,R,Amazon Prime*sn1gp0h35,Yes
Http://opendatacommunities.org/id/metropolitan-district-council/leeds,Leeds City Council,30/06/2020,Adults and Health,Services For Adults Under 65 Mental/Dis  ,Supplies and Services,Clothing & Uniforms,241,13/05/2020,2006-00642,0.00,7.99,R,Amazon Prime*t56ih3uv5,Yes
Http://opendatacommunities.org/id/metropolitan-district-council/leeds,Leeds City Council,30/06/2020,Communities and Environment,Customer Access  ,Supplies and Services,Memberships,226,08/05/2020,2006-00643,0.00,7.99,R,Amazon Prime*xk6876e65 Am,Yes
Http://opendatacommunities.org/id/metropolitan-district-council/leeds,Leeds City Council,30/06/2020,Children and Families,Social Care  ,Supplies and Services,Teaching Furniture & Equipment,207,19/05/2020,2006-00644,0.00,-40.78,R,Amazon.Co.Uk,Yes
Http://opendatacommunities.org/id/metropolitan-district-council/leeds,Leeds City Council,30/06/2020,Resources and Housing,Commercial Services  ,Supplies and Services,Operational Materials,205,03/05/2020,2006-00645,0.00,-28.23,R,Amazon.Co.Uk Amazon.Co.Uk,Yes
Http://opendatacommunities.org/id/metropolitan-district-council/leeds,Leeds City Council,30/06/2020,Communities and Environment,Parks and Countryside  ,Supplies and Services,Schools related grant expenditure,299,22/05/2020,2006-00646,0.00,87.98,R,Amazon.Co.Uk*0k0dc5y45,Yes
Http://opendatacommunities.org/id/metropolitan-district-council/leeds,Leeds City Council,30/06/2020,City Development,Highways  ,Supplies and Services,Operational Materials,205,14/05/2020,2006-00647,0.00,33.78,R,Amazon.Co.Uk*0q60510t5,Yes
Http://opendatacommunities.org/id/metropolitan-district-council/leeds,Leeds City Council,30/06/2020,Resources and Housing,Sustainable Energy & Air Quality  ,Supplies and Services,Schools related grant expenditure,299,30/04/2020,2006-00648,0.00,23.28,R,Amazon.Co.Uk*0r6bt0m45,Yes
Http://opendatacommunities.org/id/metropolitan-district-council/leeds,Leeds City Council,30/06/2020,Communities and Environment,Waste Management  ,Supplies and Services,Schools related grant expenditure,299,27/05/2020,2006-00649,0.00,115.00,R,Amazon.Co.Uk*181zc1oy5,Yes
Http://opendatacommunities.org/id/metropolitan-district-council/leeds,Leeds City Council,30/06/2020,Children and Families,Social Care  ,Supplies and Services,Teaching Furniture & Equipment,207,25/05/2020,2006-00650,0.00,80.34,R,Amazon.Co.Uk*1f3vi1rl5 Am,Yes
Http://opendatacommunities.org/id/metropolitan-district-council/leeds,Leeds City Council,30/06/2020,Children and Families,Social Care  ,Supplies and Services,General Amenity For Clients/Residents,285,24/05/2020,2006-00651,0.00,56.38,R,Amazon.Co.Uk*297ib4rv5,Yes
Http://opendatacommunities.org/id/metropolitan-district-council/leeds,Leeds City Council,30/06/2020,Adults and Health,Social Services Support Services  ,Supplies and Services,Office Consumables,210,15/05/2020,2006-00652,0.00,20.89,R,Amazon.Co.Uk*2c5nv00w5,Yes
Http://opendatacommunities.org/id/metropolitan-district-council/leeds,Leeds City Council,30/06/2020,Communities and Environment,Parks and Countryside  ,Supplies and Services,Operational Materials,205,19/05/2020,2006-00653,0.00,33.27,R,Amazon.Co.Uk*3a3n855o5 Am,Yes
Http://opendatacommunities.org/id/metropolitan-district-council/leeds,Leeds City Council,30/06/2020,Children and Families,Social Care  ,Supplies and Services,Teaching Materials,202,03/05/2020,2006-00654,0.00,12.49,R,Amazon.Co.Uk*3t8y41725,Yes
Http://opendatacommunities.org/id/metropolitan-district-council/leeds,Leeds City Council,30/06/2020,Communities and Environment,Waste Management  ,Supplies and Services,Operational Furniture And Equipment,203,12/05/2020,2006-00655,0.00,138.00,R,Amazon.Co.Uk*453aw33v5,Yes
Http://opendatacommunities.org/id/metropolitan-district-council/leeds,Leeds City Council,30/06/2020,Children and Families,Social Care  ,Supplies and Services,Crockery  Cutlery & Utensils,221,20/05/2020,2006-00656,0.00,17.56,R,Amazon.Co.Uk*4i6xj73f5 Am,Yes
Http://opendatacommunities.org/id/metropolitan-district-council/leeds,Leeds City Council,30/06/2020,Children and Families,Social Care  ,Transfer Payments,Leaving Care Allowances,634,10/05/2020,2006-00657,0.00,21.99,R,Amazon.Co.Uk*4p1vd97v5,Yes
Http://opendatacommunities.org/id/metropolitan-district-council/leeds,Leeds City Council,30/06/2020,Children and Families,Social Care  ,Supplies and Services,General Amenity For Clients/Residents,285,14/05/2020,2006-00658,0.00,26.64,R,Amazon.Co.Uk*549di2mf5,Yes
Http://opendatacommunities.org/id/metropolitan-district-council/leeds,Leeds City Council,30/06/2020,Children and Families,Social Care  ,Supplies and Services,Teaching Furniture & Equipment,207,14/05/2020,2006-00659,0.00,98.18,R,Amazon.Co.Uk*5f8a32d65 Am,Yes
Http://opendatacommunities.org/id/metropolitan-district-council/leeds,Leeds City Council,30/06/2020,Resources and Housing,Shared Services  ,Supplies and Services,Operational Materials,205,22/05/2020,2006-00660,0.00,22.30,R,Amazon.Co.Uk*5h2ow4i85 Am,Yes
Http://opendatacommunities.org/id/metropolitan-district-council/leeds,Leeds City Council,30/06/2020,Adults and Health,Services For Older People - 65 And Over  ,Supplies and Services,General Amenity For Clients/Residents,285,30/04/2020,2006-00661,0.00,14.61,R,Amazon.Co.Uk*5k4vz1hw5,Yes
Http://opendatacommunities.org/id/metropolitan-district-council/leeds,Leeds City Council,30/06/2020,Resources and Housing,Facilities Management  ,Supplies and Services,Operational Furniture And Equipment,203,05/05/2020,2006-00662,0.00,15.15,R,Amazon.Co.Uk*6j5ek8mn5 Am,Yes
Http://opendatacommunities.org/id/metropolitan-district-council/leeds,Leeds City Council,30/06/2020,Adults and Health,Services For Older People - 65 And Over  ,Supplies and Services,Clothing & Uniforms,241,08/05/2020,2006-00663,0.00,9.99,R,Amazon.Co.Uk*6r9f83w65,Yes
Http://opendatacommunities.org/id/metropolitan-district-council/leeds,Leeds City Council,30/06/2020,Adults and Health,Services For Older People - 65 And Over  ,Premises,General Maintenance,104,22/05/2020,2006-00664,0.00,19.52,R,Amazon.Co.Uk*799qg5v95,Yes
Http://opendatacommunities.org/id/metropolitan-district-council/leeds,Leeds City Council,30/06/2020,Adults and Health,Services For Older People - 65 And Over  ,Premises,Maintenance Of Buildings,101,22/05/2020,2006-00665,0.00,19.52,R,Amazon.Co.Uk*7g8bh5tz5,Yes
Http://opendatacommunities.org/id/metropolitan-district-council/leeds,Leeds City Council,30/06/2020,Children and Families,Social Care  ,Supplies and Services,Teaching Furniture & Equipment,207,28/05/2020,2006-00666,0.00,84.58,R,Amazon.Co.Uk*7h6ud2ou5 Am,Yes
Http://opendatacommunities.org/id/metropolitan-district-council/leeds,Leeds City Council,30/06/2020,Children and Families,Learning  ,Supplies and Services,Teaching Materials,202,03/05/2020,2006-00667,0.00,20.99,R,Amazon.Co.Uk*8g90448z5,Yes
Http://opendatacommunities.org/id/metropolitan-district-council/leeds,Leeds City Council,30/06/2020,Children and Families,Social Care  ,Supplies and Services,Teaching Materials,202,17/05/2020,2006-00668,0.00,9.31,R,Amazon.Co.Uk*8h5102lh5 Am,Yes
Http://opendatacommunities.org/id/metropolitan-district-council/leeds,Leeds City Council,30/06/2020,Children and Families,Social Care  ,Supplies and Services,Operational Furniture And Equipment,203,17/05/2020,2006-00669,0.00,8.33,R,Amazon.Co.Uk*8h5102lh5 Am,Yes
Http://opendatacommunities.org/id/metropolitan-district-council/leeds,Leeds City Council,30/06/2020,Communities and Environment,Customer Access  ,Supplies and Services,Schools related grant expenditure,299,27/05/2020,2006-00670,0.00,22.78,R,Amazon.Co.Uk*8j5yf98y5,Yes
Http://opendatacommunities.org/id/metropolitan-district-council/leeds,Leeds City Council,30/06/2020,Children and Families,Social Care  ,Supplies and Services,Teaching Furniture & Equipment,207,23/05/2020,2006-00671,0.00,17.23,R,Amazon.Co.Uk*8o8k97q55 Am,Yes
Http://opendatacommunities.org/id/metropolitan-district-council/leeds,Leeds City Council,30/06/2020,Children and Families,Social Care  ,Supplies and Services,General Amenity For Clients/Residents,285,12/05/2020,2006-00672,0.00,18.16,R,Amazon.Co.Uk*8s1ll8h95,Yes
Http://opendatacommunities.org/id/metropolitan-district-council/leeds,Leeds City Council,30/06/2020,Communities and Environment,Environmental Action (City Centre)  ,Supplies and Services,Operational Furniture And Equipment,203,01/05/2020,2006-00673,0.00,94.95,R,Amazon.Co.Uk*8z1yh3jo5,Yes
Http://opendatacommunities.org/id/metropolitan-district-council/leeds,Leeds City Council,30/06/2020,Resources and Housing,Strategic Housing Partnership & Support  ,Supplies and Services,Other Hired And Contracted Services,265,16/05/2020,2006-00674,0.00,5.42,R,Amazon.Co.Uk*948zy3jp5,Yes
Http://opendatacommunities.org/id/metropolitan-district-council/leeds,Leeds City Council,30/06/2020,Communities and Environment,Customer Access  ,Supplies and Services,Office Furniture & Equipment,201,30/04/2020,2006-00675,0.00,12.49,R,Amazon.Co.Uk*9m3hp6bj5,Yes
Http://opendatacommunities.org/id/metropolitan-district-council/leeds,Leeds City Council,30/06/2020,Communities and Environment,Cleaner Neighbourhood Teams  ,Supplies and Services,Operational Furniture And Equipment,203,13/05/2020,2006-00676,0.00,24.16,R,Amazon.Co.Uk*9m3oy7w75,Yes
Http://opendatacommunities.org/id/metropolitan-district-council/leeds,Leeds City Council,30/06/2020,Resources and Housing,Shared Services  ,Supplies and Services,Computer Software & Equipment,214,03/05/2020,2006-00677,0.00,74.94,R,Amazon.Co.Uk*9n0fu27l5,Yes
Http://opendatacommunities.org/id/metropolitan-district-council/leeds,Leeds City Council,30/06/2020,Children and Families,Social Care  ,Supplies and Services,General Amenity For Clients/Residents,285,12/05/2020,2006-00678,0.00,17.65,R,Amazon.Co.Uk*9t5yg8cu5 Am,Yes
Http://opendatacommunities.org/id/metropolitan-district-council/leeds,Leeds City Council,30/06/2020,Children and Families,Partnerships & Health  ,Supplies and Services,Books & Audio-Visual Materials,206,02/05/2020,2006-00679,0.00,92.66,R,Amazon.Co.Uk*ae8rd0ts5,Yes
Http://opendatacommunities.org/id/metropolitan-district-council/leeds,Leeds City Council,30/06/2020,Children and Families,Social Care  ,Supplies and Services,Teaching Furniture & Equipment,207,21/05/2020,2006-00680,0.00,47.88,R,Amazon.Co.Uk*ak8um7vu5,Yes
Http://opendatacommunities.org/id/metropolitan-district-council/leeds,Leeds City Council,30/06/2020,Adults and Health,Services For Older People - 65 And Over  ,Premises,Maintenance Of Buildings,101,19/05/2020,2006-00681,0.00,15.83,R,Amazon.Co.Uk*aq6uy40w5,Yes
Http://opendatacommunities.org/id/metropolitan-district-council/leeds,Leeds City Council,30/06/2020,Strategic Landlord,Property and Contracts  ,Supplies and Services,Operational Materials,205,25/05/2020,2006-00682,0.00,197.50,R,Amazon.Co.Uk*b45206o05,Yes
Http://opendatacommunities.org/id/metropolitan-district-council/leeds,Leeds City Council,30/06/2020,Children and Families,Partnerships & Health  ,Supplies and Services,Operational Materials,205,21/05/2020,2006-00683,0.00,9.95,R,Amazon.Co.Uk*ba95x55j5,Yes
Http://opendatacommunities.org/id/metropolitan-district-council/leeds,Leeds City Council,30/06/2020,Communities and Environment,Parks and Countryside  ,Supplies and Services,Operational Furniture And Equipment,203,26/05/2020,2006-00684,0.00,23.27,R,Amazon.Co.Uk*bx6cu8xw5,Yes
Http://opendatacommunities.org/id/metropolitan-district-council/leeds,Leeds City Council,30/06/2020,Children and Families,Social Care  ,Supplies and Services,Teaching Materials,202,25/05/2020,2006-00685,0.00,94.90,R,Amazon.Co.Uk*by5n77tt5,Yes
Http://opendatacommunities.org/id/metropolitan-district-council/leeds,Leeds City Council,30/06/2020,Children and Families,Social Care  ,Supplies and Services,Teaching Furniture & Equipment,207,15/05/2020,2006-00686,0.00,98.03,R,Amazon.Co.Uk*c79vs80q5,Yes
Http://opendatacommunities.org/id/metropolitan-district-council/leeds,Leeds City Council,30/06/2020,Communities and Environment,Parks and Countryside  ,Supplies and Services,Office Consumables,210,01/05/2020,2006-00687,0.00,14.99,R,Amazon.Co.Uk*c84sn29x5,Yes
Http://opendatacommunities.org/id/metropolitan-district-council/leeds,Leeds City Council,30/06/2020,Communities and Environment,Customer Access  ,Supplies and Services,Schools related grant expenditure,299,27/05/2020,2006-00688,0.00,22.80,R,Amazon.Co.Uk*cu8ba1kh5,Yes
Http://opendatacommunities.org/id/metropolitan-district-council/leeds,Leeds City Council,30/06/2020,Children and Families,Social Care  ,Supplies and Services,Teaching Materials,202,28/05/2020,2006-00689,0.00,15.86,R,Amazon.Co.Uk*dc2f79t55,Yes
Http://opendatacommunities.org/id/metropolitan-district-council/leeds,Leeds City Council,30/06/2020,Children and Families,Partnerships & Health  ,Supplies and Services,Operational Materials,205,21/05/2020,2006-00690,0.00,19.57,R,Amazon.Co.Uk*e589g77i5,Yes
Http://opendatacommunities.org/id/metropolitan-district-council/leeds,Leeds City Council,30/06/2020,Children and Families,Social Care  ,Transfer Payments,Leaving Care Allowances,634,01/05/2020,2006-00691,0.00,52.58,R,Amazon.Co.Uk*es82z4to5 Am,Yes
Http://opendatacommunities.org/id/metropolitan-district-council/leeds,Leeds City Council,30/06/2020,Children and Families,Social Care  ,Transfer Payments,Leaving Care Allowances,634,08/05/2020,2006-00692,0.00,19.95,R,Amazon.Co.Uk*fg43p1kt5,Yes
Http://opendatacommunities.org/id/metropolitan-district-council/leeds,Leeds City Council,30/06/2020,Communities and Environment,Customer Access  ,Supplies and Services,Schools related grant expenditure,299,22/05/2020,2006-00693,0.00,10.74,R,Amazon.Co.Uk*g25zp8ow5,Yes
Http://opendatacommunities.org/id/metropolitan-district-council/leeds,Leeds City Council,30/06/2020,Adults and Health,Services For Older People - 65 And Over  ,Premises,Maintenance Of Buildings,101,22/05/2020,2006-00694,0.00,19.52,R,Amazon.Co.Uk*g73ey6cn5,Yes
Http://opendatacommunities.org/id/metropolitan-district-council/leeds,Leeds City Council,30/06/2020,Children and Families,Social Care  ,Supplies and Services,Office Consumables,210,07/05/2020,2006-00695,0.00,23.73,R,Amazon.Co.Uk*g87vi8aq5,Yes
Http://opendatacommunities.org/id/metropolitan-district-council/leeds,Leeds City Council,30/06/2020,Communities and Environment,Parks and Countryside  ,Supplies and Services,Schools related grant expenditure,299,25/05/2020,2006-00696,0.00,49.99,R,Amazon.Co.Uk*go6zm1vh5,Yes
Http://opendatacommunities.org/id/metropolitan-district-council/leeds,Leeds City Council,30/06/2020,Children and Families,Social Care  ,Supplies and Services,Operational Furniture And Equipment,203,08/05/2020,2006-00697,0.00,22.32,R,Amazon.Co.Uk*gr5xe8ld5 Am,Yes
Http://opendatacommunities.org/id/metropolitan-district-council/leeds,Leeds City Council,30/06/2020,Communities and Environment,Parks and Countryside  ,Supplies and Services,Operational Materials,205,19/05/2020,2006-00698,0.00,5.99,R,Amazon.Co.Uk*gt3k75tn5,Yes
Http://opendatacommunities.org/id/metropolitan-district-council/leeds,Leeds City Council,30/06/2020,Communities and Environment,Customer Access  ,Supplies and Services,Schools related grant expenditure,299,21/05/2020,2006-00699,0.00,21.56,R,Amazon.Co.Uk*h35n83ks5 Am,Yes
Http://opendatacommunities.org/id/metropolitan-district-council/leeds,Leeds City Council,30/06/2020,Resources and Housing,Sustainable Energy & Air Quality  ,Supplies and Services,Schools related grant expenditure,299,05/05/2020,2006-00700,0.00,16.44,R,Amazon.Co.Uk*h51q353w5 Am,Yes
Http://opendatacommunities.org/id/metropolitan-district-council/leeds,Leeds City Council,30/06/2020,Children and Families,Social Care  ,Supplies and Services,Teaching Furniture & Equipment,207,19/05/2020,2006-00701,0.00,62.45,R,Amazon.Co.Uk*hi2x05745,Yes
Http://opendatacommunities.org/id/metropolitan-district-council/leeds,Leeds City Council,30/06/2020,Children and Families,Social Care  ,Supplies and Services,Operational Furniture And Equipment,203,17/05/2020,2006-00702,0.00,82.50,R,Amazon.Co.Uk*i77ul1hd5 Am,Yes
Http://opendatacommunities.org/id/metropolitan-district-council/leeds,Leeds City Council,30/06/2020,Children and Families,Social Care  ,Transfer Payments,Leaving Care Allowances,634,14/05/2020,2006-00703,0.00,21.81,R,Amazon.Co.Uk*is3fo9x95 Am,Yes
Http://opendatacommunities.org/id/metropolitan-district-council/leeds,Leeds City Council,30/06/2020,Communities and Environment,Customer Access  ,Supplies and Services,Schools related grant expenditure,299,01/05/2020,2006-00704,0.00,12.49,R,Amazon.Co.Uk*iz6d49p55,Yes
Http://opendatacommunities.org/id/metropolitan-district-council/leeds,Leeds City Council,30/06/2020,Children and Families,Social Care  ,Third Party Payments,Placement Support,550,18/05/2020,2006-00705,0.00,199.99,R,Amazon.Co.Uk*j09ao7st5 Am,Yes
Http://opendatacommunities.org/id/metropolitan-district-council/leeds,Leeds City Council,30/06/2020,Communities and Environment,Parks and Countryside  ,Supplies and Services,Schools related grant expenditure,299,09/05/2020,2006-00706,0.00,31.99,R,Amazon.Co.Uk*j64148qv5,Yes
Http://opendatacommunities.org/id/metropolitan-district-council/leeds,Leeds City Council,30/06/2020,Children and Families,Social Care  ,Third Party Payments,Placement Support,550,14/05/2020,2006-00707,0.00,24.95,R,Amazon.Co.Uk*ka3o57eq5,Yes
Http://opendatacommunities.org/id/metropolitan-district-council/leeds,Leeds City Council,30/06/2020,Communities and Environment,Parks and Countryside  ,Supplies and Services,Operational Materials,205,10/05/2020,2006-00708,0.00,14.57,R,Amazon.Co.Uk*kp9sj80e5,Yes
Http://opendatacommunities.org/id/metropolitan-district-council/leeds,Leeds City Council,30/06/2020,Children and Families,Social Care  ,Employees,Occupational Health,85,11/05/2020,2006-00709,0.00,19.98,R,Amazon.Co.Uk*ks5va2aj5,Yes
Http://opendatacommunities.org/id/metropolitan-district-council/leeds,Leeds City Council,30/06/2020,Communities and Environment,Customer Access  ,Supplies and Services,Schools related grant expenditure,299,07/05/2020,2006-00710,0.00,11.24,R,Amazon.Co.Uk*lj6g68pb5 Am,Yes
Http://opendatacommunities.org/id/metropolitan-district-council/leeds,Leeds City Council,30/06/2020,Children and Families,Social Care  ,Supplies and Services,Teaching Furniture & Equipment,207,15/05/2020,2006-00711,0.00,59.35,R,Amazon.Co.Uk*lk5n199r5,Yes
Http://opendatacommunities.org/id/metropolitan-district-council/leeds,Leeds City Council,30/06/2020,Communities and Environment,Customer Access  ,Supplies and Services,Schools related grant expenditure,299,22/05/2020,2006-00712,0.00,10.82,R,Amazon.Co.Uk*lp4jz4gd5,Yes
Http://opendatacommunities.org/id/metropolitan-district-council/leeds,Leeds City Council,30/06/2020,Adults and Health,Services For Older People - 65 And Over  ,Premises,Maintenance Of Buildings,101,22/05/2020,2006-00713,0.00,19.52,R,Amazon.Co.Uk*m17rx94c5,Yes
Http://opendatacommunities.org/id/metropolitan-district-council/leeds,Leeds City Council,30/06/2020,Resources and Housing,Democratic Services  ,Supplies and Services,Operational Materials,205,14/05/2020,2006-00714,0.00,15.40,R,Amazon.Co.Uk*m282u2bx5,Yes
Http://opendatacommunities.org/id/metropolitan-district-council/leeds,Leeds City Council,30/06/2020,Children and Families,Social Care  ,Supplies and Services,General Amenity For Clients/Residents,285,11/05/2020,2006-00715,0.00,8.40,R,Amazon.Co.Uk*m651f1005 Am,Yes
Http://opendatacommunities.org/id/metropolitan-district-council/leeds,Leeds City Council,30/06/2020,Children and Families,Social Care  ,Supplies and Services,General Amenity For Clients/Residents,285,14/05/2020,2006-00716,0.00,26.27,R,Amazon.Co.Uk*ma3rb4ai5 Am,Yes
Http://opendatacommunities.org/id/metropolitan-district-council/leeds,Leeds City Council,30/06/2020,Adults and Health,Services For Older People - 65 And Over  ,Premises,Maintenance Of Buildings,101,19/05/2020,2006-00717,0.00,15.83,R,Amazon.Co.Uk*mn12q84i5,Yes
Http://opendatacommunities.org/id/metropolitan-district-council/leeds,Leeds City Council,30/06/2020,Children and Families,Social Care  ,Supplies and Services,Teaching Materials,202,03/05/2020,2006-00718,0.00,15.19,R,Amazon.Co.Uk*n10oz74n5,Yes
Http://opendatacommunities.org/id/metropolitan-district-council/leeds,Leeds City Council,30/06/2020,Communities and Environment,Customer Access  ,Supplies and Services,Schools related grant expenditure,299,10/05/2020,2006-00719,0.00,10.73,R,Amazon.Co.Uk*no5ry4wy5 Am,Yes
Http://opendatacommunities.org/id/metropolitan-district-council/leeds,Leeds City Council,30/06/2020,Resources and Housing,Commercial Services  ,Supplies and Services,Conference Meetings,253,10/05/2020,2006-00720,0.00,48.92,R,Amazon.Co.Uk*o87pf4k85 Am,Yes
Http://opendatacommunities.org/id/metropolitan-district-council/leeds,Leeds City Council,30/06/2020,Children and Families,Partnerships & Health  ,Supplies and Services,Operational Materials,205,15/05/2020,2006-00721,0.00,20.83,R,Amazon.Co.Uk*pa9zc2ic5,Yes
Http://opendatacommunities.org/id/metropolitan-district-council/leeds,Leeds City Council,30/06/2020,Communities and Environment,Customer Access  ,Supplies and Services,Schools related grant expenditure,299,03/05/2020,2006-00722,0.00,10.73,R,Amazon.Co.Uk*qa82r1fo5,Yes
Http://opendatacommunities.org/id/metropolitan-district-council/leeds,Leeds City Council,30/06/2020,Children and Families,Social Care  ,Supplies and Services,Teaching Materials,202,03/05/2020,2006-00723,0.00,12.49,R,Amazon.Co.Uk*ql5oh4td5 Am,Yes
Http://opendatacommunities.org/id/metropolitan-district-council/leeds,Leeds City Council,30/06/2020,Children and Families,Partnerships & Health  ,Supplies and Services,Teaching Materials,202,10/05/2020,2006-00724,0.00,10.79,R,Amazon.Co.Uk*r106s21g5 Am,Yes
Http://opendatacommunities.org/id/metropolitan-district-council/leeds,Leeds City Council,30/06/2020,Communities and Environment,Customer Access  ,Supplies and Services,Schools related grant expenditure,299,30/04/2020,2006-00725,0.00,10.50,R,Amazon.Co.Uk*r643i28j5,Yes
Http://opendatacommunities.org/id/metropolitan-district-council/leeds,Leeds City Council,30/06/2020,Children and Families,Social Care  ,Supplies and Services,Teaching Materials,202,03/05/2020,2006-00726,0.00,11.62,R,Amazon.Co.Uk*rh9v62ac5 Am,Yes
Http://opendatacommunities.org/id/metropolitan-district-council/leeds,Leeds City Council,30/06/2020,Children and Families,Social Care  ,Supplies and Services,General Amenity For Clients/Residents,285,14/05/2020,2006-00727,0.00,13.48,R,Amazon.Co.Uk*rn9ni1vo5 Am,Yes
Http://opendatacommunities.org/id/metropolitan-district-council/leeds,Leeds City Council,30/06/2020,Communities and Environment,Customer Access  ,Supplies and Services,Schools related grant expenditure,299,03/05/2020,2006-00728,0.00,10.73,R,Amazon.Co.Uk*ro0xm9az5,Yes
Http://opendatacommunities.org/id/metropolitan-district-council/leeds,Leeds City Council,30/06/2020,Children and Families,Social Care  ,Supplies and Services,General Amenity For Clients/Residents,285,11/05/2020,2006-00729,0.00,21.28,R,Amazon.Co.Uk*rz1jj8xf5 Am,Yes
Http://opendatacommunities.org/id/metropolitan-district-council/leeds,Leeds City Council,30/06/2020,Children and Families,Social Care  ,Supplies and Services,Teaching Materials,202,03/05/2020,2006-00730,0.00,13.93,R,Amazon.Co.Uk*s007c6v35,Yes
Http://opendatacommunities.org/id/metropolitan-district-council/leeds,Leeds City Council,30/06/2020,Communities and Environment,Parks and Countryside  ,Supplies and Services,Schools related grant expenditure,299,17/05/2020,2006-00731,0.00,89.97,R,Amazon.Co.Uk*sa1pb4lx5,Yes
Http://opendatacommunities.org/id/metropolitan-district-council/leeds,Leeds City Council,30/06/2020,Children and Families,Social Care  ,Supplies and Services,Office Furniture & Equipment,201,03/05/2020,2006-00732,0.00,13.65,R,Amazon.Co.Uk*sf4fi9sl5 Am,Yes
Http://opendatacommunities.org/id/metropolitan-district-council/leeds,Leeds City Council,30/06/2020,Adults and Health,Services For Older People - 65 And Over  ,Supplies and Services,General Amenity For Clients/Residents,285,30/04/2020,2006-00733,0.00,4.99,R,Amazon.Co.Uk*sx5rg5ws5,Yes
Http://opendatacommunities.org/id/metropolitan-district-council/leeds,Leeds City Council,30/06/2020,Children and Families,Social Care  ,Supplies and Services,Teaching Materials,202,24/05/2020,2006-00734,0.00,14.48,R,Amazon.Co.Uk*sx9wl5gj5,Yes
Http://opendatacommunities.org/id/metropolitan-district-council/leeds,Leeds City Council,30/06/2020,Adults and Health,Services For Older People - 65 And Over  ,Supplies and Services,Office Consumables,210,14/05/2020,2006-00735,0.00,30.43,R,Amazon.Co.Uk*u82b07e65,Yes
Http://opendatacommunities.org/id/metropolitan-district-council/leeds,Leeds City Council,30/06/2020,Communities and Environment,Customer Access  ,Supplies and Services,Books & Audio-Visual Materials,206,10/05/2020,2006-00736,0.00,37.10,R,Amazon.Co.Uk*uh6m27o55 Am,Yes
Http://opendatacommunities.org/id/metropolitan-district-council/leeds,Leeds City Council,30/06/2020,Resources and Housing,Technology  ,Supplies and Services,Computer Software & Equipment,214,20/05/2020,2006-00737,0.00,28.04,R,Amazon.Co.Uk*ui39b70d5,Yes
Http://opendatacommunities.org/id/metropolitan-district-council/leeds,Leeds City Council,30/06/2020,Children and Families,Social Care  ,Supplies and Services,General Amenity For Clients/Residents,285,06/05/2020,2006-00738,0.00,50.93,R,Amazon.Co.Uk*vd3zn0or5,Yes
Http://opendatacommunities.org/id/metropolitan-district-council/leeds,Leeds City Council,30/06/2020,Children and Families,Social Care  ,Supplies and Services,Food & Drink,231,05/05/2020,2006-00739,0.00,21.98,R,Amazon.Co.Uk*w04e19lf5,Yes
Http://opendatacommunities.org/id/metropolitan-district-council/leeds,Leeds City Council,30/06/2020,Children and Families,Social Care  ,Supplies and Services,General Amenity For Clients/Residents,285,14/05/2020,2006-00740,0.00,18.21,R,Amazon.Co.Uk*w43p273u5 Am,Yes
Http://opendatacommunities.org/id/metropolitan-district-council/leeds,Leeds City Council,30/06/2020,Adults and Health,Services For Older People - 65 And Over  ,Supplies and Services,Operational Materials,205,21/05/2020,2006-00741,0.00,18.28,R,Amazon.Co.Uk*xq3f08k35,Yes
Http://opendatacommunities.org/id/metropolitan-district-council/leeds,Leeds City Council,30/06/2020,City Development,Highways  ,Supplies and Services,Operational Furniture And Equipment,203,28/05/2020,2006-00742,0.00,83.33,R,Amazon.Co.Uk*y33db86l5,Yes
Http://opendatacommunities.org/id/metropolitan-district-council/leeds,Leeds City Council,30/06/2020,Children and Families,Social Care  ,Supplies and Services,General Amenity For Clients/Residents,285,27/05/2020,2006-00743,0.00,102.72,R,Amazon.Co.Uk*yh09u5fd5,Yes
Http://opendatacommunities.org/id/metropolitan-district-council/leeds,Leeds City Council,30/06/2020,City Development,Libraries  Arts & Heritage  ,Supplies and Services,Books & Audio-Visual Materials,206,08/05/2020,2006-00744,0.00,14.00,R,Amazon.Co.Uk*yk00c9m75 Am,Yes
Http://opendatacommunities.org/id/metropolitan-district-council/leeds,Leeds City Council,30/06/2020,Children and Families,Social Care  ,Supplies and Services,Teaching Materials,202,15/05/2020,2006-00745,0.00,5.99,R,Amazon.Co.Uk*yl7tz3dq5 Am,Yes
Http://opendatacommunities.org/id/metropolitan-district-council/leeds,Leeds City Council,30/06/2020,Children and Families,Social Care  ,Supplies and Services,Teaching Furniture & Equipment,207,20/05/2020,2006-00746,0.00,69.94,R,Amazon.Co.Uk*z820o2595 Am,Yes
Http://opendatacommunities.org/id/metropolitan-district-council/leeds,Leeds City Council,30/06/2020,Communities and Environment,Parks and Countryside  ,Supplies and Services,Schools related grant expenditure,299,13/05/2020,2006-00747,0.00,43.99,R,Amazon.Co.Uk*zm74p6595 Am,Yes
Http://opendatacommunities.org/id/metropolitan-district-council/leeds,Leeds City Council,30/06/2020,Resources and Housing,Facilities Management  ,Supplies and Services,Operational Materials,205,29/04/2020,2006-00748,0.00,23.53,R,Amazon.Co.Uk*zo3we16s5 Am,Yes
Http://opendatacommunities.org/id/metropolitan-district-council/leeds,Leeds City Council,30/06/2020,Children and Families,Social Care  ,Supplies and Services,Teaching Materials,202,15/05/2020,2006-00749,0.00,19.15,R,Amazon.Co.Uk*zr2zs0fq5,Yes
Http://opendatacommunities.org/id/metropolitan-district-council/leeds,Leeds City Council,30/06/2020,Children and Families,Social Care  ,Transport,Public Transport Expenses,310,27/05/2020,2006-00750,0.00,69.48,R,Amber Cars,Yes
Http://opendatacommunities.org/id/metropolitan-district-council/leeds,Leeds City Council,30/06/2020,Resources and Housing,Commercial Services,Transport,Private Hire,360,03/06/2020,2006-00751,0.00,48.00,R,Amber Cars,No
Http://opendatacommunities.org/id/metropolitan-district-council/leeds,Leeds City Council,30/06/2020,Resources and Housing,Commercial Services,Transport,Private Hire,360,03/06/2020,2006-00752,0.00,53.60,R,Amber Cars,No
Http://opendatacommunities.org/id/metropolitan-district-council/leeds,Leeds City Council,30/06/2020,Resources and Housing,Commercial Services,Transport,Private Hire,360,03/06/2020,2006-00753,0.00,135.00,R,Amber Cars,No
Http://opendatacommunities.org/id/metropolitan-district-council/leeds,Leeds City Council,30/06/2020,Resources and Housing,Commercial Services,Transport,Private Hire,360,11/06/2020,2006-00754,0.00,423.00,R,Amber Cars,No
Http://opendatacommunities.org/id/metropolitan-district-council/leeds,Leeds City Council,30/06/2020,Children and Families,Social Care,Support Services,Internal charge from Resources,487,11/06/2020,2006-00755,0.00,229.02,R,Amber Cars,No
Http://opendatacommunities.org/id/metropolitan-district-council/leeds,Leeds City Council,30/06/2020,Children and Families,Social Care,Support Services,Internal charge from Resources,487,11/06/2020,2006-00756,0.00,70.90,R,Amber Cars,No
Http://opendatacommunities.org/id/metropolitan-district-council/leeds,Leeds City Council,30/06/2020,Children and Families,Social Care,Support Services,Internal charge from Resources,487,11/06/2020,2006-00757,0.00,344.80,R,Amber Cars,No
Http://opendatacommunities.org/id/metropolitan-district-council/leeds,Leeds City Council,30/06/2020,Resources and Housing,Commercial Services,Transport,Private Hire,360,11/06/2020,2006-00758,0.00,300.77,R,Amber Cars,No
Http://opendatacommunities.org/id/metropolitan-district-council/leeds,Leeds City Council,30/06/2020,Resources and Housing,Commercial Services,Transport,Private Hire,360,11/06/2020,2006-00759,0.00,1200.00,R,Amber Cars,No
Http://opendatacommunities.org/id/metropolitan-district-council/leeds,Leeds City Council,30/06/2020,Resources and Housing,Commercial Services,Transport,Private Hire,360,11/06/2020,2006-00760,0.00,29.40,R,Amber Cars,No
Http://opendatacommunities.org/id/metropolitan-district-council/leeds,Leeds City Council,30/06/2020,Resources and Housing,Commercial Services,Transport,Private Hire,360,11/06/2020,2006-00761,0.00,134.40,R,Amber Cars,No
Http://opendatacommunities.org/id/metropolitan-district-council/leeds,Leeds City Council,30/06/2020,Resources and Housing,Commercial Services,Transport,Private Hire,360,11/06/2020,2006-00762,0.00,110.00,R,Amber Cars,No
Http://opendatacommunities.org/id/metropolitan-district-council/leeds,Leeds City Council,30/06/2020,Resources and Housing,Commercial Services,Transport,Private Hire,360,11/06/2020,2006-00763,0.00,3300.81,R,Amber Cars,No
Http://opendatacommunities.org/id/metropolitan-district-council/leeds,Leeds City Council,30/06/2020,Communities and Environment,Benefits  Wlefare and Poverty,Transport,Private Hire,360,18/06/2020,2006-00764,0.00,7.00,R,Amber Cars,No
Http://opendatacommunities.org/id/metropolitan-district-council/leeds,Leeds City Council,30/06/2020,Resources and Housing,Shared Services,Transport,Public Transport Expenses,310,19/06/2020,2006-00765,0.00,-18.00,R,Amber Cars,No
Http://opendatacommunities.org/id/metropolitan-district-council/leeds,Leeds City Council,30/06/2020,Strategic Accounts,Central Control Accounts (Ex Cttee 07),Supplies and Services,Travel invoices,1,19/06/2020,2006-00766,0.00,4836.14,R,Amber Cars,No
Http://opendatacommunities.org/id/metropolitan-district-council/leeds,Leeds City Council,30/06/2020,Strategic Accounts,Central Control Accounts (Ex Cttee 07),Supplies and Services,Travel invoices,1,25/06/2020,2006-00767,0.00,1148.30,R,Amber Cars,No
Http://opendatacommunities.org/id/metropolitan-district-council/leeds,Leeds City Council,30/06/2020,Communities and Environment,Customer Access,Supplies and Services,Bought In Professional Services,277,17/06/2020,2006-00768,0.00,203.76,R,AME-IT INTERPRETING LTD,No
Http://opendatacommunities.org/id/metropolitan-district-council/leeds,Leeds City Council,30/06/2020,Communities and Environment,Customer Access,Supplies and Services,Bought In Professional Services,277,24/06/2020,2006-00769,0.00,10.00,R,AME-IT INTERPRETING LTD,No
Http://opendatacommunities.org/id/metropolitan-district-council/leeds,Leeds City Council,30/06/2020,Adults and Health,Social Services Support Services,Employees,Training & Development,70,04/06/2020,2006-00770,0.00,13.00,R,REDACTED PERSONAL DATA,No
Http://opendatacommunities.org/id/metropolitan-district-council/leeds,Leeds City Council,30/06/2020,Children and Families,Social Care,Third Party Payments,Services Rendered By Other Organisations,511,05/06/2020,2006-00771,0.00,315.36,R,REDACTED PERSONAL DATA,No
Http://opendatacommunities.org/id/metropolitan-district-council/leeds,Leeds City Council,30/06/2020,Adults and Health,Services For Adults Under 65 Mental/Dis,Third Party Payments,Fees - Level 4,520,12/06/2020,2006-00772,0.00,175.00,R,Amiable Medical Services Limited,No
Http://opendatacommunities.org/id/metropolitan-district-council/leeds,Leeds City Council,30/06/2020,Adults and Health,Services For Adults Under 65 Mental/Dis,Third Party Payments,Fees - Level 4,520,12/06/2020,2006-00773,0.00,175.00,R,Amiable Medical Services Limited,No
Http://opendatacommunities.org/id/metropolitan-district-council/leeds,Leeds City Council,30/06/2020,Adults and Health,Services For Adults Under 65 Mental/Dis,Third Party Payments,Fees - Level 4,520,15/06/2020,2006-00774,0.00,175.00,R,Amiable Medical Services Limited,No
